{"text_format":"1","workbook":"xlsx","n_sheets":32,"sheets":["Revision History","Overview","Instructions","System Information","Component Summary Sheet","Risk Rating","Comp 1","Comp 2","Comp 3","Comp 4","Comp 5","Comp 6","Comp 7","Comp 8","Comp 9","Comp 10","Comp 11","Comp 12","Comp 13","Comp 14","Comp 15","Comp 16","Comp 17","Comp 18","Comp 19","Comp 20","Comp 21","Comp 22","Comp 23","Comp 24","Comp 25","Lists and CL Guidance"],"not_rendered":{"charts":26,"images":0,"macros":1,"external_links":0,"defined_names":39,"comments":25,"pivot_tables":0},"unopened":[],"bounds":{"document_bytes":16777216,"sheet_cells":100000,"rows_first":2000,"rows_last":500,"rows_between":2000,"halvings":0,"cell_chars":16384,"cell_head_chars":4096},"cells_cut":0,"cells_raw":0,"read":"whole","date_system":"1900"}

{"sheet":"Revision History","index":0,"n_rows":12,"n_cols":4,"rows_kept":12,"cut":false,"hidden":false,"merged":[[2,2,2,3]]}
[]
["Revision","Date","POC","Detailed Description of Change"]
[0,"2019-07-01","Initial Supplier Risk Mapping construct leveraged from Lockheed-Martin ADP, Palmdale, CA"]
[1,"2019-11-01","Wylie Consulting","Base Document - Supplied by Gov. Contractor"]
[2,"2020-03-01","Wylie Consulting","Simplification revisions - added instructions"]
[3,"2020-03-15","Wylie Consulting","Improved usability and simplified interface"]
[4,"2020-04-15","Wylie Consulting","Added separate weighting worksheet, aligned risk management terminology with DOD Risk Management Guide\nhttps://www.acq.osd.mil/damir/documents/DAES_2006_RISK_GUIDE.pdf"]
[5,"2020-05-05","Wylie/Cowles","Significant modification to the Risk Management Scoring Method\nRemoved Question Weighting as a method for scoring Impact/Likelihood\nAdded Likelihood and Consequence scoring to each Component Page\nReplaced Guidelines with Overview and updated Instructions page"]
[6,"2020-06-27","Wylie/Cowles","Minor clean-up and improvement in readability."]
[7,"2020-07-15","Wylie/Cowles","Added Error Protection, Improved Conditional Formatting"]
[8,"2020-08-22","Wylie","Cleaned up printing hard copy of all pages (improved Header/Footer)"]
[9,"2021-12-24","Wylie","Added 25 components, improved user friendliness, automated actions\nUpdated MRL and Risk Guide References"]

{"sheet":"Overview","index":1,"n_rows":16,"n_cols":2,"rows_kept":16,"cut":false,"hidden":false,"merged":[]}
["Item","Overview"]
[1,"Background and Introduction: Programs in the development and acquisition process need to assess manufacturing readiness. Multiple components, sub-systems, and/or suppliers may be involved.  Technology and manufacturing readiness may vary significantly amongst these components and suppliers, posing different levels of risk likelihood and severity to the program. This spreadsheet was developed as a tool for initial assessment of risk posed by individual components and suppliers. This assessment can then be used to allocate program resources effectively, to conduct appropriate levels of component/supplier reviews, including MRA self-assessments and full MRA assessments where indicated. Results can then be used to identify and reduce program risks, and accelerate manufacturing maturation and readiness. This tool is intended to supplement the well-established MRA/MRL process; it is not a substitute for that process."]
[2,"General Description: This spreadsheet was developed for use in advance of a system-level or product-level MRA, specifically for initial risk assessment posed by individual components, sub-components, and associated suppliers. The concept was originally developed as a \"Supplier Heat Map\" tool by Lockheed-Martin ADP, in Palmdale, CA. Lessons learned since initial application have resulted in significant improvements, more direct ties to key aspects of the DOD MRA/MRL process, and broader range of applicability.  The users - meaning representatives of the subject program - identify the components (and/or sub-components) and associated suppliers comprising the program. Key OEM or system-level processes such as product integration or assembly should be considered as well.  Each component/supplier has a specific tab in the workbook. Each component/supplier is individually assessed - by simple \"yes-no\" responses to 9 key risk questions representing the 9 MRA threads.  For any \"yes\" response to the risk questions, the representatives generate a simple statement of risk, and record their estimate of \"Likelihood and Consequence\" in a 5x5 risk table format. The spreadsheet then sums the risks, calculates a weighted average \"Likelihood - Consequence\" value for the component/supplier, and displays the results in the familiar 5x5 risk matrix format. The weighted average values for all components/suppliers are displayed in a consolidated 5x5 risk matrix plot on the \"Risk Rating\" tab. Results are also presented in table format on the \"Component Summary Sheet\" tab. Red-Yellow-Green color coding, consistent with the DOD Risk Management Guide, provides visual assessment of the various components/suppliers. It is expected that results from this tool will be useful for communication and allocation of program resources for detailed assessments, including MRAs, development of MMPs or other risk management decisions."]
[3,"9 Key Questions on Component/Supplier Tabs: These question are taken directly from the DOD MRL Deskbook (pp 36) - http://www.dodmrl.com/MRL_Deskbook_V2020.pdf. The questions are intended to provoke simple assessment on a yes-no basis related to each of the 9 threads in the MRA /MRL process. For \"yes\" responses, the participants should generate a simple (~10 word) risk statement."]
[4,"Likelihood-Consequence Assessment on Component/Supplier Tabs: For \"yes\" responses, participants estimate the likelihood and consequence in the NASA and DOD 5x5 risk matrix, in table format. Use of this format and the category guidelines were taken directly from the Risk Management Guide for DoD-Risk-Mgt-Guide-v7-interim-Dec2014.pdf. Note that some or many of the 9 questions may have a \"no\" response for the specific component/supplier being addressed."]
[5,"Weighted Average Likelihood-Consequence Assessment on Component/Supplier Tabs: Since there may be several likelihood - consequence responses, a weighted average value is calculated for each component/supplier. This value is then used for comparison with other component/supplier risk assessment results.  Weighting is based on the individual Likelihood or Consequence score assigned;(i.e.: a score of 5 is weighted higher than a score of 4 or 3 etc.)"]
[6,"Red/Yellow/Green areas on the 'Risk Rating' worksheet are somewhat subjective:  They are consistent with the Risk Management Guide for DOD Acquisition, and generally with the NASA 5x5 Risk Matrix.  Those references, however, provide for \"categorical assessments\" (e.g.: box 3-4, or 4-5). This spreadsheet has continuous numerical scales for both Likelihood and Consequence axes, so the R-Y-G boundaries are shown as straight lines. Even though the areas are distinct, engineering, scientific, and manufacturing intelligence must be used to assess whether the component/supplier risk is High, Med, or Low, and managed as such."]
[7,"Components/Suppliers in \"Red\" Area: Components/Suppliers Falling within the Red area on the Risk Matrix are designated as High Risk and it is recommended that they receive a full MRA."]
[8,"Components/Suppliers in \"Yellow\" Area: Components/Suppliers falling within the Yellow area on the Risk Matrix are designated as Moderate Risk. It is recommended that they conduct an MRA Self Assessment, with an Option for a full MRA to be determined by the MRA team."]
[9,"Components/Suppliers in \"Green\" Area: Components/Suppliers Falling within the Green area on the Risk Matrix are designated as Low Risk. It is recommended that these suppliers not be required to conduct an MRA, but periodic review of their status as \"Green\" be performed."]
[null,"Other Notes:"]
[10,"Risk Matrix risk ratings are initial recommendations based upon In-House and External SME knowledge early in the program and should be treated as recommendations. A supplier may be selected for any level of MRA regardless of Risk Matrix rating if it is deemed necessary by Program Management. "]
[11,"Likelihood (or probability of occurrence) and Consequence (or severity of impact) are based upon collective input from the Program's Supplier or Component Technical Leads and approved by Program Manager."]
[12,"Impact Weightings on the \"System Information\" worksheet may be established by Program Management early in the program and held constant for all components/suppliers. These affect only the Impact Scores derived from the Likelihood-Consequence assessments. They are used only for informational purposes in comparing component/suppliers. In general, it is recommended that the default weighting factor for all 9 key questions be equal."]
[13,"Note to Users: A 2017 update to the Risk Management Guide for DoD Acquisitions contains significantly more detail related to risk/consequences from a system acquisition perspective.  This information can be found in Table 3-1 of the following reference: “Risk, Issue, and Opportunity Management Guide for Defense Acquisition Programs,” Department of Defense, Office of the Deputy Assistant Secretary of Defense for Systems Engineering, Washington, D.C., January 2017. Simpler (prior) versions of the risk-consequence descriptions were regarded more appropriate for this \"Component/Supplier Risk Assessment\" tool and are what appear in the guidance boxes for each component/supplier tab."]
[null,"Wylie/Cowles 12/19/2021, 12/31/2021"]

{"sheet":"Instructions","index":2,"n_rows":14,"n_cols":2,"rows_kept":14,"cut":false,"hidden":false,"merged":[]}
["Item","Instructions for using this Spreadsheet"]
[1,"First time users: please read the introductory material found on the Overview tab."]
[2,"Prework: designated participants should identify all significant components, sub-systems, associated suppliers, and key OEM processes involved in the program.  Key MRL target gates, requirements, and schedule should be known to participants. Appropriate participants representing design or structures requirements, materials, quality, manufacturing, supply chain management, and  program management should be identified and involved as appropriate."]
[3,"System Information tab: Company name, System name or identifier, revision number and revision date should be entered in appropriate boxes. An appropriate DOD or other Distribution Statement may be entered. This will appear on other tabs. Default entry is \"No Distribution Statement Determined.\" The 9 key manufacturing questions should be reviewed in the context of the subject program. For most programs, it is expected that when the questions are assessed for \"Likelihood\" and \"Consequence\" of risks associated with each question, that the relative importance to the program will be considered. In this case (recommended), equal \"System Weighting Factors\" (11.1) for each of the 9 key questions should be assigned. In event non-equal weighting is considered necessary, please comment on the rational for the weighting choices.  The total of the weighting factors must be 100.  These weightings will be program specific and the same for all component/suppliers within the program to ensure consistency. These weighting factors are used only to determine the total \"Weighted Impact Score\" for each component. They will not affect the Likelihood-Consequence assessments, nor position on the 5x5 consolidated risk matrix."]
[4,"System Information tab: Review the number of months inserted in the \"System Critical Schedule Drivers\" table. These are used in your assessment of \"consequence\" categories when schedule may be impacted, so need to be specific to your program."]
[5,"Component/Supplier tabs and the Component Summary Sheet: The template has 25 generic component worksheets.  It is not recommended, but you may create more worksheets if you need to by right-clicking a similar component tab and selecting Move or Copy.  Name the TAB for your components the EXACT same as the name in Column A of the \"Component Summary Sheet\".  Exact spelling is needed to ensure formulas work correctly that pull data from the various component worksheets. You should list on this worksheet all of the components/suppliers to be assessed, and ensure each has an individual tab."]
[6,"Component/Supplier tabs: Review one of the blank tabs provided to become familiar with it. Title and reviewer information can be entered along the top of the sheet where shown.  The lower right side of each sheet contains reference material for your use when assessing Likelihood and Consequence - for that component/supplier.  What you will fill in are yes-no responses with the Drop Down List to the 9 key manufacturing questions - in the context of your program or system, and for the subject component/supplier. Hover over cells A5 - A13 and the questions will appear for each category. For \"Y\" responses, the cells to the right of that response will color light yellow - indicating you should enter a brief explanation of why response was \"Y.\" Example for Materials question might be... \"New material under development.\"  The associated risk statement in the next cell might be...\"Development schedule slips,\" or \"Material quality issues may impact system performance\". Be brief - it is just a note to use when assessing Likelihood and Consequence."]
[7,"Component/Supplier tabs - Determining the Likelihood-Consequence values:  For each key question answered \"Y\" - and their associated risks, you must enter a \"Likelihood\" and \"Consequence\" assessment - each with a number from 1 to 5. Use the Drop Down List for entry of these values.  The category guidelines for these are on the right side of the sheet. The spreadsheet will then calculate an \"Impact Score\" - which is simply the product of Likelihood and Consequence. Note - you only fill in L-C values for the key questions where you responded \"y.\"  The spreadsheet will ignore the blank responses. For some components/suppliers, you may have few if any yes responses. The spreadsheet will fill out the remaining areas, including a weighted average Likelihood-Consequence result, a weighted Impact Score, and the Likelihood-Consequence plot for this supplier/component."]
[8,"Component/Supplier tabs - Weighted Likelihood-Consequence values: This is a critical result. On the component/supplier tab, it is shown in the plot along with whatever other L-C results for key risks were determined for this component/supplier. It is also displayed for comparison with all other component/supplier results on the \"Risk Rating\" tab, and in tabular form on the Component Summary Sheet."]
[9,"Component/Supplier tabs - Actions and Comments table: an area is provided at the bottom of each component/supplier tab where specific actions, dates and comments can be recorded. Revision date and history should be recorded here for changes to each component tab."]
[10,"Component Summary Sheet: this tab summarizes all results in table format. It is populated automatically from the individual Component/Supplier tabs with the exception of \"Component Name\", \"Supplier Status\", and \"Component Description\" which must be entered on this sheet."]
[11,"Risk Rating tab: this tab summarizes all weighted average Likelihood-Consequence results in risk rating format. It is also populated automatically from the individual Component/Supplier tabs. Adjust the view of the \"Risk Rating\" worksheet to maximize readability and clarity of the message.  This will be the most management reviewed worksheet from this workbook."]
[]
["Fmt","Correcting Chart Data Labels in Excel: After entering your L/C scores,  the data labels may appear as empty. If so, they must be reset in Excel.  Follow this procedure to make your data labels appear properly.\n1. Right Click on the data label box\n2. Select \"Format Data Label\"\n3. In the right hand drop down box select the far right \"Label Options\" Category\n4. Uncheck the box \"Value From Cells\"\n5. Re-Check the box \"Value From Cells\"\n6. Click \"Reset Label Text\"\n7. Close the EDIT drop down box"]

{"sheet":"System Information","index":3,"n_rows":43,"n_cols":8,"rows_kept":43,"cut":false,"hidden":false,"merged":[[26,2,26,14],[27,2,27,14],[21,1,21,14],[16,1,16,14],[17,1,17,14],[18,1,18,14],[19,1,19,14],[20,1,20,14],[25,0,25,2],[38,0,38,2],[0,0,1,14],[39,3,42,3],[36,2,36,14],[34,2,34,14],[35,2,35,14],[14,0,15,14],[28,2,28,14],[29,2,29,14],[30,2,30,14],[31,2,31,14],[32,2,32,14],[33,2,33,14],[22,1,22,14],[23,1,23,14],[24,1,24,14],[3,1,3,5],[4,1,4,5],[5,1,5,5],[6,1,6,5],[9,0,11,14],[3,7,4,10]]}
["Company and System Information Sheet"]
[]
[]
["Company Name:","Company Name",null,null,null,null,null,"Entry Fields : This Color"]
["System Name:","System Name"]
["Revision #:","Rev 1"]
["Revision Date:","2022-01-01"]
[]
["Distribution Statement"]
["DISTRIBUTION STATEMENT: No Distribution Statement Determined. "]
[]
[]
[]
[]
["System Level Weighting Factors for Key Manufacturing Questions"]
[]
["Materials","Are there materials which have not been demonstrated in similar products or manufacturing processes? "]
["Cost","Is this item a driver that significantly impacts lifecycle cost (development, unit, or operations and support costs)? Is the technology new with high cost uncertainty?"]
["Design","Is the item design novel or does it contain nonstandard dimensions or tolerances or arrangements? "]
["MFG. Process","Will the item require the use of manufacturing technology, processes, inspection, or capabilities that are unproven in the current environment? "]
["Quality","Does the item have historical/anticipated yield or quality issues? "]
["Schedule","Does this item have lead time issues or does it significantly impact schedule? "]
["Facilities","Does this item require a new manufacturing facility or scale up of existing facilities (i.e., new capability or capacity)? "]
["Supply Chain MGMT.","Does the item have anticipated or historical sub-tier supplier problems (e.g., cost, quality, delivery)? "]
["Industrial Base","Does the item have an industrial base footprint with critical shortfalls or is this a critical item manufactured by a sole or foreign source?"]
["REF: page 36 DoD MRL Deskbook V2020"]
["Category","Weighting Factor","Rationale for Deciding Weighting Factor"]
["Materials",11.1]
["Cost",11.2]
["Design",11.1]
["MFG. Process",11.1]
["Quality",11.1]
["Schedule",11.1]
["Facilities",11.1]
["Supply Chain MGMT.",11.1]
["Industrial Base",11.1]
["Total (must = 100)",{"$f":"SUM(B28:B36)","v":99.999999999999986}]
[]
["System Critical Schedule Drivers\nfor Consequence Estimation"]
["Minimum Minor schedule slip Allowable: Less than",6,"Months","Enter  values for the THIS  program"]
["Minimum Sub System slip Allowable: Less than",12,"Months"]
["Program critical path affected: Less than:",12,"Months"]
["Cannot meet key Milestones, if Slip is greater than:",12,"Months"]

{"sheet":"Component Summary Sheet","index":4,"n_rows":30,"n_cols":17,"rows_kept":30,"cut":false,"hidden":false,"merged":[[0,0,0,13]]}
[{"$f":"company_name&\" - \"&system_name&\" - Initial Manufacturing Risk Assessment of Components/Suppliers\"","v":"Company Name - System Name - Initial Manufacturing Risk Assessment of Components/Suppliers"},null,null,null,null,null,null,null,null,null,null,null,null,null,"Revision:",{"$f":"rev_date","v":"2022-01-01"},"Risk Rating"]
["Component Name","Supplier Status\n(Evaluating or Selected)","Component Technical Lead","Supplier","Materials","Cost","Design","MFG. Process","Quality","Schedule","Facilities","Supply Chain MGMT.","Industrial Base","Likelihood Score\n (1-5) \n5 Highest ","Consequence Score \n(1-5) \n5 Highest ","Weighted Impact Score (CxL)","Component Description\n(as needed)"]
["Comp 1","Evaluating",{"$f":"IF(A3<>\"\",INDIRECT(\"'\"&A3&\"'!g2\"),\"\")","v":"Engineer"},{"$f":"IF(A3<>\"\",INDIRECT(\"'\"&A3&\"'!c2\"),\"\")","v":"Supplier"},{"$f":"IF($A3<>\"\",INDIRECT(\"'\"&$A3&\"'!$B$5\"),\"\")","v":"N"},{"$f":"IF($A3<>\"\",INDIRECT(\"'\"&$A3&\"'!$B$6\"),\"\")","v":"N"},{"$f":"IF($A3<>\"\",INDIRECT(\"'\"&$A3&\"'!$B$7\"),\"\")","v":"N"},{"$f":"IF($A3<>\"\",INDIRECT(\"'\"&$A3&\"'!$B$8\"),\"\")","v":"N"},{"$f":"IF($A3<>\"\",INDIRECT(\"'\"&$A3&\"'!$B$9\"),\"\")","v":"N"},{"$f":"IF($A3<>\"\",INDIRECT(\"'\"&$A3&\"'!$B$10\"),\"\")","v":"N"},{"$f":"IF($A3<>\"\",INDIRECT(\"'\"&$A3&\"'!$B$11\"),\"\")","v":"N"},{"$f":"IF($A3<>\"\",INDIRECT(\"'\"&$A3&\"'!$B$12\"),\"\")","v":"N"},{"$f":"IF($A3<>\"\",INDIRECT(\"'\"&$A3&\"'!$B$13\"),\"\")","v":"N"},{"$f":"IF($A3<>\"\",INDIRECT(\"'\"&$A3&\"'!$g$14\"),\"\")","v":0},{"$f":"IF($A3<>\"\",INDIRECT(\"'\"&$A3&\"'!$h$14\"),\"\")","v":0},{"$f":"IF($A3<>\"\",INDIRECT(\"'\"&$A3&\"'!$j$16\"),\"\")","v":0},"Description Comp 1"]
["Comp 2","Evaluating",{"$f":"IF(A4<>\"\",INDIRECT(\"'\"&A4&\"'!g2\"),\"\")","v":"Engineer"},{"$f":"IF(A4<>\"\",INDIRECT(\"'\"&A4&\"'!c2\"),\"\")","v":"Supplier"},{"$f":"IF($A4<>\"\",INDIRECT(\"'\"&$A4&\"'!$B$5\"),\"\")","v":"N"},{"$f":"IF($A4<>\"\",INDIRECT(\"'\"&$A4&\"'!$B$6\"),\"\")","v":"N"},{"$f":"IF($A4<>\"\",INDIRECT(\"'\"&$A4&\"'!$B$7\"),\"\")","v":"N"},{"$f":"IF($A4<>\"\",INDIRECT(\"'\"&$A4&\"'!$B$8\"),\"\")","v":"N"},{"$f":"IF($A4<>\"\",INDIRECT(\"'\"&$A4&\"'!$B$9\"),\"\")","v":"N"},{"$f":"IF($A4<>\"\",INDIRECT(\"'\"&$A4&\"'!$B$10\"),\"\")","v":"N"},{"$f":"IF($A4<>\"\",INDIRECT(\"'\"&$A4&\"'!$B$11\"),\"\")","v":"N"},{"$f":"IF($A4<>\"\",INDIRECT(\"'\"&$A4&\"'!$B$12\"),\"\")","v":"N"},{"$f":"IF($A4<>\"\",INDIRECT(\"'\"&$A4&\"'!$B$13\"),\"\")","v":"N"},{"$f":"IF($A4<>\"\",INDIRECT(\"'\"&$A4&\"'!$g$14\"),\"\")","v":0},{"$f":"IF($A4<>\"\",INDIRECT(\"'\"&$A4&\"'!$h$14\"),\"\")","v":0},{"$f":"IF($A4<>\"\",INDIRECT(\"'\"&$A4&\"'!$j$16\"),\"\")","v":0},"Description Comp 2"]
["Comp 3","Evaluating",{"$f":"IF(A5<>\"\",INDIRECT(\"'\"&A5&\"'!g2\"),\"\")","v":"Engineer"},{"$f":"IF(A5<>\"\",INDIRECT(\"'\"&A5&\"'!c2\"),\"\")","v":"Supplier"},{"$f":"IF($A5<>\"\",INDIRECT(\"'\"&$A5&\"'!$B$5\"),\"\")","v":"N"},{"$f":"IF($A5<>\"\",INDIRECT(\"'\"&$A5&\"'!$B$6\"),\"\")","v":"N"},{"$f":"IF($A5<>\"\",INDIRECT(\"'\"&$A5&\"'!$B$7\"),\"\")","v":"N"},{"$f":"IF($A5<>\"\",INDIRECT(\"'\"&$A5&\"'!$B$8\"),\"\")","v":"N"},{"$f":"IF($A5<>\"\",INDIRECT(\"'\"&$A5&\"'!$B$9\"),\"\")","v":"N"},{"$f":"IF($A5<>\"\",INDIRECT(\"'\"&$A5&\"'!$B$10\"),\"\")","v":"N"},{"$f":"IF($A5<>\"\",INDIRECT(\"'\"&$A5&\"'!$B$11\"),\"\")","v":"N"},{"$f":"IF($A5<>\"\",INDIRECT(\"'\"&$A5&\"'!$B$12\"),\"\")","v":"N"},{"$f":"IF($A5<>\"\",INDIRECT(\"'\"&$A5&\"'!$B$13\"),\"\")","v":"N"},{"$f":"IF($A5<>\"\",INDIRECT(\"'\"&$A5&\"'!$g$14\"),\"\")","v":0},{"$f":"IF($A5<>\"\",INDIRECT(\"'\"&$A5&\"'!$h$14\"),\"\")","v":0},{"$f":"IF($A5<>\"\",INDIRECT(\"'\"&$A5&\"'!$j$16\"),\"\")","v":0},"Description Comp 3"]
["Comp 4","Evaluating",{"$f":"IF(A6<>\"\",INDIRECT(\"'\"&A6&\"'!g2\"),\"\")","v":"Engineer"},{"$f":"IF(A6<>\"\",INDIRECT(\"'\"&A6&\"'!c2\"),\"\")","v":"Supplier"},{"$f":"IF($A6<>\"\",INDIRECT(\"'\"&$A6&\"'!$B$5\"),\"\")","v":"N"},{"$f":"IF($A6<>\"\",INDIRECT(\"'\"&$A6&\"'!$B$6\"),\"\")","v":"N"},{"$f":"IF($A6<>\"\",INDIRECT(\"'\"&$A6&\"'!$B$7\"),\"\")","v":"N"},{"$f":"IF($A6<>\"\",INDIRECT(\"'\"&$A6&\"'!$B$8\"),\"\")","v":"N"},{"$f":"IF($A6<>\"\",INDIRECT(\"'\"&$A6&\"'!$B$9\"),\"\")","v":"N"},{"$f":"IF($A6<>\"\",INDIRECT(\"'\"&$A6&\"'!$B$10\"),\"\")","v":"N"},{"$f":"IF($A6<>\"\",INDIRECT(\"'\"&$A6&\"'!$B$11\"),\"\")","v":"N"},{"$f":"IF($A6<>\"\",INDIRECT(\"'\"&$A6&\"'!$B$12\"),\"\")","v":"N"},{"$f":"IF($A6<>\"\",INDIRECT(\"'\"&$A6&\"'!$B$13\"),\"\")","v":"N"},{"$f":"IF($A6<>\"\",INDIRECT(\"'\"&$A6&\"'!$g$14\"),\"\")","v":0},{"$f":"IF($A6<>\"\",INDIRECT(\"'\"&$A6&\"'!$h$14\"),\"\")","v":0},{"$f":"IF($A6<>\"\",INDIRECT(\"'\"&$A6&\"'!$j$16\"),\"\")","v":0},"Description Comp 4"]
["Comp 5","Evaluating",{"$f":"IF(A7<>\"\",INDIRECT(\"'\"&A7&\"'!g2\"),\"\")","v":"Engineer"},{"$f":"IF(A7<>\"\",INDIRECT(\"'\"&A7&\"'!c2\"),\"\")","v":"Supplier"},{"$f":"IF($A7<>\"\",INDIRECT(\"'\"&$A7&\"'!$B$5\"),\"\")","v":"N"},{"$f":"IF($A7<>\"\",INDIRECT(\"'\"&$A7&\"'!$B$6\"),\"\")","v":"N"},{"$f":"IF($A7<>\"\",INDIRECT(\"'\"&$A7&\"'!$B$7\"),\"\")","v":"N"},{"$f":"IF($A7<>\"\",INDIRECT(\"'\"&$A7&\"'!$B$8\"),\"\")","v":"N"},{"$f":"IF($A7<>\"\",INDIRECT(\"'\"&$A7&\"'!$B$9\"),\"\")","v":"N"},{"$f":"IF($A7<>\"\",INDIRECT(\"'\"&$A7&\"'!$B$10\"),\"\")","v":"N"},{"$f":"IF($A7<>\"\",INDIRECT(\"'\"&$A7&\"'!$B$11\"),\"\")","v":"N"},{"$f":"IF($A7<>\"\",INDIRECT(\"'\"&$A7&\"'!$B$12\"),\"\")","v":"N"},{"$f":"IF($A7<>\"\",INDIRECT(\"'\"&$A7&\"'!$B$13\"),\"\")","v":"N"},{"$f":"IF($A7<>\"\",INDIRECT(\"'\"&$A7&\"'!$g$14\"),\"\")","v":0},{"$f":"IF($A7<>\"\",INDIRECT(\"'\"&$A7&\"'!$h$14\"),\"\")","v":0},{"$f":"IF($A7<>\"\",INDIRECT(\"'\"&$A7&\"'!$j$16\"),\"\")","v":0},"Description Comp 5"]
["Comp 6","Evaluating",{"$f":"IF(A8<>\"\",INDIRECT(\"'\"&A8&\"'!g2\"),\"\")","v":"Engineer"},{"$f":"IF(A8<>\"\",INDIRECT(\"'\"&A8&\"'!c2\"),\"\")","v":"Supplier"},{"$f":"IF($A8<>\"\",INDIRECT(\"'\"&$A8&\"'!$B$5\"),\"\")","v":"N"},{"$f":"IF($A8<>\"\",INDIRECT(\"'\"&$A8&\"'!$B$6\"),\"\")","v":"N"},{"$f":"IF($A8<>\"\",INDIRECT(\"'\"&$A8&\"'!$B$7\"),\"\")","v":"N"},{"$f":"IF($A8<>\"\",INDIRECT(\"'\"&$A8&\"'!$B$8\"),\"\")","v":"N"},{"$f":"IF($A8<>\"\",INDIRECT(\"'\"&$A8&\"'!$B$9\"),\"\")","v":"N"},{"$f":"IF($A8<>\"\",INDIRECT(\"'\"&$A8&\"'!$B$10\"),\"\")","v":"N"},{"$f":"IF($A8<>\"\",INDIRECT(\"'\"&$A8&\"'!$B$11\"),\"\")","v":"N"},{"$f":"IF($A8<>\"\",INDIRECT(\"'\"&$A8&\"'!$B$12\"),\"\")","v":"N"},{"$f":"IF($A8<>\"\",INDIRECT(\"'\"&$A8&\"'!$B$13\"),\"\")","v":"N"},{"$f":"IF($A8<>\"\",INDIRECT(\"'\"&$A8&\"'!$g$14\"),\"\")","v":0},{"$f":"IF($A8<>\"\",INDIRECT(\"'\"&$A8&\"'!$h$14\"),\"\")","v":0},{"$f":"IF($A8<>\"\",INDIRECT(\"'\"&$A8&\"'!$j$16\"),\"\")","v":0},"Description Comp 6"]
["Comp 7","Evaluating",{"$f":"IF(A9<>\"\",INDIRECT(\"'\"&A9&\"'!g2\"),\"\")","v":"Engineer"},{"$f":"IF(A9<>\"\",INDIRECT(\"'\"&A9&\"'!c2\"),\"\")","v":"Supplier"},{"$f":"IF($A9<>\"\",INDIRECT(\"'\"&$A9&\"'!$B$5\"),\"\")","v":"N"},{"$f":"IF($A9<>\"\",INDIRECT(\"'\"&$A9&\"'!$B$6\"),\"\")","v":"N"},{"$f":"IF($A9<>\"\",INDIRECT(\"'\"&$A9&\"'!$B$7\"),\"\")","v":"N"},{"$f":"IF($A9<>\"\",INDIRECT(\"'\"&$A9&\"'!$B$8\"),\"\")","v":"N"},{"$f":"IF($A9<>\"\",INDIRECT(\"'\"&$A9&\"'!$B$9\"),\"\")","v":"N"},{"$f":"IF($A9<>\"\",INDIRECT(\"'\"&$A9&\"'!$B$10\"),\"\")","v":"N"},{"$f":"IF($A9<>\"\",INDIRECT(\"'\"&$A9&\"'!$B$11\"),\"\")","v":"N"},{"$f":"IF($A9<>\"\",INDIRECT(\"'\"&$A9&\"'!$B$12\"),\"\")","v":"N"},{"$f":"IF($A9<>\"\",INDIRECT(\"'\"&$A9&\"'!$B$13\"),\"\")","v":"N"},{"$f":"IF($A9<>\"\",INDIRECT(\"'\"&$A9&\"'!$g$14\"),\"\")","v":0},{"$f":"IF($A9<>\"\",INDIRECT(\"'\"&$A9&\"'!$h$14\"),\"\")","v":0},{"$f":"IF($A9<>\"\",INDIRECT(\"'\"&$A9&\"'!$j$16\"),\"\")","v":0},"Description Comp 7"]
["Comp 8","Evaluating",{"$f":"IF(A10<>\"\",INDIRECT(\"'\"&A10&\"'!g2\"),\"\")","v":"Engineer"},{"$f":"IF(A10<>\"\",INDIRECT(\"'\"&A10&\"'!c2\"),\"\")","v":"Supplier"},{"$f":"IF($A10<>\"\",INDIRECT(\"'\"&$A10&\"'!$B$5\"),\"\")","v":"N"},{"$f":"IF($A10<>\"\",INDIRECT(\"'\"&$A10&\"'!$B$6\"),\"\")","v":"N"},{"$f":"IF($A10<>\"\",INDIRECT(\"'\"&$A10&\"'!$B$7\"),\"\")","v":"N"},{"$f":"IF($A10<>\"\",INDIRECT(\"'\"&$A10&\"'!$B$8\"),\"\")","v":"N"},{"$f":"IF($A10<>\"\",INDIRECT(\"'\"&$A10&\"'!$B$9\"),\"\")","v":"N"},{"$f":"IF($A10<>\"\",INDIRECT(\"'\"&$A10&\"'!$B$10\"),\"\")","v":"N"},{"$f":"IF($A10<>\"\",INDIRECT(\"'\"&$A10&\"'!$B$11\"),\"\")","v":"N"},{"$f":"IF($A10<>\"\",INDIRECT(\"'\"&$A10&\"'!$B$12\"),\"\")","v":"N"},{"$f":"IF($A10<>\"\",INDIRECT(\"'\"&$A10&\"'!$B$13\"),\"\")","v":"N"},{"$f":"IF($A10<>\"\",INDIRECT(\"'\"&$A10&\"'!$g$14\"),\"\")","v":0},{"$f":"IF($A10<>\"\",INDIRECT(\"'\"&$A10&\"'!$h$14\"),\"\")","v":0},{"$f":"IF($A10<>\"\",INDIRECT(\"'\"&$A10&\"'!$j$16\"),\"\")","v":0},"Description Comp 8"]
["Comp 9","Evaluating",{"$f":"IF(A11<>\"\",INDIRECT(\"'\"&A11&\"'!g2\"),\"\")","v":"Engineer"},{"$f":"IF(A11<>\"\",INDIRECT(\"'\"&A11&\"'!c2\"),\"\")","v":"Supplier"},{"$f":"IF($A11<>\"\",INDIRECT(\"'\"&$A11&\"'!$B$5\"),\"\")","v":"N"},{"$f":"IF($A11<>\"\",INDIRECT(\"'\"&$A11&\"'!$B$6\"),\"\")","v":"N"},{"$f":"IF($A11<>\"\",INDIRECT(\"'\"&$A11&\"'!$B$7\"),\"\")","v":"N"},{"$f":"IF($A11<>\"\",INDIRECT(\"'\"&$A11&\"'!$B$8\"),\"\")","v":"N"},{"$f":"IF($A11<>\"\",INDIRECT(\"'\"&$A11&\"'!$B$9\"),\"\")","v":"N"},{"$f":"IF($A11<>\"\",INDIRECT(\"'\"&$A11&\"'!$B$10\"),\"\")","v":"N"},{"$f":"IF($A11<>\"\",INDIRECT(\"'\"&$A11&\"'!$B$11\"),\"\")","v":"N"},{"$f":"IF($A11<>\"\",INDIRECT(\"'\"&$A11&\"'!$B$12\"),\"\")","v":"N"},{"$f":"IF($A11<>\"\",INDIRECT(\"'\"&$A11&\"'!$B$13\"),\"\")","v":"N"},{"$f":"IF($A11<>\"\",INDIRECT(\"'\"&$A11&\"'!$g$14\"),\"\")","v":0},{"$f":"IF($A11<>\"\",INDIRECT(\"'\"&$A11&\"'!$h$14\"),\"\")","v":0},{"$f":"IF($A11<>\"\",INDIRECT(\"'\"&$A11&\"'!$j$16\"),\"\")","v":0},"Description Comp 9"]
["Comp 10","Evaluating",{"$f":"IF(A12<>\"\",INDIRECT(\"'\"&A12&\"'!g2\"),\"\")","v":"Engineer"},{"$f":"IF(A12<>\"\",INDIRECT(\"'\"&A12&\"'!c2\"),\"\")","v":"Supplier"},{"$f":"IF($A12<>\"\",INDIRECT(\"'\"&$A12&\"'!$B$5\"),\"\")","v":"N"},{"$f":"IF($A12<>\"\",INDIRECT(\"'\"&$A12&\"'!$B$6\"),\"\")","v":"N"},{"$f":"IF($A12<>\"\",INDIRECT(\"'\"&$A12&\"'!$B$7\"),\"\")","v":"N"},{"$f":"IF($A12<>\"\",INDIRECT(\"'\"&$A12&\"'!$B$8\"),\"\")","v":"N"},{"$f":"IF($A12<>\"\",INDIRECT(\"'\"&$A12&\"'!$B$9\"),\"\")","v":"N"},{"$f":"IF($A12<>\"\",INDIRECT(\"'\"&$A12&\"'!$B$10\"),\"\")","v":"N"},{"$f":"IF($A12<>\"\",INDIRECT(\"'\"&$A12&\"'!$B$11\"),\"\")","v":"N"},{"$f":"IF($A12<>\"\",INDIRECT(\"'\"&$A12&\"'!$B$12\"),\"\")","v":"N"},{"$f":"IF($A12<>\"\",INDIRECT(\"'\"&$A12&\"'!$B$13\"),\"\")","v":"N"},{"$f":"IF($A12<>\"\",INDIRECT(\"'\"&$A12&\"'!$g$14\"),\"\")","v":0},{"$f":"IF($A12<>\"\",INDIRECT(\"'\"&$A12&\"'!$h$14\"),\"\")","v":0},{"$f":"IF($A12<>\"\",INDIRECT(\"'\"&$A12&\"'!$j$16\"),\"\")","v":0},"Description Comp 10"]
["Comp 11","Evaluating",{"$f":"IF(A13<>\"\",INDIRECT(\"'\"&A13&\"'!g2\"),\"\")","v":"Engineer"},{"$f":"IF(A13<>\"\",INDIRECT(\"'\"&A13&\"'!c2\"),\"\")","v":"Supplier"},{"$f":"IF($A13<>\"\",INDIRECT(\"'\"&$A13&\"'!$B$5\"),\"\")","v":"N"},{"$f":"IF($A13<>\"\",INDIRECT(\"'\"&$A13&\"'!$B$6\"),\"\")","v":"N"},{"$f":"IF($A13<>\"\",INDIRECT(\"'\"&$A13&\"'!$B$7\"),\"\")","v":"N"},{"$f":"IF($A13<>\"\",INDIRECT(\"'\"&$A13&\"'!$B$8\"),\"\")","v":"N"},{"$f":"IF($A13<>\"\",INDIRECT(\"'\"&$A13&\"'!$B$9\"),\"\")","v":"N"},{"$f":"IF($A13<>\"\",INDIRECT(\"'\"&$A13&\"'!$B$10\"),\"\")","v":"N"},{"$f":"IF($A13<>\"\",INDIRECT(\"'\"&$A13&\"'!$B$11\"),\"\")","v":"N"},{"$f":"IF($A13<>\"\",INDIRECT(\"'\"&$A13&\"'!$B$12\"),\"\")","v":"N"},{"$f":"IF($A13<>\"\",INDIRECT(\"'\"&$A13&\"'!$B$13\"),\"\")","v":"N"},{"$f":"IF($A13<>\"\",INDIRECT(\"'\"&$A13&\"'!$g$14\"),\"\")","v":0},{"$f":"IF($A13<>\"\",INDIRECT(\"'\"&$A13&\"'!$h$14\"),\"\")","v":0},{"$f":"IF($A13<>\"\",INDIRECT(\"'\"&$A13&\"'!$j$16\"),\"\")","v":0},"Description Comp 11"]
["Comp 12","Evaluating",{"$f":"IF(A14<>\"\",INDIRECT(\"'\"&A14&\"'!g2\"),\"\")","v":"Engineer"},{"$f":"IF(A14<>\"\",INDIRECT(\"'\"&A14&\"'!c2\"),\"\")","v":"Supplier"},{"$f":"IF($A14<>\"\",INDIRECT(\"'\"&$A14&\"'!$B$5\"),\"\")","v":"N"},{"$f":"IF($A14<>\"\",INDIRECT(\"'\"&$A14&\"'!$B$6\"),\"\")","v":"N"},{"$f":"IF($A14<>\"\",INDIRECT(\"'\"&$A14&\"'!$B$7\"),\"\")","v":"N"},{"$f":"IF($A14<>\"\",INDIRECT(\"'\"&$A14&\"'!$B$8\"),\"\")","v":"N"},{"$f":"IF($A14<>\"\",INDIRECT(\"'\"&$A14&\"'!$B$9\"),\"\")","v":"N"},{"$f":"IF($A14<>\"\",INDIRECT(\"'\"&$A14&\"'!$B$10\"),\"\")","v":"N"},{"$f":"IF($A14<>\"\",INDIRECT(\"'\"&$A14&\"'!$B$11\"),\"\")","v":"N"},{"$f":"IF($A14<>\"\",INDIRECT(\"'\"&$A14&\"'!$B$12\"),\"\")","v":"N"},{"$f":"IF($A14<>\"\",INDIRECT(\"'\"&$A14&\"'!$B$13\"),\"\")","v":"N"},{"$f":"IF($A14<>\"\",INDIRECT(\"'\"&$A14&\"'!$g$14\"),\"\")","v":0},{"$f":"IF($A14<>\"\",INDIRECT(\"'\"&$A14&\"'!$h$14\"),\"\")","v":0},{"$f":"IF($A14<>\"\",INDIRECT(\"'\"&$A14&\"'!$j$16\"),\"\")","v":0},"Description Comp 12"]
["Comp 13","Evaluating",{"$f":"IF(A15<>\"\",INDIRECT(\"'\"&A15&\"'!g2\"),\"\")","v":"Engineer"},{"$f":"IF(A15<>\"\",INDIRECT(\"'\"&A15&\"'!c2\"),\"\")","v":"Supplier"},{"$f":"IF($A15<>\"\",INDIRECT(\"'\"&$A15&\"'!$B$5\"),\"\")","v":"N"},{"$f":"IF($A15<>\"\",INDIRECT(\"'\"&$A15&\"'!$B$6\"),\"\")","v":"N"},{"$f":"IF($A15<>\"\",INDIRECT(\"'\"&$A15&\"'!$B$7\"),\"\")","v":"N"},{"$f":"IF($A15<>\"\",INDIRECT(\"'\"&$A15&\"'!$B$8\"),\"\")","v":"N"},{"$f":"IF($A15<>\"\",INDIRECT(\"'\"&$A15&\"'!$B$9\"),\"\")","v":"N"},{"$f":"IF($A15<>\"\",INDIRECT(\"'\"&$A15&\"'!$B$10\"),\"\")","v":"N"},{"$f":"IF($A15<>\"\",INDIRECT(\"'\"&$A15&\"'!$B$11\"),\"\")","v":"N"},{"$f":"IF($A15<>\"\",INDIRECT(\"'\"&$A15&\"'!$B$12\"),\"\")","v":"N"},{"$f":"IF($A15<>\"\",INDIRECT(\"'\"&$A15&\"'!$B$13\"),\"\")","v":"N"},{"$f":"IF($A15<>\"\",INDIRECT(\"'\"&$A15&\"'!$g$14\"),\"\")","v":0},{"$f":"IF($A15<>\"\",INDIRECT(\"'\"&$A15&\"'!$h$14\"),\"\")","v":0},{"$f":"IF($A15<>\"\",INDIRECT(\"'\"&$A15&\"'!$j$16\"),\"\")","v":0},"Description Comp 13"]
["Comp 14","Evaluating",{"$f":"IF(A16<>\"\",INDIRECT(\"'\"&A16&\"'!g2\"),\"\")","v":"Engineer"},{"$f":"IF(A16<>\"\",INDIRECT(\"'\"&A16&\"'!c2\"),\"\")","v":"Supplier"},{"$f":"IF($A16<>\"\",INDIRECT(\"'\"&$A16&\"'!$B$5\"),\"\")","v":"N"},{"$f":"IF($A16<>\"\",INDIRECT(\"'\"&$A16&\"'!$B$6\"),\"\")","v":"N"},{"$f":"IF($A16<>\"\",INDIRECT(\"'\"&$A16&\"'!$B$7\"),\"\")","v":"N"},{"$f":"IF($A16<>\"\",INDIRECT(\"'\"&$A16&\"'!$B$8\"),\"\")","v":"N"},{"$f":"IF($A16<>\"\",INDIRECT(\"'\"&$A16&\"'!$B$9\"),\"\")","v":"N"},{"$f":"IF($A16<>\"\",INDIRECT(\"'\"&$A16&\"'!$B$10\"),\"\")","v":"N"},{"$f":"IF($A16<>\"\",INDIRECT(\"'\"&$A16&\"'!$B$11\"),\"\")","v":"N"},{"$f":"IF($A16<>\"\",INDIRECT(\"'\"&$A16&\"'!$B$12\"),\"\")","v":"N"},{"$f":"IF($A16<>\"\",INDIRECT(\"'\"&$A16&\"'!$B$13\"),\"\")","v":"N"},{"$f":"IF($A16<>\"\",INDIRECT(\"'\"&$A16&\"'!$g$14\"),\"\")","v":0},{"$f":"IF($A16<>\"\",INDIRECT(\"'\"&$A16&\"'!$h$14\"),\"\")","v":0},{"$f":"IF($A16<>\"\",INDIRECT(\"'\"&$A16&\"'!$j$16\"),\"\")","v":0},"Description Comp 14"]
["Comp 15","Evaluating",{"$f":"IF(A17<>\"\",INDIRECT(\"'\"&A17&\"'!g2\"),\"\")","v":"Engineer"},{"$f":"IF(A17<>\"\",INDIRECT(\"'\"&A17&\"'!c2\"),\"\")","v":"Supplier"},{"$f":"IF($A17<>\"\",INDIRECT(\"'\"&$A17&\"'!$B$5\"),\"\")","v":"N"},{"$f":"IF($A17<>\"\",INDIRECT(\"'\"&$A17&\"'!$B$6\"),\"\")","v":"N"},{"$f":"IF($A17<>\"\",INDIRECT(\"'\"&$A17&\"'!$B$7\"),\"\")","v":"N"},{"$f":"IF($A17<>\"\",INDIRECT(\"'\"&$A17&\"'!$B$8\"),\"\")","v":"N"},{"$f":"IF($A17<>\"\",INDIRECT(\"'\"&$A17&\"'!$B$9\"),\"\")","v":"N"},{"$f":"IF($A17<>\"\",INDIRECT(\"'\"&$A17&\"'!$B$10\"),\"\")","v":"N"},{"$f":"IF($A17<>\"\",INDIRECT(\"'\"&$A17&\"'!$B$11\"),\"\")","v":"N"},{"$f":"IF($A17<>\"\",INDIRECT(\"'\"&$A17&\"'!$B$12\"),\"\")","v":"N"},{"$f":"IF($A17<>\"\",INDIRECT(\"'\"&$A17&\"'!$B$13\"),\"\")","v":"N"},{"$f":"IF($A17<>\"\",INDIRECT(\"'\"&$A17&\"'!$g$14\"),\"\")","v":0},{"$f":"IF($A17<>\"\",INDIRECT(\"'\"&$A17&\"'!$h$14\"),\"\")","v":0},{"$f":"IF($A17<>\"\",INDIRECT(\"'\"&$A17&\"'!$j$16\"),\"\")","v":0},"Description Comp 15"]
["Comp 16","Evaluating",{"$f":"IF(A18<>\"\",INDIRECT(\"'\"&A18&\"'!g2\"),\"\")","v":"Engineer"},{"$f":"IF(A18<>\"\",INDIRECT(\"'\"&A18&\"'!c2\"),\"\")","v":"Supplier"},{"$f":"IF($A18<>\"\",INDIRECT(\"'\"&$A18&\"'!$B$5\"),\"\")","v":"N"},{"$f":"IF($A18<>\"\",INDIRECT(\"'\"&$A18&\"'!$B$6\"),\"\")","v":"N"},{"$f":"IF($A18<>\"\",INDIRECT(\"'\"&$A18&\"'!$B$7\"),\"\")","v":"N"},{"$f":"IF($A18<>\"\",INDIRECT(\"'\"&$A18&\"'!$B$8\"),\"\")","v":"N"},{"$f":"IF($A18<>\"\",INDIRECT(\"'\"&$A18&\"'!$B$9\"),\"\")","v":"N"},{"$f":"IF($A18<>\"\",INDIRECT(\"'\"&$A18&\"'!$B$10\"),\"\")","v":"N"},{"$f":"IF($A18<>\"\",INDIRECT(\"'\"&$A18&\"'!$B$11\"),\"\")","v":"N"},{"$f":"IF($A18<>\"\",INDIRECT(\"'\"&$A18&\"'!$B$12\"),\"\")","v":"N"},{"$f":"IF($A18<>\"\",INDIRECT(\"'\"&$A18&\"'!$B$13\"),\"\")","v":"N"},{"$f":"IF($A18<>\"\",INDIRECT(\"'\"&$A18&\"'!$g$14\"),\"\")","v":0},{"$f":"IF($A18<>\"\",INDIRECT(\"'\"&$A18&\"'!$h$14\"),\"\")","v":0},{"$f":"IF($A18<>\"\",INDIRECT(\"'\"&$A18&\"'!$j$16\"),\"\")","v":0},"Description Comp 16"]
["Comp 17","Evaluating",{"$f":"IF(A19<>\"\",INDIRECT(\"'\"&A19&\"'!g2\"),\"\")","v":"Engineer"},{"$f":"IF(A19<>\"\",INDIRECT(\"'\"&A19&\"'!c2\"),\"\")","v":"Supplier"},{"$f":"IF($A19<>\"\",INDIRECT(\"'\"&$A19&\"'!$B$5\"),\"\")","v":"N"},{"$f":"IF($A19<>\"\",INDIRECT(\"'\"&$A19&\"'!$B$6\"),\"\")","v":"N"},{"$f":"IF($A19<>\"\",INDIRECT(\"'\"&$A19&\"'!$B$7\"),\"\")","v":"N"},{"$f":"IF($A19<>\"\",INDIRECT(\"'\"&$A19&\"'!$B$8\"),\"\")","v":"N"},{"$f":"IF($A19<>\"\",INDIRECT(\"'\"&$A19&\"'!$B$9\"),\"\")","v":"N"},{"$f":"IF($A19<>\"\",INDIRECT(\"'\"&$A19&\"'!$B$10\"),\"\")","v":"N"},{"$f":"IF($A19<>\"\",INDIRECT(\"'\"&$A19&\"'!$B$11\"),\"\")","v":"N"},{"$f":"IF($A19<>\"\",INDIRECT(\"'\"&$A19&\"'!$B$12\"),\"\")","v":"N"},{"$f":"IF($A19<>\"\",INDIRECT(\"'\"&$A19&\"'!$B$13\"),\"\")","v":"N"},{"$f":"IF($A19<>\"\",INDIRECT(\"'\"&$A19&\"'!$g$14\"),\"\")","v":0},{"$f":"IF($A19<>\"\",INDIRECT(\"'\"&$A19&\"'!$h$14\"),\"\")","v":0},{"$f":"IF($A19<>\"\",INDIRECT(\"'\"&$A19&\"'!$j$16\"),\"\")","v":0},"Description Comp 17"]
["Comp 18","Evaluating",{"$f":"IF(A20<>\"\",INDIRECT(\"'\"&A20&\"'!g2\"),\"\")","v":"Engineer"},{"$f":"IF(A20<>\"\",INDIRECT(\"'\"&A20&\"'!c2\"),\"\")","v":"Supplier"},{"$f":"IF($A20<>\"\",INDIRECT(\"'\"&$A20&\"'!$B$5\"),\"\")","v":"N"},{"$f":"IF($A20<>\"\",INDIRECT(\"'\"&$A20&\"'!$B$6\"),\"\")","v":"N"},{"$f":"IF($A20<>\"\",INDIRECT(\"'\"&$A20&\"'!$B$7\"),\"\")","v":"N"},{"$f":"IF($A20<>\"\",INDIRECT(\"'\"&$A20&\"'!$B$8\"),\"\")","v":"N"},{"$f":"IF($A20<>\"\",INDIRECT(\"'\"&$A20&\"'!$B$9\"),\"\")","v":"N"},{"$f":"IF($A20<>\"\",INDIRECT(\"'\"&$A20&\"'!$B$10\"),\"\")","v":"N"},{"$f":"IF($A20<>\"\",INDIRECT(\"'\"&$A20&\"'!$B$11\"),\"\")","v":"N"},{"$f":"IF($A20<>\"\",INDIRECT(\"'\"&$A20&\"'!$B$12\"),\"\")","v":"N"},{"$f":"IF($A20<>\"\",INDIRECT(\"'\"&$A20&\"'!$B$13\"),\"\")","v":"N"},{"$f":"IF($A20<>\"\",INDIRECT(\"'\"&$A20&\"'!$g$14\"),\"\")","v":0},{"$f":"IF($A20<>\"\",INDIRECT(\"'\"&$A20&\"'!$h$14\"),\"\")","v":0},{"$f":"IF($A20<>\"\",INDIRECT(\"'\"&$A20&\"'!$j$16\"),\"\")","v":0},"Description Comp 18"]
["Comp 19","Evaluating",{"$f":"IF(A21<>\"\",INDIRECT(\"'\"&A21&\"'!g2\"),\"\")","v":"Engineer"},{"$f":"IF(A21<>\"\",INDIRECT(\"'\"&A21&\"'!c2\"),\"\")","v":"Supplier"},{"$f":"IF($A21<>\"\",INDIRECT(\"'\"&$A21&\"'!$B$5\"),\"\")","v":"N"},{"$f":"IF($A21<>\"\",INDIRECT(\"'\"&$A21&\"'!$B$6\"),\"\")","v":"N"},{"$f":"IF($A21<>\"\",INDIRECT(\"'\"&$A21&\"'!$B$7\"),\"\")","v":"N"},{"$f":"IF($A21<>\"\",INDIRECT(\"'\"&$A21&\"'!$B$8\"),\"\")","v":"N"},{"$f":"IF($A21<>\"\",INDIRECT(\"'\"&$A21&\"'!$B$9\"),\"\")","v":"N"},{"$f":"IF($A21<>\"\",INDIRECT(\"'\"&$A21&\"'!$B$10\"),\"\")","v":"N"},{"$f":"IF($A21<>\"\",INDIRECT(\"'\"&$A21&\"'!$B$11\"),\"\")","v":"N"},{"$f":"IF($A21<>\"\",INDIRECT(\"'\"&$A21&\"'!$B$12\"),\"\")","v":"N"},{"$f":"IF($A21<>\"\",INDIRECT(\"'\"&$A21&\"'!$B$13\"),\"\")","v":"N"},{"$f":"IF($A21<>\"\",INDIRECT(\"'\"&$A21&\"'!$g$14\"),\"\")","v":0},{"$f":"IF($A21<>\"\",INDIRECT(\"'\"&$A21&\"'!$h$14\"),\"\")","v":0},{"$f":"IF($A21<>\"\",INDIRECT(\"'\"&$A21&\"'!$j$16\"),\"\")","v":0},"Description Comp 19"]
["Comp 20","Evaluating",{"$f":"IF(A22<>\"\",INDIRECT(\"'\"&A22&\"'!g2\"),\"\")","v":"Engineer"},{"$f":"IF(A22<>\"\",INDIRECT(\"'\"&A22&\"'!c2\"),\"\")","v":"Supplier"},{"$f":"IF($A22<>\"\",INDIRECT(\"'\"&$A22&\"'!$B$5\"),\"\")","v":"N"},{"$f":"IF($A22<>\"\",INDIRECT(\"'\"&$A22&\"'!$B$6\"),\"\")","v":"N"},{"$f":"IF($A22<>\"\",INDIRECT(\"'\"&$A22&\"'!$B$7\"),\"\")","v":"N"},{"$f":"IF($A22<>\"\",INDIRECT(\"'\"&$A22&\"'!$B$8\"),\"\")","v":"N"},{"$f":"IF($A22<>\"\",INDIRECT(\"'\"&$A22&\"'!$B$9\"),\"\")","v":"N"},{"$f":"IF($A22<>\"\",INDIRECT(\"'\"&$A22&\"'!$B$10\"),\"\")","v":"N"},{"$f":"IF($A22<>\"\",INDIRECT(\"'\"&$A22&\"'!$B$11\"),\"\")","v":"N"},{"$f":"IF($A22<>\"\",INDIRECT(\"'\"&$A22&\"'!$B$12\"),\"\")","v":"N"},{"$f":"IF($A22<>\"\",INDIRECT(\"'\"&$A22&\"'!$B$13\"),\"\")","v":"N"},{"$f":"IF($A22<>\"\",INDIRECT(\"'\"&$A22&\"'!$g$14\"),\"\")","v":0},{"$f":"IF($A22<>\"\",INDIRECT(\"'\"&$A22&\"'!$h$14\"),\"\")","v":0},{"$f":"IF($A22<>\"\",INDIRECT(\"'\"&$A22&\"'!$j$16\"),\"\")","v":0},"Description Comp 20"]
["Comp 21","Evaluating",{"$f":"IF(A23<>\"\",INDIRECT(\"'\"&A23&\"'!g2\"),\"\")","v":"Engineer"},{"$f":"IF(A23<>\"\",INDIRECT(\"'\"&A23&\"'!c2\"),\"\")","v":"Supplier"},{"$f":"IF($A23<>\"\",INDIRECT(\"'\"&$A23&\"'!$B$5\"),\"\")","v":"N"},{"$f":"IF($A23<>\"\",INDIRECT(\"'\"&$A23&\"'!$B$6\"),\"\")","v":"N"},{"$f":"IF($A23<>\"\",INDIRECT(\"'\"&$A23&\"'!$B$7\"),\"\")","v":"N"},{"$f":"IF($A23<>\"\",INDIRECT(\"'\"&$A23&\"'!$B$8\"),\"\")","v":"N"},{"$f":"IF($A23<>\"\",INDIRECT(\"'\"&$A23&\"'!$B$9\"),\"\")","v":"N"},{"$f":"IF($A23<>\"\",INDIRECT(\"'\"&$A23&\"'!$B$10\"),\"\")","v":"N"},{"$f":"IF($A23<>\"\",INDIRECT(\"'\"&$A23&\"'!$B$11\"),\"\")","v":"N"},{"$f":"IF($A23<>\"\",INDIRECT(\"'\"&$A23&\"'!$B$12\"),\"\")","v":"N"},{"$f":"IF($A23<>\"\",INDIRECT(\"'\"&$A23&\"'!$B$13\"),\"\")","v":"N"},{"$f":"IF($A23<>\"\",INDIRECT(\"'\"&$A23&\"'!$g$14\"),\"\")","v":0},{"$f":"IF($A23<>\"\",INDIRECT(\"'\"&$A23&\"'!$h$14\"),\"\")","v":0},{"$f":"IF($A23<>\"\",INDIRECT(\"'\"&$A23&\"'!$j$16\"),\"\")","v":0},"Description Comp 21"]
["Comp 22","Evaluating",{"$f":"IF(A24<>\"\",INDIRECT(\"'\"&A24&\"'!g2\"),\"\")","v":"Engineer"},{"$f":"IF(A24<>\"\",INDIRECT(\"'\"&A24&\"'!c2\"),\"\")","v":"Supplier"},{"$f":"IF($A24<>\"\",INDIRECT(\"'\"&$A24&\"'!$B$5\"),\"\")","v":"N"},{"$f":"IF($A24<>\"\",INDIRECT(\"'\"&$A24&\"'!$B$6\"),\"\")","v":"N"},{"$f":"IF($A24<>\"\",INDIRECT(\"'\"&$A24&\"'!$B$7\"),\"\")","v":"N"},{"$f":"IF($A24<>\"\",INDIRECT(\"'\"&$A24&\"'!$B$8\"),\"\")","v":"N"},{"$f":"IF($A24<>\"\",INDIRECT(\"'\"&$A24&\"'!$B$9\"),\"\")","v":"N"},{"$f":"IF($A24<>\"\",INDIRECT(\"'\"&$A24&\"'!$B$10\"),\"\")","v":"N"},{"$f":"IF($A24<>\"\",INDIRECT(\"'\"&$A24&\"'!$B$11\"),\"\")","v":"N"},{"$f":"IF($A24<>\"\",INDIRECT(\"'\"&$A24&\"'!$B$12\"),\"\")","v":"N"},{"$f":"IF($A24<>\"\",INDIRECT(\"'\"&$A24&\"'!$B$13\"),\"\")","v":"N"},{"$f":"IF($A24<>\"\",INDIRECT(\"'\"&$A24&\"'!$g$14\"),\"\")","v":0},{"$f":"IF($A24<>\"\",INDIRECT(\"'\"&$A24&\"'!$h$14\"),\"\")","v":0},{"$f":"IF($A24<>\"\",INDIRECT(\"'\"&$A24&\"'!$j$16\"),\"\")","v":0},"Description Comp 22"]
["Comp 23","Evaluating",{"$f":"IF(A25<>\"\",INDIRECT(\"'\"&A25&\"'!g2\"),\"\")","v":"Engineer"},{"$f":"IF(A25<>\"\",INDIRECT(\"'\"&A25&\"'!c2\"),\"\")","v":"Supplier"},{"$f":"IF($A25<>\"\",INDIRECT(\"'\"&$A25&\"'!$B$5\"),\"\")","v":"N"},{"$f":"IF($A25<>\"\",INDIRECT(\"'\"&$A25&\"'!$B$6\"),\"\")","v":"N"},{"$f":"IF($A25<>\"\",INDIRECT(\"'\"&$A25&\"'!$B$7\"),\"\")","v":"N"},{"$f":"IF($A25<>\"\",INDIRECT(\"'\"&$A25&\"'!$B$8\"),\"\")","v":"N"},{"$f":"IF($A25<>\"\",INDIRECT(\"'\"&$A25&\"'!$B$9\"),\"\")","v":"N"},{"$f":"IF($A25<>\"\",INDIRECT(\"'\"&$A25&\"'!$B$10\"),\"\")","v":"N"},{"$f":"IF($A25<>\"\",INDIRECT(\"'\"&$A25&\"'!$B$11\"),\"\")","v":"N"},{"$f":"IF($A25<>\"\",INDIRECT(\"'\"&$A25&\"'!$B$12\"),\"\")","v":"N"},{"$f":"IF($A25<>\"\",INDIRECT(\"'\"&$A25&\"'!$B$13\"),\"\")","v":"N"},{"$f":"IF($A25<>\"\",INDIRECT(\"'\"&$A25&\"'!$g$14\"),\"\")","v":0},{"$f":"IF($A25<>\"\",INDIRECT(\"'\"&$A25&\"'!$h$14\"),\"\")","v":0},{"$f":"IF($A25<>\"\",INDIRECT(\"'\"&$A25&\"'!$j$16\"),\"\")","v":0},"Description Comp 23"]
["Comp 24","Evaluating",{"$f":"IF(A26<>\"\",INDIRECT(\"'\"&A26&\"'!g2\"),\"\")","v":"Engineer"},{"$f":"IF(A26<>\"\",INDIRECT(\"'\"&A26&\"'!c2\"),\"\")","v":"Supplier"},{"$f":"IF($A26<>\"\",INDIRECT(\"'\"&$A26&\"'!$B$5\"),\"\")","v":"N"},{"$f":"IF($A26<>\"\",INDIRECT(\"'\"&$A26&\"'!$B$6\"),\"\")","v":"N"},{"$f":"IF($A26<>\"\",INDIRECT(\"'\"&$A26&\"'!$B$7\"),\"\")","v":"N"},{"$f":"IF($A26<>\"\",INDIRECT(\"'\"&$A26&\"'!$B$8\"),\"\")","v":"N"},{"$f":"IF($A26<>\"\",INDIRECT(\"'\"&$A26&\"'!$B$9\"),\"\")","v":"N"},{"$f":"IF($A26<>\"\",INDIRECT(\"'\"&$A26&\"'!$B$10\"),\"\")","v":"N"},{"$f":"IF($A26<>\"\",INDIRECT(\"'\"&$A26&\"'!$B$11\"),\"\")","v":"N"},{"$f":"IF($A26<>\"\",INDIRECT(\"'\"&$A26&\"'!$B$12\"),\"\")","v":"N"},{"$f":"IF($A26<>\"\",INDIRECT(\"'\"&$A26&\"'!$B$13\"),\"\")","v":"N"},{"$f":"IF($A26<>\"\",INDIRECT(\"'\"&$A26&\"'!$g$14\"),\"\")","v":0},{"$f":"IF($A26<>\"\",INDIRECT(\"'\"&$A26&\"'!$h$14\"),\"\")","v":0},{"$f":"IF($A26<>\"\",INDIRECT(\"'\"&$A26&\"'!$j$16\"),\"\")","v":0},"Description Comp 24"]
["Comp 25","Evaluating",{"$f":"IF(A27<>\"\",INDIRECT(\"'\"&A27&\"'!g2\"),\"\")","v":"Engineer"},{"$f":"IF(A27<>\"\",INDIRECT(\"'\"&A27&\"'!c2\"),\"\")","v":"Supplier"},{"$f":"IF($A27<>\"\",INDIRECT(\"'\"&$A27&\"'!$B$5\"),\"\")","v":"N"},{"$f":"IF($A27<>\"\",INDIRECT(\"'\"&$A27&\"'!$B$6\"),\"\")","v":"N"},{"$f":"IF($A27<>\"\",INDIRECT(\"'\"&$A27&\"'!$B$7\"),\"\")","v":"N"},{"$f":"IF($A27<>\"\",INDIRECT(\"'\"&$A27&\"'!$B$8\"),\"\")","v":"N"},{"$f":"IF($A27<>\"\",INDIRECT(\"'\"&$A27&\"'!$B$9\"),\"\")","v":"N"},{"$f":"IF($A27<>\"\",INDIRECT(\"'\"&$A27&\"'!$B$10\"),\"\")","v":"N"},{"$f":"IF($A27<>\"\",INDIRECT(\"'\"&$A27&\"'!$B$11\"),\"\")","v":"N"},{"$f":"IF($A27<>\"\",INDIRECT(\"'\"&$A27&\"'!$B$12\"),\"\")","v":"N"},{"$f":"IF($A27<>\"\",INDIRECT(\"'\"&$A27&\"'!$B$13\"),\"\")","v":"N"},{"$f":"IF($A27<>\"\",INDIRECT(\"'\"&$A27&\"'!$g$14\"),\"\")","v":0},{"$f":"IF($A27<>\"\",INDIRECT(\"'\"&$A27&\"'!$h$14\"),\"\")","v":0},{"$f":"IF($A27<>\"\",INDIRECT(\"'\"&$A27&\"'!$j$16\"),\"\")","v":0},"Description Comp 25"]
[]
[null,null,null,"Total Y:",{"$f":"COUNTIFS(E$3:E$27,\"Y\")","v":0},0,0,0,0,0,0,0,0]
[null,null,null,"Total N:",{"$f":"COUNTIFS(E$3:E$27,\"N\")","v":25},25,25,25,25,25,25,25,25]

{"sheet":"Risk Rating","index":5,"n_rows":51,"n_cols":29,"rows_kept":51,"cut":false,"hidden":false,"merged":[[2,28,15,31],[0,6,0,25],[50,6,52,25]]}
["#","Component","Likelihood","Consequence","Weighted Impact Score",null,{"$f":"company_name&\" - \"&system_name","v":"Company Name - System Name"},null,null,null,null,null,null,null,null,null,null,null,null,null,null,null,null,null,null,null,null,null,"Component Summary Sheet"]
[1,{"$f":"'Component Summary Sheet'!A3","v":"Comp 1"},{"$f":"'Component Summary Sheet'!N3","v":0},{"$f":"'Component Summary Sheet'!O3","v":0},{"$f":"'Component Summary Sheet'!P3","v":0}]
[2,{"$f":"'Component Summary Sheet'!A4","v":"Comp 2"},{"$f":"'Component Summary Sheet'!N4","v":0},{"$f":"'Component Summary Sheet'!O4","v":0},{"$f":"'Component Summary Sheet'!P4","v":0},null,null,null,null,null,null,null,null,null,null,null,null,null,null,null,null,null,null,null,null,null,null,null,"Correcting Chart Data Labels in Excel:  After entering your L/C scores if the data labels appear as empty they must be reset in Excel.  Follow this procedure to make your data labels appear properly.\n1. Right Click on the data label box\n2. Select \"Format Data Label\"\n3. In the right hand drop down box select the far right \"Label Options\" Category\n4. Uncheck the box \"Value From Cells\"\n5. Re-Check the box \"Value From Cells\"\n6. Click \"Reset Label Text\"\n7. Close the EDIT drop down box"]
[3,{"$f":"'Component Summary Sheet'!A5","v":"Comp 3"},{"$f":"'Component Summary Sheet'!N5","v":0},{"$f":"'Component Summary Sheet'!O5","v":0},{"$f":"'Component Summary Sheet'!P5","v":0}]
[4,{"$f":"'Component Summary Sheet'!A6","v":"Comp 4"},{"$f":"'Component Summary Sheet'!N6","v":0},{"$f":"'Component Summary Sheet'!O6","v":0},{"$f":"'Component Summary Sheet'!P6","v":0}]
[5,{"$f":"'Component Summary Sheet'!A7","v":"Comp 5"},{"$f":"'Component Summary Sheet'!N7","v":0},{"$f":"'Component Summary Sheet'!O7","v":0},{"$f":"'Component Summary Sheet'!P7","v":0}]
[6,{"$f":"'Component Summary Sheet'!A8","v":"Comp 6"},{"$f":"'Component Summary Sheet'!N8","v":0},{"$f":"'Component Summary Sheet'!O8","v":0},{"$f":"'Component Summary Sheet'!P8","v":0}]
[7,{"$f":"'Component Summary Sheet'!A9","v":"Comp 7"},{"$f":"'Component Summary Sheet'!N9","v":0},{"$f":"'Component Summary Sheet'!O9","v":0},{"$f":"'Component Summary Sheet'!P9","v":0}]
[8,{"$f":"'Component Summary Sheet'!A10","v":"Comp 8"},{"$f":"'Component Summary Sheet'!N10","v":0},{"$f":"'Component Summary Sheet'!O10","v":0},{"$f":"'Component Summary Sheet'!P10","v":0}]
[9,{"$f":"'Component Summary Sheet'!A11","v":"Comp 9"},{"$f":"'Component Summary Sheet'!N11","v":0},{"$f":"'Component Summary Sheet'!O11","v":0},{"$f":"'Component Summary Sheet'!P11","v":0}]
[10,{"$f":"'Component Summary Sheet'!A12","v":"Comp 10"},{"$f":"'Component Summary Sheet'!N12","v":0},{"$f":"'Component Summary Sheet'!O12","v":0},{"$f":"'Component Summary Sheet'!P12","v":0}]
[11,{"$f":"'Component Summary Sheet'!A13","v":"Comp 11"},{"$f":"'Component Summary Sheet'!N13","v":0},{"$f":"'Component Summary Sheet'!O13","v":0},{"$f":"'Component Summary Sheet'!P13","v":0}]
[12,{"$f":"'Component Summary Sheet'!A14","v":"Comp 12"},{"$f":"'Component Summary Sheet'!N14","v":0},{"$f":"'Component Summary Sheet'!O14","v":0},{"$f":"'Component Summary Sheet'!P14","v":0}]
[13,{"$f":"'Component Summary Sheet'!A15","v":"Comp 13"},{"$f":"'Component Summary Sheet'!N15","v":0},{"$f":"'Component Summary Sheet'!O15","v":0},{"$f":"'Component Summary Sheet'!P15","v":0}]
[14,{"$f":"'Component Summary Sheet'!A16","v":"Comp 14"},{"$f":"'Component Summary Sheet'!N16","v":0},{"$f":"'Component Summary Sheet'!O16","v":0},{"$f":"'Component Summary Sheet'!P16","v":0}]
[15,{"$f":"'Component Summary Sheet'!A17","v":"Comp 15"},{"$f":"'Component Summary Sheet'!N17","v":0},{"$f":"'Component Summary Sheet'!O17","v":0},{"$f":"'Component Summary Sheet'!P17","v":0}]
[16,{"$f":"'Component Summary Sheet'!A18","v":"Comp 16"},{"$f":"'Component Summary Sheet'!N18","v":0},{"$f":"'Component Summary Sheet'!O18","v":0},{"$f":"'Component Summary Sheet'!P18","v":0}]
[17,{"$f":"'Component Summary Sheet'!A19","v":"Comp 17"},{"$f":"'Component Summary Sheet'!N19","v":0},{"$f":"'Component Summary Sheet'!O19","v":0},{"$f":"'Component Summary Sheet'!P19","v":0}]
[18,{"$f":"'Component Summary Sheet'!A20","v":"Comp 18"},{"$f":"'Component Summary Sheet'!N20","v":0},{"$f":"'Component Summary Sheet'!O20","v":0},{"$f":"'Component Summary Sheet'!P20","v":0}]
[19,{"$f":"'Component Summary Sheet'!A21","v":"Comp 19"},{"$f":"'Component Summary Sheet'!N21","v":0},{"$f":"'Component Summary Sheet'!O21","v":0},{"$f":"'Component Summary Sheet'!P21","v":0}]
[20,{"$f":"'Component Summary Sheet'!A22","v":"Comp 20"},{"$f":"'Component Summary Sheet'!N22","v":0},{"$f":"'Component Summary Sheet'!O22","v":0},{"$f":"'Component Summary Sheet'!P22","v":0}]
[21,{"$f":"'Component Summary Sheet'!A23","v":"Comp 21"},{"$f":"'Component Summary Sheet'!N23","v":0},{"$f":"'Component Summary Sheet'!O23","v":0},{"$f":"'Component Summary Sheet'!P23","v":0}]
[22,{"$f":"'Component Summary Sheet'!A24","v":"Comp 22"},{"$f":"'Component Summary Sheet'!N24","v":0},{"$f":"'Component Summary Sheet'!O24","v":0},{"$f":"'Component Summary Sheet'!P24","v":0}]
[23,{"$f":"'Component Summary Sheet'!A25","v":"Comp 23"},{"$f":"'Component Summary Sheet'!N25","v":0},{"$f":"'Component Summary Sheet'!O25","v":0},{"$f":"'Component Summary Sheet'!P25","v":0}]
[24,{"$f":"'Component Summary Sheet'!A26","v":"Comp 24"},{"$f":"'Component Summary Sheet'!N26","v":0},{"$f":"'Component Summary Sheet'!O26","v":0},{"$f":"'Component Summary Sheet'!P26","v":0}]
[25,{"$f":"'Component Summary Sheet'!A27","v":"Comp 25"},{"$f":"'Component Summary Sheet'!N27","v":0},{"$f":"'Component Summary Sheet'!O27","v":0},{"$f":"'Component Summary Sheet'!P27","v":0}]
[]
[]
[]
[]
[]
[]
[]
[]
[]
[]
[]
[]
[]
[]
[]
[]
[]
[]
[]
[]
[]
[]
[]
[]
[null,null,null,null,null,null,{"$f":"distro_statement","v":"DISTRIBUTION STATEMENT: No Distribution Statement Determined. "}]

{"sheet":"Comp 1","index":6,"n_rows":43,"n_cols":21,"rows_kept":43,"cut":false,"hidden":false,"merged":[[1,16,1,20],[2,8,3,8],[2,9,3,9],[33,6,33,7],[31,8,31,9],[32,8,32,9],[33,8,33,9],[28,8,28,9],[29,6,29,7],[13,16,14,16],[13,17,14,17],[13,19,14,19],[13,20,14,20],[26,3,26,9],[27,3,28,3],[2,11,9,14],[5,3,5,5],[27,4,28,4],[27,5,27,9],[28,6,28,7],[31,6,31,7],[0,0,0,1],[1,0,1,1],[0,6,0,9],[1,6,1,9],[0,3,0,5],[1,3,1,5],[2,0,2,2],[13,0,13,1],[15,8,16,8],[15,3,15,7],[16,3,16,7],[13,6,14,6],[13,7,14,7],[11,3,11,5],[6,3,6,5],[12,3,12,5],[13,3,13,5],[14,3,14,5],[13,8,14,9],[2,3,2,5],[3,3,3,5],[4,3,4,5],[42,0,43,9],[7,3,7,5],[8,3,8,5],[9,3,9,5],[10,3,10,5],[30,6,30,7],[29,8,29,9],[30,8,30,9],[18,3,18,5],[15,9,16,9],[18,7,19,7],[21,7,22,7],[34,3,34,9],[35,3,36,9],[32,6,32,7]]}
["Component Name",null,"Component Supplier","OEM Point of Contact",null,null,"Component Engineer"]
["Name",null,"Supplier","POC",null,null,"Engineer",null,null,null,null,null,null,null,null,null,"This section is for charting and error checking - Do not alter"]
["Response to MRL Questions1",null,null,"Brief Statement of the Risk",null,null,"Likelihood2","Consequence2","Impact\nScore","Weighted\nImpact\nScore",null,"Correcting Chart Data Labels in Excel:  After entering your L/C scores if the data labels appear as empty they must be reset in Excel.  Follow this procedure to make your data labels appear properly.\n1. Right Click on the data label box\n2. Select \"Format Data Label\"\n3. In the right hand drop down box select the far right \"Label Options\" Category\n4. Uncheck the box \"Value From Cells\"\n5. Re-Check the box \"Value From Cells\"\n6. Confirm selection area is =$A$5:$A$13\n7. Click OK\n8. Click \"Reset Label Text\"\n9. Close the EDIT drop down box",null,null,null,null,"Likelihood2","Consequence2",null,"Likelihood2","Consequence2"]
["Category/Question","y/n","Brief Explanation for Response"," (derived from Explanation for Response)",null,null,"(of occurrence)","(to system)",null,null,null,null,null,null,null,null,"(of occurrence)","(to system)",null,"(of occurrence)","(to system)"]
["Materials","N",null,null,null,null,4,4,{"$f":"IF(AND(B5=\"y\",G5>0,G5<6,H5>0,H5<6),G5*H5,\"\")","v":""},{"$f":"IF(I5<>\"\",I5*9*('System Information'!B28/'System Information'!$B$37),\"\")","v":""},null,null,null,null,null,null,{"$f":"IF(AND(B5=\"y\",G5>0,G5<6),G5,FALSE)","v":false},{"$f":"IF(AND(B5=\"y\",H5>0,H5<6),H5,FALSE)","v":false},null,{"$f":"IF(AND(Q5<>\"\",TRUE),Q5,0)","v":false},{"$f":"IF(R5<>\"\",R5,0)","v":false}]
["Cost","N",null,null,null,null,null,null,{"$f":"IF(AND(B6=\"y\",G6>0,G6<6,H6>0,H6<6),G6*H6,\"\")","v":""},{"$f":"IF(I6<>\"\",I6*9*('System Information'!B29/'System Information'!$B$37),\"\")","v":""},null,null,null,null,null,null,{"$f":"IF(AND(B6=\"y\",G6>0,G6<6),G6,FALSE)","v":false},{"$f":"IF(AND(B6=\"y\",H6>0,H6<6),H6,FALSE)","v":false},null,{"$f":"IF(Q6<>\"\",Q6,0)","v":false},{"$f":"IF(R6<>\"\",R6,0)","v":false}]
["Design","N",null,null,null,null,null,null,"",{"$f":"IF(I7<>\"\",I7*9*('System Information'!B30/'System Information'!$B$37),\"\")","v":""},null,null,null,null,null,null,false,false,null,false,false]
["Manufacturing Process","N",null,null,null,null,null,null,"",{"$f":"IF(I8<>\"\",I8*9*('System Information'!B31/'System Information'!$B$37),\"\")","v":""},null,null,null,null,null,null,false,false,null,false,false]
["Quality","N",null,null,null,null,null,null,"",{"$f":"IF(I9<>\"\",I9*9*('System Information'!B32/'System Information'!$B$37),\"\")","v":""},null,null,null,null,null,null,false,false,null,false,false]
["Schedule","N",null,null,null,null,null,null,"",{"$f":"IF(I10<>\"\",I10*9*('System Information'!B33/'System Information'!$B$37),\"\")","v":""},null,null,null,null,null,null,false,false,null,false,false]
["Facilities","N",null,null,null,null,null,null,"",{"$f":"IF(I11<>\"\",I11*9*('System Information'!B34/'System Information'!$B$37),\"\")","v":""},null,null,null,null,null,null,false,false,null,false,false]
["Supply Chain Management","N",null,null,null,null,null,null,"",{"$f":"IF(I12<>\"\",I12*9*('System Information'!B35/'System Information'!$B$37),\"\")","v":""},null,null,null,null,null,null,false,false,null,false,false]
["Industrial Base","N",null,null,null,null,null,null,"",{"$f":"IF(I13<>\"\",I13*9*('System Information'!B36/'System Information'!$B$37),\"\")","v":""},null,null,null,null,null,null,false,false,null,false,false]
[null,null,null,"Weighted Likelihood and Consequence:",null,null,{"$f":"IF(T14>0,T14,0)","v":0},{"$f":"IF(U14>0,U14,0)","v":0},null,null,null,null,null,null,null,null,null,null,null,{"$f":"IF(SUM(T5:T13)<>0,SUMSQ(T5:T13)/SUM(T5:T13),0)","v":0},{"$f":"IF(SUM(U5:U13)<>0,SUMSQ(U5:U13)/SUM(U5:U13),0)","v":0}]
[null,null,null,"(Used for Component/Supplier Risk Rating graphic)"]
[null,null,null,"Sum of Impact Scores:",null,null,null,null,{"$f":"IF(SUM(I5:I13)>0,SUM(I5:I13),0)","v":0},{"$f":"IF(SUM(J5:J13)>0,SUM(J5:J13),0)","v":0}]
[null,null,null,"(Used to rank potential resources required)  "]
[]
[null,null,null,{"$f":"'Lists and CL Guidance'!B2","v":"Category Guidance: Likelihood of Occurrence"},null,null,null,"Risk Rating"]
[null,null,null,{"$f":"'Lists and CL Guidance'!B3","v":"Level"},{"$f":"'Lists and CL Guidance'!C3","v":"Likelihood"},{"$f":"'Lists and CL Guidance'!D3","v":"Probability of Occurrence"}]
[null,null,null,{"$f":"'Lists and CL Guidance'!B4","v":1},{"$f":"'Lists and CL Guidance'!C4","v":"Not Likely"},{"$f":"'Lists and CL Guidance'!D4","v":"~10%  (>  1% to ≤ 20%)"}]
[null,null,null,{"$f":"'Lists and CL Guidance'!B5","v":2},{"$f":"'Lists and CL Guidance'!C5","v":"Low Likelihood"},{"$f":"'Lists and CL Guidance'!D5","v":"~30%  (> 20% to ≤ 40%)"},null,"Component Summary Sheet"]
[null,null,null,{"$f":"'Lists and CL Guidance'!B6","v":3},{"$f":"'Lists and CL Guidance'!C6","v":"Likely"},{"$f":"'Lists and CL Guidance'!D6","v":"~50%  (> 40% to ≤ 60%)"}]
[null,null,null,{"$f":"'Lists and CL Guidance'!B7","v":4},{"$f":"'Lists and CL Guidance'!C7","v":"Highly Likely"},{"$f":"'Lists and CL Guidance'!D7","v":"~70% (> 60% to ≤ 80%)"},null,null,null,null,null,null,null,null,0]
[null,null,null,{"$f":"'Lists and CL Guidance'!B8","v":5},{"$f":"'Lists and CL Guidance'!C8","v":"Near Certainty"},{"$f":"'Lists and CL Guidance'!D8","v":"~90%  (> 80% to ≤ 99%)"},null,"Hot Links "]
[]
[null,null,null,{"$f":"'Lists and CL Guidance'!E10","v":"Category Guidance: Consequence (System Impact)"}]
[null,null,null,{"$f":"'Lists and CL Guidance'!E11","v":"Level"},"Consequence",{"$f":"'Lists and CL Guidance'!G11","v":"System Impact"}]
[null,null,null,null,null,{"$f":"'Lists and CL Guidance'!G12","v":"Technical Performance"},{"$f":"'Lists and CL Guidance'!H12","v":"Schedule"},null,{"$f":"'Lists and CL Guidance'!I12","v":"Cost"}]
[null,null,null,{"$f":"'Lists and CL Guidance'!E13","v":1},{"$f":"'Lists and CL Guidance'!F13","v":"Minimal"},{"$f":"'Lists and CL Guidance'!G13","v":"Minimal or no consequence to technical performance"},{"$f":"'Lists and CL Guidance'!H13","v":"Minimal or no impact"},null,{"$f":"'Lists and CL Guidance'!I13","v":"Minimal or no impact"}]
[null,null,null,{"$f":"'Lists and CL Guidance'!E14","v":2},{"$f":"'Lists and CL Guidance'!F14","v":"Minor"},{"$f":"'Lists and CL Guidance'!G14","v":"Minor reduction in technical performance or supportability, can be tolerated with little or no impact on program"},{"$f":"'Lists and CL Guidance'!H14","v":"Able to meet key dates. \nSlip < 6 month(s)"},null,{"$f":"'Lists and CL Guidance'!I14","v":"Budget increase or unit production cost increases.\n(< 1% of Budget)"}]
[null,null,null,{"$f":"'Lists and CL Guidance'!E15","v":3},{"$f":"'Lists and CL Guidance'!F15","v":"Moderate"},{"$f":"'Lists and CL Guidance'!G15","v":"Moderate reduction in technical performance or supportability with limited impact on program objectives"},{"$f":"'Lists and CL Guidance'!H15","v":"Minor schedule slip. Able to meet key milestones with no schedule float.\nSlip < 6 month(s). Sub-system slip > 12 month(s) plus available float."},null,{"$f":"'Lists and CL Guidance'!I15","v":"Budget increase or unit production cost increases.\n(< 5% of Budget)"}]
[null,null,null,{"$f":"'Lists and CL Guidance'!E16","v":4},{"$f":"'Lists and CL Guidance'!F16","v":"Significant"},{"$f":"'Lists and CL Guidance'!G16","v":"Significant degradation in technical performance or major shortfall in supportability; may jeopardize program success"},{"$f":"'Lists and CL Guidance'!H16","v":"Program critical path affected.\nSlip < 12 months"},null,{"$f":"'Lists and CL Guidance'!I16","v":"Budget increase or unit production cost increases.\n(< 10% of Budget)"}]
["Action Taken with this Supplier","Date","Comments for Action Taken",{"$f":"'Lists and CL Guidance'!E17","v":5},{"$f":"'Lists and CL Guidance'!F17","v":"Severe"},{"$f":"'Lists and CL Guidance'!G17","v":"Severe degradation in technical performance; Cannot meet KPP or key technical/supportability threshold; will jeopardize program success"},{"$f":"'Lists and CL Guidance'!H17","v":"Cannot meet key program milestones. \nSlip > 12months"},null,{"$f":"'Lists and CL Guidance'!I17","v":"Exceeds APB threshold\n(> 10% of Budget)"}]
["No Action",{"$f":"rev_date","v":"2022-01-01"},"Initial Assessment",{"$f":"MRL_risk_reference","v":"1 - Reference - DOD MRL Deskbook (p36) - http://www.dodmrl.com/MRL Deskbook V2020.pdf"}]
[null,null,null,{"$f":"DOD_Risk_reference","v":"2 - Reference - Risk Management Guide for DOD Acquisition\nhttps://acqnotes.com/wp-content/uploads/2014/09/DoD-Risk-Mgt-Guide-v7-interim-Dec2014.pdf"}]
[]
[]
[]
[]
[]
[]
[{"$f":"distro_statement","v":"DISTRIBUTION STATEMENT: No Distribution Statement Determined. "}]

{"sheet":"Comp 2","index":7,"n_rows":43,"n_cols":21,"rows_kept":43,"cut":false,"hidden":false,"merged":[[0,0,0,1],[0,3,0,5],[0,6,0,9],[1,0,1,1],[1,3,1,5],[1,6,1,9],[12,3,12,5],[1,16,1,20],[2,0,2,2],[2,3,2,5],[2,8,3,8],[2,9,3,9],[2,11,9,14],[3,3,3,5],[4,3,4,5],[5,3,5,5],[6,3,6,5],[7,3,7,5],[8,3,8,5],[9,3,9,5],[10,3,10,5],[11,3,11,5],[13,0,13,1],[13,3,13,5],[13,6,14,6],[13,7,14,7],[13,8,14,9],[13,17,14,17],[13,19,14,19],[13,20,14,20],[14,3,14,5],[15,3,15,7],[15,8,16,8],[15,9,16,9],[16,3,16,7],[13,16,14,16],[18,3,18,5],[18,7,19,7],[21,7,22,7],[26,3,26,9],[27,3,28,3],[27,4,28,4],[27,5,27,9],[28,6,28,7],[28,8,28,9],[29,6,29,7],[29,8,29,9],[30,6,30,7],[30,8,30,9],[31,6,31,7],[31,8,31,9],[42,0,43,9],[32,6,32,7],[32,8,32,9],[33,6,33,7],[33,8,33,9],[34,3,34,9],[35,3,36,9]]}
["Component Name",null,"Component Supplier","OEM Point of Contact",null,null,"Component Engineer"]
["Name",null,"Supplier","POC",null,null,"Engineer",null,null,null,null,null,null,null,null,null,"This section is for charting and error checking - Do not alter"]
["Response to MRL Questions1",null,null,"Brief Statement of the Risk",null,null,"Likelihood2","Consequence2","Impact\nScore","Weighted\nImpact\nScore",null,"Correcting Chart Data Labels in Excel:  After entering your L/C scores if the data labels appear as empty they must be reset in Excel.  Follow this procedure to make your data labels appear properly.\n1. Right Click on the data label box\n2. Select \"Format Data Label\"\n3. In the right hand drop down box select the far right \"Label Options\" Category\n4. Uncheck the box \"Value From Cells\"\n5. Re-Check the box \"Value From Cells\"\n6. Confirm selection area is =$A$5:$A$13\n7. Click OK\n8. Click \"Reset Label Text\"\n9. Close the EDIT drop down box",null,null,null,null,"Likelihood2","Consequence2",null,"Likelihood2","Consequence2"]
["Category/Question","y/n","Brief Explanation for Response"," (derived from Explanation for Response)",null,null,"(of occurrence)","(to system)",null,null,null,null,null,null,null,null,"(of occurrence)","(to system)",null,"(of occurrence)","(to system)"]
["Materials","N",null,null,null,null,null,null,{"$f":"IF(AND(B5=\"y\",G5>0,G5<6,H5>0,H5<6),G5*H5,\"\")","v":""},{"$f":"IF(I5<>\"\",I5*9*('System Information'!B28/'System Information'!$B$37),\"\")","v":""},null,null,null,null,null,null,{"$f":"IF(AND(B5=\"y\",G5>0,G5<6),G5,FALSE)","v":false},{"$f":"IF(AND(B5=\"y\",H5>0,H5<6),H5,FALSE)","v":false},null,{"$f":"IF(AND(Q5<>\"\",TRUE),Q5,0)","v":false},{"$f":"IF(R5<>\"\",R5,0)","v":false}]
["Cost","N",null,null,null,null,null,null,{"$f":"IF(AND(B6=\"y\",G6>0,G6<6,H6>0,H6<6),G6*H6,\"\")","v":""},{"$f":"IF(I6<>\"\",I6*9*('System Information'!B29/'System Information'!$B$37),\"\")","v":""},null,null,null,null,null,null,{"$f":"IF(AND(B6=\"y\",G6>0,G6<6),G6,FALSE)","v":false},{"$f":"IF(AND(B6=\"y\",H6>0,H6<6),H6,FALSE)","v":false},null,{"$f":"IF(Q6<>\"\",Q6,0)","v":false},false]
["Design","N",null,null,null,null,null,null,"",{"$f":"IF(I7<>\"\",I7*9*('System Information'!B30/'System Information'!$B$37),\"\")","v":""},null,null,null,null,null,null,false,false,null,false,false]
["Manufacturing Process","N",null,null,null,null,null,null,"",{"$f":"IF(I8<>\"\",I8*9*('System Information'!B31/'System Information'!$B$37),\"\")","v":""},null,null,null,null,null,null,false,false,null,false,false]
["Quality","N",null,null,null,null,null,null,"",{"$f":"IF(I9<>\"\",I9*9*('System Information'!B32/'System Information'!$B$37),\"\")","v":""},null,null,null,null,null,null,false,false,null,false,false]
["Schedule","N",null,null,null,null,null,null,"",{"$f":"IF(I10<>\"\",I10*9*('System Information'!B33/'System Information'!$B$37),\"\")","v":""},null,null,null,null,null,null,false,false,null,false,false]
["Facilities","N",null,null,null,null,null,null,"",{"$f":"IF(I11<>\"\",I11*9*('System Information'!B34/'System Information'!$B$37),\"\")","v":""},null,null,null,null,null,null,false,false,null,false,false]
["Supply Chain Management","N",null,null,null,null,null,null,"",{"$f":"IF(I12<>\"\",I12*9*('System Information'!B35/'System Information'!$B$37),\"\")","v":""},null,null,null,null,null,null,false,false,null,false,false]
["Industrial Base","N",null,null,null,null,null,null,"",{"$f":"IF(I13<>\"\",I13*9*('System Information'!B36/'System Information'!$B$37),\"\")","v":""},null,null,null,null,null,null,false,false,null,false,false]
[null,null,null,"Weighted Likelihood and Consequence:",null,null,{"$f":"IF(T14>0,T14,0)","v":0},{"$f":"IF(U14>0,U14,0)","v":0},null,null,null,null,null,null,null,null,null,null,null,{"$f":"IF(SUM(T5:T13)<>0,SUMSQ(T5:T13)/SUM(T5:T13),0)","v":0},{"$f":"IF(SUM(U5:U13)<>0,SUMSQ(U5:U13)/SUM(U5:U13),0)","v":0}]
[null,null,null,"(Used for Component/Supplier Risk Rating graphic)"]
[null,null,null,"Sum of Impact Scores:",null,null,null,null,{"$f":"IF(SUM(I5:I13)>0,SUM(I5:I13),0)","v":0},{"$f":"IF(SUM(J5:J13)>0,SUM(J5:J13),0)","v":0}]
[null,null,null,"(Used to rank potential resources required)  "]
[]
[null,null,null,{"$f":"'Lists and CL Guidance'!B2","v":"Category Guidance: Likelihood of Occurrence"},null,null,null,"Risk Rating"]
[null,null,null,{"$f":"'Lists and CL Guidance'!B3","v":"Level"},{"$f":"'Lists and CL Guidance'!C3","v":"Likelihood"},{"$f":"'Lists and CL Guidance'!D3","v":"Probability of Occurrence"}]
[null,null,null,{"$f":"'Lists and CL Guidance'!B4","v":1},{"$f":"'Lists and CL Guidance'!C4","v":"Not Likely"},{"$f":"'Lists and CL Guidance'!D4","v":"~10%  (>  1% to ≤ 20%)"}]
[null,null,null,{"$f":"'Lists and CL Guidance'!B5","v":2},{"$f":"'Lists and CL Guidance'!C5","v":"Low Likelihood"},{"$f":"'Lists and CL Guidance'!D5","v":"~30%  (> 20% to ≤ 40%)"},null,"Component Summary Sheet"]
[null,null,null,{"$f":"'Lists and CL Guidance'!B6","v":3},{"$f":"'Lists and CL Guidance'!C6","v":"Likely"},{"$f":"'Lists and CL Guidance'!D6","v":"~50%  (> 40% to ≤ 60%)"}]
[null,null,null,{"$f":"'Lists and CL Guidance'!B7","v":4},{"$f":"'Lists and CL Guidance'!C7","v":"Highly Likely"},{"$f":"'Lists and CL Guidance'!D7","v":"~70% (> 60% to ≤ 80%)"},null,null,null,null,null,null,null,null,0]
[null,null,null,{"$f":"'Lists and CL Guidance'!B8","v":5},{"$f":"'Lists and CL Guidance'!C8","v":"Near Certainty"},{"$f":"'Lists and CL Guidance'!D8","v":"~90%  (> 80% to ≤ 99%)"},null,"Hot Links "]
[]
[null,null,null,{"$f":"'Lists and CL Guidance'!E10","v":"Category Guidance: Consequence (System Impact)"}]
[null,null,null,{"$f":"'Lists and CL Guidance'!E11","v":"Level"},"Consequence",{"$f":"'Lists and CL Guidance'!G11","v":"System Impact"}]
[null,null,null,null,null,{"$f":"'Lists and CL Guidance'!G12","v":"Technical Performance"},{"$f":"'Lists and CL Guidance'!H12","v":"Schedule"},null,{"$f":"'Lists and CL Guidance'!I12","v":"Cost"}]
[null,null,null,{"$f":"'Lists and CL Guidance'!E13","v":1},{"$f":"'Lists and CL Guidance'!F13","v":"Minimal"},{"$f":"'Lists and CL Guidance'!G13","v":"Minimal or no consequence to technical performance"},{"$f":"'Lists and CL Guidance'!H13","v":"Minimal or no impact"},null,{"$f":"'Lists and CL Guidance'!I13","v":"Minimal or no impact"}]
[null,null,null,{"$f":"'Lists and CL Guidance'!E14","v":2},{"$f":"'Lists and CL Guidance'!F14","v":"Minor"},{"$f":"'Lists and CL Guidance'!G14","v":"Minor reduction in technical performance or supportability, can be tolerated with little or no impact on program"},{"$f":"'Lists and CL Guidance'!H14","v":"Able to meet key dates. \nSlip < 6 month(s)"},null,{"$f":"'Lists and CL Guidance'!I14","v":"Budget increase or unit production cost increases.\n(< 1% of Budget)"}]
[null,null,null,{"$f":"'Lists and CL Guidance'!E15","v":3},{"$f":"'Lists and CL Guidance'!F15","v":"Moderate"},{"$f":"'Lists and CL Guidance'!G15","v":"Moderate reduction in technical performance or supportability with limited impact on program objectives"},{"$f":"'Lists and CL Guidance'!H15","v":"Minor schedule slip. Able to meet key milestones with no schedule float.\nSlip < 6 month(s). Sub-system slip > 12 month(s) plus available float."},null,{"$f":"'Lists and CL Guidance'!I15","v":"Budget increase or unit production cost increases.\n(< 5% of Budget)"}]
[null,null,null,{"$f":"'Lists and CL Guidance'!E16","v":4},{"$f":"'Lists and CL Guidance'!F16","v":"Significant"},{"$f":"'Lists and CL Guidance'!G16","v":"Significant degradation in technical performance or major shortfall in supportability; may jeopardize program success"},{"$f":"'Lists and CL Guidance'!H16","v":"Program critical path affected.\nSlip < 12 months"},null,{"$f":"'Lists and CL Guidance'!I16","v":"Budget increase or unit production cost increases.\n(< 10% of Budget)"}]
["Action Taken with this Supplier","Date","Comments for Action Taken",{"$f":"'Lists and CL Guidance'!E17","v":5},{"$f":"'Lists and CL Guidance'!F17","v":"Severe"},{"$f":"'Lists and CL Guidance'!G17","v":"Severe degradation in technical performance; Cannot meet KPP or key technical/supportability threshold; will jeopardize program success"},{"$f":"'Lists and CL Guidance'!H17","v":"Cannot meet key program milestones. \nSlip > 12months"},null,{"$f":"'Lists and CL Guidance'!I17","v":"Exceeds APB threshold\n(> 10% of Budget)"}]
["No Action",{"$f":"rev_date","v":"2022-01-01"},"Initial Assessment",{"$f":"MRL_risk_reference","v":"1 - Reference - DOD MRL Deskbook (p36) - http://www.dodmrl.com/MRL Deskbook V2020.pdf"}]
[null,null,null,{"$f":"DOD_Risk_reference","v":"2 - Reference - Risk Management Guide for DOD Acquisition\nhttps://acqnotes.com/wp-content/uploads/2014/09/DoD-Risk-Mgt-Guide-v7-interim-Dec2014.pdf"}]
[]
[]
[]
[]
[]
[]
[{"$f":"distro_statement","v":"DISTRIBUTION STATEMENT: No Distribution Statement Determined. "}]

{"sheet":"Comp 3","index":8,"n_rows":43,"n_cols":21,"rows_kept":43,"cut":false,"hidden":false,"merged":[[0,0,0,1],[0,3,0,5],[0,6,0,9],[1,0,1,1],[1,3,1,5],[1,6,1,9],[12,3,12,5],[1,16,1,20],[2,0,2,2],[2,3,2,5],[2,8,3,8],[2,9,3,9],[2,11,9,14],[3,3,3,5],[4,3,4,5],[5,3,5,5],[6,3,6,5],[7,3,7,5],[8,3,8,5],[9,3,9,5],[10,3,10,5],[11,3,11,5],[13,0,13,1],[13,3,13,5],[13,6,14,6],[13,7,14,7],[13,8,14,9],[13,17,14,17],[13,19,14,19],[13,20,14,20],[14,3,14,5],[15,3,15,7],[15,8,16,8],[15,9,16,9],[16,3,16,7],[13,16,14,16],[18,3,18,5],[18,7,19,7],[21,7,22,7],[26,3,26,9],[27,3,28,3],[27,4,28,4],[27,5,27,9],[28,6,28,7],[28,8,28,9],[29,6,29,7],[29,8,29,9],[30,6,30,7],[30,8,30,9],[31,6,31,7],[31,8,31,9],[42,0,43,9],[32,6,32,7],[32,8,32,9],[33,6,33,7],[33,8,33,9],[34,3,34,9],[35,3,36,9]]}
["Component Name",null,"Component Supplier","OEM Point of Contact",null,null,"Component Engineer"]
["Name",null,"Supplier","POC",null,null,"Engineer",null,null,null,null,null,null,null,null,null,"This section is for charting and error checking - Do not alter"]
["Response to MRL Questions1",null,null,"Brief Statement of the Risk",null,null,"Likelihood2","Consequence2","Impact\nScore","Weighted\nImpact\nScore",null,"Correcting Chart Data Labels in Excel:  After entering your L/C scores if the data labels appear as empty they must be reset in Excel.  Follow this procedure to make your data labels appear properly.\n1. Right Click on the data label box\n2. Select \"Format Data Label\"\n3. In the right hand drop down box select the far right \"Label Options\" Category\n4. Uncheck the box \"Value From Cells\"\n5. Re-Check the box \"Value From Cells\"\n6. Confirm selection area is =$A$5:$A$13\n7. Click OK\n8. Click \"Reset Label Text\"\n9. Close the EDIT drop down box",null,null,null,null,"Likelihood2","Consequence2",null,"Likelihood2","Consequence2"]
["Category/Question","y/n","Brief Explanation for Response"," (derived from Explanation for Response)",null,null,"(of occurrence)","(to system)",null,null,null,null,null,null,null,null,"(of occurrence)","(to system)",null,"(of occurrence)","(to system)"]
["Materials","N",null,null,null,null,null,null,{"$f":"IF(AND(B5=\"y\",G5>0,G5<6,H5>0,H5<6),G5*H5,\"\")","v":""},{"$f":"IF(I5<>\"\",I5*9*('System Information'!B28/'System Information'!$B$37),\"\")","v":""},null,null,null,null,null,null,{"$f":"IF(AND(B5=\"y\",G5>0,G5<6),G5,FALSE)","v":false},{"$f":"IF(AND(B5=\"y\",H5>0,H5<6),H5,FALSE)","v":false},null,{"$f":"IF(AND(Q5<>\"\",TRUE),Q5,0)","v":false},{"$f":"IF(R5<>\"\",R5,0)","v":false}]
["Cost","N",null,null,null,null,null,null,{"$f":"IF(AND(B6=\"y\",G6>0,G6<6,H6>0,H6<6),G6*H6,\"\")","v":""},{"$f":"IF(I6<>\"\",I6*9*('System Information'!B29/'System Information'!$B$37),\"\")","v":""},null,null,null,null,null,null,{"$f":"IF(AND(B6=\"y\",G6>0,G6<6),G6,FALSE)","v":false},{"$f":"IF(AND(B6=\"y\",H6>0,H6<6),H6,FALSE)","v":false},null,{"$f":"IF(Q6<>\"\",Q6,0)","v":false},false]
["Design","N",null,null,null,null,null,null,"",{"$f":"IF(I7<>\"\",I7*9*('System Information'!B30/'System Information'!$B$37),\"\")","v":""},null,null,null,null,null,null,false,false,null,false,false]
["Manufacturing Process","N",null,null,null,null,null,null,"",{"$f":"IF(I8<>\"\",I8*9*('System Information'!B31/'System Information'!$B$37),\"\")","v":""},null,null,null,null,null,null,false,false,null,false,false]
["Quality","N",null,null,null,null,null,null,"",{"$f":"IF(I9<>\"\",I9*9*('System Information'!B32/'System Information'!$B$37),\"\")","v":""},null,null,null,null,null,null,false,false,null,false,false]
["Schedule","N",null,null,null,null,null,null,"",{"$f":"IF(I10<>\"\",I10*9*('System Information'!B33/'System Information'!$B$37),\"\")","v":""},null,null,null,null,null,null,false,false,null,false,false]
["Facilities","N",null,null,null,null,null,null,"",{"$f":"IF(I11<>\"\",I11*9*('System Information'!B34/'System Information'!$B$37),\"\")","v":""},null,null,null,null,null,null,false,false,null,false,false]
["Supply Chain Management","N",null,null,null,null,null,null,"",{"$f":"IF(I12<>\"\",I12*9*('System Information'!B35/'System Information'!$B$37),\"\")","v":""},null,null,null,null,null,null,false,false,null,false,false]
["Industrial Base","N",null,null,null,null,null,null,"",{"$f":"IF(I13<>\"\",I13*9*('System Information'!B36/'System Information'!$B$37),\"\")","v":""},null,null,null,null,null,null,false,false,null,false,false]
[null,null,null,"Weighted Likelihood and Consequence:",null,null,{"$f":"IF(T14>0,T14,0)","v":0},{"$f":"IF(U14>0,U14,0)","v":0},null,null,null,null,null,null,null,null,null,null,null,{"$f":"IF(SUM(T5:T13)<>0,SUMSQ(T5:T13)/SUM(T5:T13),0)","v":0},{"$f":"IF(SUM(U5:U13)<>0,SUMSQ(U5:U13)/SUM(U5:U13),0)","v":0}]
[null,null,null,"(Used for Component/Supplier Risk Rating graphic)"]
[null,null,null,"Sum of Impact Scores:",null,null,null,null,{"$f":"IF(SUM(I5:I13)>0,SUM(I5:I13),0)","v":0},{"$f":"IF(SUM(J5:J13)>0,SUM(J5:J13),0)","v":0}]
[null,null,null,"(Used to rank potential resources required)  "]
[]
[null,null,null,{"$f":"'Lists and CL Guidance'!B2","v":"Category Guidance: Likelihood of Occurrence"},null,null,null,"Risk Rating"]
[null,null,null,{"$f":"'Lists and CL Guidance'!B3","v":"Level"},{"$f":"'Lists and CL Guidance'!C3","v":"Likelihood"},{"$f":"'Lists and CL Guidance'!D3","v":"Probability of Occurrence"}]
[null,null,null,{"$f":"'Lists and CL Guidance'!B4","v":1},{"$f":"'Lists and CL Guidance'!C4","v":"Not Likely"},{"$f":"'Lists and CL Guidance'!D4","v":"~10%  (>  1% to ≤ 20%)"}]
[null,null,null,{"$f":"'Lists and CL Guidance'!B5","v":2},{"$f":"'Lists and CL Guidance'!C5","v":"Low Likelihood"},{"$f":"'Lists and CL Guidance'!D5","v":"~30%  (> 20% to ≤ 40%)"},null,"Component Summary Sheet"]
[null,null,null,{"$f":"'Lists and CL Guidance'!B6","v":3},{"$f":"'Lists and CL Guidance'!C6","v":"Likely"},{"$f":"'Lists and CL Guidance'!D6","v":"~50%  (> 40% to ≤ 60%)"}]
[null,null,null,{"$f":"'Lists and CL Guidance'!B7","v":4},{"$f":"'Lists and CL Guidance'!C7","v":"Highly Likely"},{"$f":"'Lists and CL Guidance'!D7","v":"~70% (> 60% to ≤ 80%)"},null,null,null,null,null,null,null,null,0]
[null,null,null,{"$f":"'Lists and CL Guidance'!B8","v":5},{"$f":"'Lists and CL Guidance'!C8","v":"Near Certainty"},{"$f":"'Lists and CL Guidance'!D8","v":"~90%  (> 80% to ≤ 99%)"},null,"Hot Links "]
[]
[null,null,null,{"$f":"'Lists and CL Guidance'!E10","v":"Category Guidance: Consequence (System Impact)"}]
[null,null,null,{"$f":"'Lists and CL Guidance'!E11","v":"Level"},"Consequence",{"$f":"'Lists and CL Guidance'!G11","v":"System Impact"}]
[null,null,null,null,null,{"$f":"'Lists and CL Guidance'!G12","v":"Technical Performance"},{"$f":"'Lists and CL Guidance'!H12","v":"Schedule"},null,{"$f":"'Lists and CL Guidance'!I12","v":"Cost"}]
[null,null,null,{"$f":"'Lists and CL Guidance'!E13","v":1},{"$f":"'Lists and CL Guidance'!F13","v":"Minimal"},{"$f":"'Lists and CL Guidance'!G13","v":"Minimal or no consequence to technical performance"},{"$f":"'Lists and CL Guidance'!H13","v":"Minimal or no impact"},null,{"$f":"'Lists and CL Guidance'!I13","v":"Minimal or no impact"}]
[null,null,null,{"$f":"'Lists and CL Guidance'!E14","v":2},{"$f":"'Lists and CL Guidance'!F14","v":"Minor"},{"$f":"'Lists and CL Guidance'!G14","v":"Minor reduction in technical performance or supportability, can be tolerated with little or no impact on program"},{"$f":"'Lists and CL Guidance'!H14","v":"Able to meet key dates. \nSlip < 6 month(s)"},null,{"$f":"'Lists and CL Guidance'!I14","v":"Budget increase or unit production cost increases.\n(< 1% of Budget)"}]
[null,null,null,{"$f":"'Lists and CL Guidance'!E15","v":3},{"$f":"'Lists and CL Guidance'!F15","v":"Moderate"},{"$f":"'Lists and CL Guidance'!G15","v":"Moderate reduction in technical performance or supportability with limited impact on program objectives"},{"$f":"'Lists and CL Guidance'!H15","v":"Minor schedule slip. Able to meet key milestones with no schedule float.\nSlip < 6 month(s). Sub-system slip > 12 month(s) plus available float."},null,{"$f":"'Lists and CL Guidance'!I15","v":"Budget increase or unit production cost increases.\n(< 5% of Budget)"}]
[null,null,null,{"$f":"'Lists and CL Guidance'!E16","v":4},{"$f":"'Lists and CL Guidance'!F16","v":"Significant"},{"$f":"'Lists and CL Guidance'!G16","v":"Significant degradation in technical performance or major shortfall in supportability; may jeopardize program success"},{"$f":"'Lists and CL Guidance'!H16","v":"Program critical path affected.\nSlip < 12 months"},null,{"$f":"'Lists and CL Guidance'!I16","v":"Budget increase or unit production cost increases.\n(< 10% of Budget)"}]
["Action Taken with this Supplier","Date","Comments for Action Taken",{"$f":"'Lists and CL Guidance'!E17","v":5},{"$f":"'Lists and CL Guidance'!F17","v":"Severe"},{"$f":"'Lists and CL Guidance'!G17","v":"Severe degradation in technical performance; Cannot meet KPP or key technical/supportability threshold; will jeopardize program success"},{"$f":"'Lists and CL Guidance'!H17","v":"Cannot meet key program milestones. \nSlip > 12months"},null,{"$f":"'Lists and CL Guidance'!I17","v":"Exceeds APB threshold\n(> 10% of Budget)"}]
["No Action",{"$f":"rev_date","v":"2022-01-01"},"Initial Assessment",{"$f":"MRL_risk_reference","v":"1 - Reference - DOD MRL Deskbook (p36) - http://www.dodmrl.com/MRL Deskbook V2020.pdf"}]
[null,null,null,{"$f":"DOD_Risk_reference","v":"2 - Reference - Risk Management Guide for DOD Acquisition\nhttps://acqnotes.com/wp-content/uploads/2014/09/DoD-Risk-Mgt-Guide-v7-interim-Dec2014.pdf"}]
[]
[]
[]
[]
[]
[]
[{"$f":"distro_statement","v":"DISTRIBUTION STATEMENT: No Distribution Statement Determined. "}]

{"sheet":"Comp 4","index":9,"n_rows":43,"n_cols":21,"rows_kept":43,"cut":false,"hidden":false,"merged":[[0,0,0,1],[0,3,0,5],[0,6,0,9],[1,0,1,1],[1,3,1,5],[1,6,1,9],[12,3,12,5],[1,16,1,20],[2,0,2,2],[2,3,2,5],[2,8,3,8],[2,9,3,9],[2,11,9,14],[3,3,3,5],[4,3,4,5],[5,3,5,5],[6,3,6,5],[7,3,7,5],[8,3,8,5],[9,3,9,5],[10,3,10,5],[11,3,11,5],[13,0,13,1],[13,3,13,5],[13,6,14,6],[13,7,14,7],[13,8,14,9],[13,17,14,17],[13,19,14,19],[13,20,14,20],[14,3,14,5],[15,3,15,7],[15,8,16,8],[15,9,16,9],[16,3,16,7],[13,16,14,16],[18,3,18,5],[18,7,19,7],[21,7,22,7],[26,3,26,9],[27,3,28,3],[27,4,28,4],[27,5,27,9],[28,6,28,7],[28,8,28,9],[29,6,29,7],[29,8,29,9],[30,6,30,7],[30,8,30,9],[31,6,31,7],[31,8,31,9],[42,0,43,9],[32,6,32,7],[32,8,32,9],[33,6,33,7],[33,8,33,9],[34,3,34,9],[35,3,36,9]]}
["Component Name",null,"Component Supplier","OEM Point of Contact",null,null,"Component Engineer"]
["Name",null,"Supplier","POC",null,null,"Engineer",null,null,null,null,null,null,null,null,null,"This section is for charting and error checking - Do not alter"]
["Response to MRL Questions1",null,null,"Brief Statement of the Risk",null,null,"Likelihood2","Consequence2","Impact\nScore","Weighted\nImpact\nScore",null,"Correcting Chart Data Labels in Excel:  After entering your L/C scores if the data labels appear as empty they must be reset in Excel.  Follow this procedure to make your data labels appear properly.\n1. Right Click on the data label box\n2. Select \"Format Data Label\"\n3. In the right hand drop down box select the far right \"Label Options\" Category\n4. Uncheck the box \"Value From Cells\"\n5. Re-Check the box \"Value From Cells\"\n6. Confirm selection area is =$A$5:$A$13\n7. Click OK\n8. Click \"Reset Label Text\"\n9. Close the EDIT drop down box",null,null,null,null,"Likelihood2","Consequence2",null,"Likelihood2","Consequence2"]
["Category/Question","y/n","Brief Explanation for Response"," (derived from Explanation for Response)",null,null,"(of occurrence)","(to system)",null,null,null,null,null,null,null,null,"(of occurrence)","(to system)",null,"(of occurrence)","(to system)"]
["Materials","N",null,null,null,null,null,null,{"$f":"IF(AND(B5=\"y\",G5>0,G5<6,H5>0,H5<6),G5*H5,\"\")","v":""},{"$f":"IF(I5<>\"\",I5*9*('System Information'!B28/'System Information'!$B$37),\"\")","v":""},null,null,null,null,null,null,{"$f":"IF(AND(B5=\"y\",G5>0,G5<6),G5,FALSE)","v":false},{"$f":"IF(AND(B5=\"y\",H5>0,H5<6),H5,FALSE)","v":false},null,{"$f":"IF(AND(Q5<>\"\",TRUE),Q5,0)","v":false},{"$f":"IF(R5<>\"\",R5,0)","v":false}]
["Cost","N",null,null,null,null,null,null,{"$f":"IF(AND(B6=\"y\",G6>0,G6<6,H6>0,H6<6),G6*H6,\"\")","v":""},{"$f":"IF(I6<>\"\",I6*9*('System Information'!B29/'System Information'!$B$37),\"\")","v":""},null,null,null,null,null,null,{"$f":"IF(AND(B6=\"y\",G6>0,G6<6),G6,FALSE)","v":false},{"$f":"IF(AND(B6=\"y\",H6>0,H6<6),H6,FALSE)","v":false},null,{"$f":"IF(Q6<>\"\",Q6,0)","v":false},false]
["Design","N",null,null,null,null,null,null,"",{"$f":"IF(I7<>\"\",I7*9*('System Information'!B30/'System Information'!$B$37),\"\")","v":""},null,null,null,null,null,null,false,false,null,false,false]
["Manufacturing Process","N",null,null,null,null,null,null,"",{"$f":"IF(I8<>\"\",I8*9*('System Information'!B31/'System Information'!$B$37),\"\")","v":""},null,null,null,null,null,null,false,false,null,false,false]
["Quality","N",null,null,null,null,null,null,"",{"$f":"IF(I9<>\"\",I9*9*('System Information'!B32/'System Information'!$B$37),\"\")","v":""},null,null,null,null,null,null,false,false,null,false,false]
["Schedule","N",null,null,null,null,null,null,"",{"$f":"IF(I10<>\"\",I10*9*('System Information'!B33/'System Information'!$B$37),\"\")","v":""},null,null,null,null,null,null,false,false,null,false,false]
["Facilities","N",null,null,null,null,null,null,"",{"$f":"IF(I11<>\"\",I11*9*('System Information'!B34/'System Information'!$B$37),\"\")","v":""},null,null,null,null,null,null,false,false,null,false,false]
["Supply Chain Management","N",null,null,null,null,null,null,"",{"$f":"IF(I12<>\"\",I12*9*('System Information'!B35/'System Information'!$B$37),\"\")","v":""},null,null,null,null,null,null,false,false,null,false,false]
["Industrial Base","N",null,null,null,null,null,null,"",{"$f":"IF(I13<>\"\",I13*9*('System Information'!B36/'System Information'!$B$37),\"\")","v":""},null,null,null,null,null,null,false,false,null,false,false]
[null,null,null,"Weighted Likelihood and Consequence:",null,null,{"$f":"IF(T14>0,T14,0)","v":0},{"$f":"IF(U14>0,U14,0)","v":0},null,null,null,null,null,null,null,null,null,null,null,{"$f":"IF(SUM(T5:T13)<>0,SUMSQ(T5:T13)/SUM(T5:T13),0)","v":0},{"$f":"IF(SUM(U5:U13)<>0,SUMSQ(U5:U13)/SUM(U5:U13),0)","v":0}]
[null,null,null,"(Used for Component/Supplier Risk Rating graphic)"]
[null,null,null,"Sum of Impact Scores:",null,null,null,null,{"$f":"IF(SUM(I5:I13)>0,SUM(I5:I13),0)","v":0},{"$f":"IF(SUM(J5:J13)>0,SUM(J5:J13),0)","v":0}]
[null,null,null,"(Used to rank potential resources required)  "]
[]
[null,null,null,{"$f":"'Lists and CL Guidance'!B2","v":"Category Guidance: Likelihood of Occurrence"},null,null,null,"Risk Rating"]
[null,null,null,{"$f":"'Lists and CL Guidance'!B3","v":"Level"},{"$f":"'Lists and CL Guidance'!C3","v":"Likelihood"},{"$f":"'Lists and CL Guidance'!D3","v":"Probability of Occurrence"}]
[null,null,null,{"$f":"'Lists and CL Guidance'!B4","v":1},{"$f":"'Lists and CL Guidance'!C4","v":"Not Likely"},{"$f":"'Lists and CL Guidance'!D4","v":"~10%  (>  1% to ≤ 20%)"}]
[null,null,null,{"$f":"'Lists and CL Guidance'!B5","v":2},{"$f":"'Lists and CL Guidance'!C5","v":"Low Likelihood"},{"$f":"'Lists and CL Guidance'!D5","v":"~30%  (> 20% to ≤ 40%)"},null,"Component Summary Sheet"]
[null,null,null,{"$f":"'Lists and CL Guidance'!B6","v":3},{"$f":"'Lists and CL Guidance'!C6","v":"Likely"},{"$f":"'Lists and CL Guidance'!D6","v":"~50%  (> 40% to ≤ 60%)"}]
[null,null,null,{"$f":"'Lists and CL Guidance'!B7","v":4},{"$f":"'Lists and CL Guidance'!C7","v":"Highly Likely"},{"$f":"'Lists and CL Guidance'!D7","v":"~70% (> 60% to ≤ 80%)"},null,null,null,null,null,null,null,null,0]
[null,null,null,{"$f":"'Lists and CL Guidance'!B8","v":5},{"$f":"'Lists and CL Guidance'!C8","v":"Near Certainty"},{"$f":"'Lists and CL Guidance'!D8","v":"~90%  (> 80% to ≤ 99%)"},null,"Hot Links "]
[]
[null,null,null,{"$f":"'Lists and CL Guidance'!E10","v":"Category Guidance: Consequence (System Impact)"}]
[null,null,null,{"$f":"'Lists and CL Guidance'!E11","v":"Level"},"Consequence",{"$f":"'Lists and CL Guidance'!G11","v":"System Impact"}]
[null,null,null,null,null,{"$f":"'Lists and CL Guidance'!G12","v":"Technical Performance"},{"$f":"'Lists and CL Guidance'!H12","v":"Schedule"},null,{"$f":"'Lists and CL Guidance'!I12","v":"Cost"}]
[null,null,null,{"$f":"'Lists and CL Guidance'!E13","v":1},{"$f":"'Lists and CL Guidance'!F13","v":"Minimal"},{"$f":"'Lists and CL Guidance'!G13","v":"Minimal or no consequence to technical performance"},{"$f":"'Lists and CL Guidance'!H13","v":"Minimal or no impact"},null,{"$f":"'Lists and CL Guidance'!I13","v":"Minimal or no impact"}]
[null,null,null,{"$f":"'Lists and CL Guidance'!E14","v":2},{"$f":"'Lists and CL Guidance'!F14","v":"Minor"},{"$f":"'Lists and CL Guidance'!G14","v":"Minor reduction in technical performance or supportability, can be tolerated with little or no impact on program"},{"$f":"'Lists and CL Guidance'!H14","v":"Able to meet key dates. \nSlip < 6 month(s)"},null,{"$f":"'Lists and CL Guidance'!I14","v":"Budget increase or unit production cost increases.\n(< 1% of Budget)"}]
[null,null,null,{"$f":"'Lists and CL Guidance'!E15","v":3},{"$f":"'Lists and CL Guidance'!F15","v":"Moderate"},{"$f":"'Lists and CL Guidance'!G15","v":"Moderate reduction in technical performance or supportability with limited impact on program objectives"},{"$f":"'Lists and CL Guidance'!H15","v":"Minor schedule slip. Able to meet key milestones with no schedule float.\nSlip < 6 month(s). Sub-system slip > 12 month(s) plus available float."},null,{"$f":"'Lists and CL Guidance'!I15","v":"Budget increase or unit production cost increases.\n(< 5% of Budget)"}]
[null,null,null,{"$f":"'Lists and CL Guidance'!E16","v":4},{"$f":"'Lists and CL Guidance'!F16","v":"Significant"},{"$f":"'Lists and CL Guidance'!G16","v":"Significant degradation in technical performance or major shortfall in supportability; may jeopardize program success"},{"$f":"'Lists and CL Guidance'!H16","v":"Program critical path affected.\nSlip < 12 months"},null,{"$f":"'Lists and CL Guidance'!I16","v":"Budget increase or unit production cost increases.\n(< 10% of Budget)"}]
["Action Taken with this Supplier","Date","Comments for Action Taken",{"$f":"'Lists and CL Guidance'!E17","v":5},{"$f":"'Lists and CL Guidance'!F17","v":"Severe"},{"$f":"'Lists and CL Guidance'!G17","v":"Severe degradation in technical performance; Cannot meet KPP or key technical/supportability threshold; will jeopardize program success"},{"$f":"'Lists and CL Guidance'!H17","v":"Cannot meet key program milestones. \nSlip > 12months"},null,{"$f":"'Lists and CL Guidance'!I17","v":"Exceeds APB threshold\n(> 10% of Budget)"}]
["No Action",{"$f":"rev_date","v":"2022-01-01"},"Initial Assessment",{"$f":"MRL_risk_reference","v":"1 - Reference - DOD MRL Deskbook (p36) - http://www.dodmrl.com/MRL Deskbook V2020.pdf"}]
[null,null,null,{"$f":"DOD_Risk_reference","v":"2 - Reference - Risk Management Guide for DOD Acquisition\nhttps://acqnotes.com/wp-content/uploads/2014/09/DoD-Risk-Mgt-Guide-v7-interim-Dec2014.pdf"}]
[]
[]
[]
[]
[]
[]
[{"$f":"distro_statement","v":"DISTRIBUTION STATEMENT: No Distribution Statement Determined. "}]

{"sheet":"Comp 5","index":10,"n_rows":43,"n_cols":21,"rows_kept":43,"cut":false,"hidden":false,"merged":[[0,0,0,1],[0,3,0,5],[0,6,0,9],[1,0,1,1],[1,3,1,5],[1,6,1,9],[12,3,12,5],[1,16,1,20],[2,0,2,2],[2,3,2,5],[2,8,3,8],[2,9,3,9],[2,11,9,14],[3,3,3,5],[4,3,4,5],[5,3,5,5],[6,3,6,5],[7,3,7,5],[8,3,8,5],[9,3,9,5],[10,3,10,5],[11,3,11,5],[13,0,13,1],[13,3,13,5],[13,6,14,6],[13,7,14,7],[13,8,14,9],[13,17,14,17],[13,19,14,19],[13,20,14,20],[14,3,14,5],[15,3,15,7],[15,8,16,8],[15,9,16,9],[16,3,16,7],[13,16,14,16],[18,3,18,5],[18,7,19,7],[21,7,22,7],[26,3,26,9],[27,3,28,3],[27,4,28,4],[27,5,27,9],[28,6,28,7],[28,8,28,9],[29,6,29,7],[29,8,29,9],[30,6,30,7],[30,8,30,9],[31,6,31,7],[31,8,31,9],[42,0,43,9],[32,6,32,7],[32,8,32,9],[33,6,33,7],[33,8,33,9],[34,3,34,9],[35,3,36,9]]}
["Component Name",null,"Component Supplier","OEM Point of Contact",null,null,"Component Engineer"]
["Name",null,"Supplier","POC",null,null,"Engineer",null,null,null,null,null,null,null,null,null,"This section is for charting and error checking - Do not alter"]
["Response to MRL Questions1",null,null,"Brief Statement of the Risk",null,null,"Likelihood2","Consequence2","Impact\nScore","Weighted\nImpact\nScore",null,"Correcting Chart Data Labels in Excel:  After entering your L/C scores if the data labels appear as empty they must be reset in Excel.  Follow this procedure to make your data labels appear properly.\n1. Right Click on the data label box\n2. Select \"Format Data Label\"\n3. In the right hand drop down box select the far right \"Label Options\" Category\n4. Uncheck the box \"Value From Cells\"\n5. Re-Check the box \"Value From Cells\"\n6. Confirm selection area is =$A$5:$A$13\n7. Click OK\n8. Click \"Reset Label Text\"\n9. Close the EDIT drop down box",null,null,null,null,"Likelihood2","Consequence2",null,"Likelihood2","Consequence2"]
["Category/Question","y/n","Brief Explanation for Response"," (derived from Explanation for Response)",null,null,"(of occurrence)","(to system)",null,null,null,null,null,null,null,null,"(of occurrence)","(to system)",null,"(of occurrence)","(to system)"]
["Materials","N",null,null,null,null,null,null,{"$f":"IF(AND(B5=\"y\",G5>0,G5<6,H5>0,H5<6),G5*H5,\"\")","v":""},{"$f":"IF(I5<>\"\",I5*9*('System Information'!B28/'System Information'!$B$37),\"\")","v":""},null,null,null,null,null,null,{"$f":"IF(AND(B5=\"y\",G5>0,G5<6),G5,FALSE)","v":false},{"$f":"IF(AND(B5=\"y\",H5>0,H5<6),H5,FALSE)","v":false},null,{"$f":"IF(AND(Q5<>\"\",TRUE),Q5,0)","v":false},{"$f":"IF(R5<>\"\",R5,0)","v":false}]
["Cost","N",null,null,null,null,null,null,{"$f":"IF(AND(B6=\"y\",G6>0,G6<6,H6>0,H6<6),G6*H6,\"\")","v":""},{"$f":"IF(I6<>\"\",I6*9*('System Information'!B29/'System Information'!$B$37),\"\")","v":""},null,null,null,null,null,null,{"$f":"IF(AND(B6=\"y\",G6>0,G6<6),G6,FALSE)","v":false},{"$f":"IF(AND(B6=\"y\",H6>0,H6<6),H6,FALSE)","v":false},null,{"$f":"IF(Q6<>\"\",Q6,0)","v":false},false]
["Design","N",null,null,null,null,null,null,"",{"$f":"IF(I7<>\"\",I7*9*('System Information'!B30/'System Information'!$B$37),\"\")","v":""},null,null,null,null,null,null,false,false,null,false,false]
["Manufacturing Process","N",null,null,null,null,null,null,"",{"$f":"IF(I8<>\"\",I8*9*('System Information'!B31/'System Information'!$B$37),\"\")","v":""},null,null,null,null,null,null,false,false,null,false,false]
["Quality","N",null,null,null,null,null,null,"",{"$f":"IF(I9<>\"\",I9*9*('System Information'!B32/'System Information'!$B$37),\"\")","v":""},null,null,null,null,null,null,false,false,null,false,false]
["Schedule","N",null,null,null,null,null,null,"",{"$f":"IF(I10<>\"\",I10*9*('System Information'!B33/'System Information'!$B$37),\"\")","v":""},null,null,null,null,null,null,false,false,null,false,false]
["Facilities","N",null,null,null,null,null,null,"",{"$f":"IF(I11<>\"\",I11*9*('System Information'!B34/'System Information'!$B$37),\"\")","v":""},null,null,null,null,null,null,false,false,null,false,false]
["Supply Chain Management","N",null,null,null,null,null,null,"",{"$f":"IF(I12<>\"\",I12*9*('System Information'!B35/'System Information'!$B$37),\"\")","v":""},null,null,null,null,null,null,false,false,null,false,false]
["Industrial Base","N",null,null,null,null,null,null,"",{"$f":"IF(I13<>\"\",I13*9*('System Information'!B36/'System Information'!$B$37),\"\")","v":""},null,null,null,null,null,null,false,false,null,false,false]
[null,null,null,"Weighted Likelihood and Consequence:",null,null,{"$f":"IF(T14>0,T14,0)","v":0},{"$f":"IF(U14>0,U14,0)","v":0},null,null,null,null,null,null,null,null,null,null,null,{"$f":"IF(SUM(T5:T13)<>0,SUMSQ(T5:T13)/SUM(T5:T13),0)","v":0},{"$f":"IF(SUM(U5:U13)<>0,SUMSQ(U5:U13)/SUM(U5:U13),0)","v":0}]
[null,null,null,"(Used for Component/Supplier Risk Rating graphic)"]
[null,null,null,"Sum of Impact Scores:",null,null,null,null,{"$f":"IF(SUM(I5:I13)>0,SUM(I5:I13),0)","v":0},{"$f":"IF(SUM(J5:J13)>0,SUM(J5:J13),0)","v":0}]
[null,null,null,"(Used to rank potential resources required)  "]
[]
[null,null,null,{"$f":"'Lists and CL Guidance'!B2","v":"Category Guidance: Likelihood of Occurrence"},null,null,null,"Risk Rating"]
[null,null,null,{"$f":"'Lists and CL Guidance'!B3","v":"Level"},{"$f":"'Lists and CL Guidance'!C3","v":"Likelihood"},{"$f":"'Lists and CL Guidance'!D3","v":"Probability of Occurrence"}]
[null,null,null,{"$f":"'Lists and CL Guidance'!B4","v":1},{"$f":"'Lists and CL Guidance'!C4","v":"Not Likely"},{"$f":"'Lists and CL Guidance'!D4","v":"~10%  (>  1% to ≤ 20%)"}]
[null,null,null,{"$f":"'Lists and CL Guidance'!B5","v":2},{"$f":"'Lists and CL Guidance'!C5","v":"Low Likelihood"},{"$f":"'Lists and CL Guidance'!D5","v":"~30%  (> 20% to ≤ 40%)"},null,"Component Summary Sheet"]
[null,null,null,{"$f":"'Lists and CL Guidance'!B6","v":3},{"$f":"'Lists and CL Guidance'!C6","v":"Likely"},{"$f":"'Lists and CL Guidance'!D6","v":"~50%  (> 40% to ≤ 60%)"}]
[null,null,null,{"$f":"'Lists and CL Guidance'!B7","v":4},{"$f":"'Lists and CL Guidance'!C7","v":"Highly Likely"},{"$f":"'Lists and CL Guidance'!D7","v":"~70% (> 60% to ≤ 80%)"},null,null,null,null,null,null,null,null,0]
[null,null,null,{"$f":"'Lists and CL Guidance'!B8","v":5},{"$f":"'Lists and CL Guidance'!C8","v":"Near Certainty"},{"$f":"'Lists and CL Guidance'!D8","v":"~90%  (> 80% to ≤ 99%)"},null,"Hot Links "]
[]
[null,null,null,{"$f":"'Lists and CL Guidance'!E10","v":"Category Guidance: Consequence (System Impact)"}]
[null,null,null,{"$f":"'Lists and CL Guidance'!E11","v":"Level"},"Consequence",{"$f":"'Lists and CL Guidance'!G11","v":"System Impact"}]
[null,null,null,null,null,{"$f":"'Lists and CL Guidance'!G12","v":"Technical Performance"},{"$f":"'Lists and CL Guidance'!H12","v":"Schedule"},null,{"$f":"'Lists and CL Guidance'!I12","v":"Cost"}]
[null,null,null,{"$f":"'Lists and CL Guidance'!E13","v":1},{"$f":"'Lists and CL Guidance'!F13","v":"Minimal"},{"$f":"'Lists and CL Guidance'!G13","v":"Minimal or no consequence to technical performance"},{"$f":"'Lists and CL Guidance'!H13","v":"Minimal or no impact"},null,{"$f":"'Lists and CL Guidance'!I13","v":"Minimal or no impact"}]
[null,null,null,{"$f":"'Lists and CL Guidance'!E14","v":2},{"$f":"'Lists and CL Guidance'!F14","v":"Minor"},{"$f":"'Lists and CL Guidance'!G14","v":"Minor reduction in technical performance or supportability, can be tolerated with little or no impact on program"},{"$f":"'Lists and CL Guidance'!H14","v":"Able to meet key dates. \nSlip < 6 month(s)"},null,{"$f":"'Lists and CL Guidance'!I14","v":"Budget increase or unit production cost increases.\n(< 1% of Budget)"}]
[null,null,null,{"$f":"'Lists and CL Guidance'!E15","v":3},{"$f":"'Lists and CL Guidance'!F15","v":"Moderate"},{"$f":"'Lists and CL Guidance'!G15","v":"Moderate reduction in technical performance or supportability with limited impact on program objectives"},{"$f":"'Lists and CL Guidance'!H15","v":"Minor schedule slip. Able to meet key milestones with no schedule float.\nSlip < 6 month(s). Sub-system slip > 12 month(s) plus available float."},null,{"$f":"'Lists and CL Guidance'!I15","v":"Budget increase or unit production cost increases.\n(< 5% of Budget)"}]
[null,null,null,{"$f":"'Lists and CL Guidance'!E16","v":4},{"$f":"'Lists and CL Guidance'!F16","v":"Significant"},{"$f":"'Lists and CL Guidance'!G16","v":"Significant degradation in technical performance or major shortfall in supportability; may jeopardize program success"},{"$f":"'Lists and CL Guidance'!H16","v":"Program critical path affected.\nSlip < 12 months"},null,{"$f":"'Lists and CL Guidance'!I16","v":"Budget increase or unit production cost increases.\n(< 10% of Budget)"}]
["Action Taken with this Supplier","Date","Comments for Action Taken",{"$f":"'Lists and CL Guidance'!E17","v":5},{"$f":"'Lists and CL Guidance'!F17","v":"Severe"},{"$f":"'Lists and CL Guidance'!G17","v":"Severe degradation in technical performance; Cannot meet KPP or key technical/supportability threshold; will jeopardize program success"},{"$f":"'Lists and CL Guidance'!H17","v":"Cannot meet key program milestones. \nSlip > 12months"},null,{"$f":"'Lists and CL Guidance'!I17","v":"Exceeds APB threshold\n(> 10% of Budget)"}]
["No Action",{"$f":"rev_date","v":"2022-01-01"},"Initial Assessment",{"$f":"MRL_risk_reference","v":"1 - Reference - DOD MRL Deskbook (p36) - http://www.dodmrl.com/MRL Deskbook V2020.pdf"}]
[null,null,null,{"$f":"DOD_Risk_reference","v":"2 - Reference - Risk Management Guide for DOD Acquisition\nhttps://acqnotes.com/wp-content/uploads/2014/09/DoD-Risk-Mgt-Guide-v7-interim-Dec2014.pdf"}]
[]
[]
[]
[]
[]
[]
[{"$f":"distro_statement","v":"DISTRIBUTION STATEMENT: No Distribution Statement Determined. "}]

{"sheet":"Comp 6","index":11,"n_rows":43,"n_cols":21,"rows_kept":43,"cut":false,"hidden":false,"merged":[[0,0,0,1],[0,3,0,5],[0,6,0,9],[1,0,1,1],[1,3,1,5],[1,6,1,9],[12,3,12,5],[1,16,1,20],[2,0,2,2],[2,3,2,5],[2,8,3,8],[2,9,3,9],[2,11,9,14],[3,3,3,5],[4,3,4,5],[5,3,5,5],[6,3,6,5],[7,3,7,5],[8,3,8,5],[9,3,9,5],[10,3,10,5],[11,3,11,5],[13,0,13,1],[13,3,13,5],[13,6,14,6],[13,7,14,7],[13,8,14,9],[13,17,14,17],[13,19,14,19],[13,20,14,20],[14,3,14,5],[15,3,15,7],[15,8,16,8],[15,9,16,9],[16,3,16,7],[13,16,14,16],[18,3,18,5],[18,7,19,7],[21,7,22,7],[26,3,26,9],[27,3,28,3],[27,4,28,4],[27,5,27,9],[28,6,28,7],[28,8,28,9],[29,6,29,7],[29,8,29,9],[30,6,30,7],[30,8,30,9],[31,6,31,7],[31,8,31,9],[42,0,43,9],[32,6,32,7],[32,8,32,9],[33,6,33,7],[33,8,33,9],[34,3,34,9],[35,3,36,9]]}
["Component Name",null,"Component Supplier","OEM Point of Contact",null,null,"Component Engineer"]
["Name",null,"Supplier","POC",null,null,"Engineer",null,null,null,null,null,null,null,null,null,"This section is for charting and error checking - Do not alter"]
["Response to MRL Questions1",null,null,"Brief Statement of the Risk",null,null,"Likelihood2","Consequence2","Impact\nScore","Weighted\nImpact\nScore",null,"Correcting Chart Data Labels in Excel:  After entering your L/C scores if the data labels appear as empty they must be reset in Excel.  Follow this procedure to make your data labels appear properly.\n1. Right Click on the data label box\n2. Select \"Format Data Label\"\n3. In the right hand drop down box select the far right \"Label Options\" Category\n4. Uncheck the box \"Value From Cells\"\n5. Re-Check the box \"Value From Cells\"\n6. Confirm selection area is =$A$5:$A$13\n7. Click OK\n8. Click \"Reset Label Text\"\n9. Close the EDIT drop down box",null,null,null,null,"Likelihood2","Consequence2",null,"Likelihood2","Consequence2"]
["Category/Question","y/n","Brief Explanation for Response"," (derived from Explanation for Response)",null,null,"(of occurrence)","(to system)",null,null,null,null,null,null,null,null,"(of occurrence)","(to system)",null,"(of occurrence)","(to system)"]
["Materials","N",null,null,null,null,null,null,{"$f":"IF(AND(B5=\"y\",G5>0,G5<6,H5>0,H5<6),G5*H5,\"\")","v":""},{"$f":"IF(I5<>\"\",I5*9*('System Information'!B28/'System Information'!$B$37),\"\")","v":""},null,null,null,null,null,null,{"$f":"IF(AND(B5=\"y\",G5>0,G5<6),G5,FALSE)","v":false},{"$f":"IF(AND(B5=\"y\",H5>0,H5<6),H5,FALSE)","v":false},null,{"$f":"IF(AND(Q5<>\"\",TRUE),Q5,0)","v":false},{"$f":"IF(R5<>\"\",R5,0)","v":false}]
["Cost","N",null,null,null,null,null,null,{"$f":"IF(AND(B6=\"y\",G6>0,G6<6,H6>0,H6<6),G6*H6,\"\")","v":""},{"$f":"IF(I6<>\"\",I6*9*('System Information'!B29/'System Information'!$B$37),\"\")","v":""},null,null,null,null,null,null,{"$f":"IF(AND(B6=\"y\",G6>0,G6<6),G6,FALSE)","v":false},{"$f":"IF(AND(B6=\"y\",H6>0,H6<6),H6,FALSE)","v":false},null,{"$f":"IF(Q6<>\"\",Q6,0)","v":false},false]
["Design","N",null,null,null,null,null,null,"",{"$f":"IF(I7<>\"\",I7*9*('System Information'!B30/'System Information'!$B$37),\"\")","v":""},null,null,null,null,null,null,false,false,null,false,false]
["Manufacturing Process","N",null,null,null,null,null,null,"",{"$f":"IF(I8<>\"\",I8*9*('System Information'!B31/'System Information'!$B$37),\"\")","v":""},null,null,null,null,null,null,false,false,null,false,false]
["Quality","N",null,null,null,null,null,null,"",{"$f":"IF(I9<>\"\",I9*9*('System Information'!B32/'System Information'!$B$37),\"\")","v":""},null,null,null,null,null,null,false,false,null,false,false]
["Schedule","N",null,null,null,null,null,null,"",{"$f":"IF(I10<>\"\",I10*9*('System Information'!B33/'System Information'!$B$37),\"\")","v":""},null,null,null,null,null,null,false,false,null,false,false]
["Facilities","N",null,null,null,null,null,null,"",{"$f":"IF(I11<>\"\",I11*9*('System Information'!B34/'System Information'!$B$37),\"\")","v":""},null,null,null,null,null,null,false,false,null,false,false]
["Supply Chain Management","N",null,null,null,null,null,null,"",{"$f":"IF(I12<>\"\",I12*9*('System Information'!B35/'System Information'!$B$37),\"\")","v":""},null,null,null,null,null,null,false,false,null,false,false]
["Industrial Base","N",null,null,null,null,null,null,"",{"$f":"IF(I13<>\"\",I13*9*('System Information'!B36/'System Information'!$B$37),\"\")","v":""},null,null,null,null,null,null,false,false,null,false,false]
[null,null,null,"Weighted Likelihood and Consequence:",null,null,{"$f":"IF(T14>0,T14,0)","v":0},{"$f":"IF(U14>0,U14,0)","v":0},null,null,null,null,null,null,null,null,null,null,null,{"$f":"IF(SUM(T5:T13)<>0,SUMSQ(T5:T13)/SUM(T5:T13),0)","v":0},{"$f":"IF(SUM(U5:U13)<>0,SUMSQ(U5:U13)/SUM(U5:U13),0)","v":0}]
[null,null,null,"(Used for Component/Supplier Risk Rating graphic)"]
[null,null,null,"Sum of Impact Scores:",null,null,null,null,{"$f":"IF(SUM(I5:I13)>0,SUM(I5:I13),0)","v":0},{"$f":"IF(SUM(J5:J13)>0,SUM(J5:J13),0)","v":0}]
[null,null,null,"(Used to rank potential resources required)  "]
[]
[null,null,null,{"$f":"'Lists and CL Guidance'!B2","v":"Category Guidance: Likelihood of Occurrence"},null,null,null,"Risk Rating"]
[null,null,null,{"$f":"'Lists and CL Guidance'!B3","v":"Level"},{"$f":"'Lists and CL Guidance'!C3","v":"Likelihood"},{"$f":"'Lists and CL Guidance'!D3","v":"Probability of Occurrence"}]
[null,null,null,{"$f":"'Lists and CL Guidance'!B4","v":1},{"$f":"'Lists and CL Guidance'!C4","v":"Not Likely"},{"$f":"'Lists and CL Guidance'!D4","v":"~10%  (>  1% to ≤ 20%)"}]
[null,null,null,{"$f":"'Lists and CL Guidance'!B5","v":2},{"$f":"'Lists and CL Guidance'!C5","v":"Low Likelihood"},{"$f":"'Lists and CL Guidance'!D5","v":"~30%  (> 20% to ≤ 40%)"},null,"Component Summary Sheet"]
[null,null,null,{"$f":"'Lists and CL Guidance'!B6","v":3},{"$f":"'Lists and CL Guidance'!C6","v":"Likely"},{"$f":"'Lists and CL Guidance'!D6","v":"~50%  (> 40% to ≤ 60%)"}]
[null,null,null,{"$f":"'Lists and CL Guidance'!B7","v":4},{"$f":"'Lists and CL Guidance'!C7","v":"Highly Likely"},{"$f":"'Lists and CL Guidance'!D7","v":"~70% (> 60% to ≤ 80%)"},null,null,null,null,null,null,null,null,0]
[null,null,null,{"$f":"'Lists and CL Guidance'!B8","v":5},{"$f":"'Lists and CL Guidance'!C8","v":"Near Certainty"},{"$f":"'Lists and CL Guidance'!D8","v":"~90%  (> 80% to ≤ 99%)"},null,"Hot Links "]
[]
[null,null,null,{"$f":"'Lists and CL Guidance'!E10","v":"Category Guidance: Consequence (System Impact)"}]
[null,null,null,{"$f":"'Lists and CL Guidance'!E11","v":"Level"},"Consequence",{"$f":"'Lists and CL Guidance'!G11","v":"System Impact"}]
[null,null,null,null,null,{"$f":"'Lists and CL Guidance'!G12","v":"Technical Performance"},{"$f":"'Lists and CL Guidance'!H12","v":"Schedule"},null,{"$f":"'Lists and CL Guidance'!I12","v":"Cost"}]
[null,null,null,{"$f":"'Lists and CL Guidance'!E13","v":1},{"$f":"'Lists and CL Guidance'!F13","v":"Minimal"},{"$f":"'Lists and CL Guidance'!G13","v":"Minimal or no consequence to technical performance"},{"$f":"'Lists and CL Guidance'!H13","v":"Minimal or no impact"},null,{"$f":"'Lists and CL Guidance'!I13","v":"Minimal or no impact"}]
[null,null,null,{"$f":"'Lists and CL Guidance'!E14","v":2},{"$f":"'Lists and CL Guidance'!F14","v":"Minor"},{"$f":"'Lists and CL Guidance'!G14","v":"Minor reduction in technical performance or supportability, can be tolerated with little or no impact on program"},{"$f":"'Lists and CL Guidance'!H14","v":"Able to meet key dates. \nSlip < 6 month(s)"},null,{"$f":"'Lists and CL Guidance'!I14","v":"Budget increase or unit production cost increases.\n(< 1% of Budget)"}]
[null,null,null,{"$f":"'Lists and CL Guidance'!E15","v":3},{"$f":"'Lists and CL Guidance'!F15","v":"Moderate"},{"$f":"'Lists and CL Guidance'!G15","v":"Moderate reduction in technical performance or supportability with limited impact on program objectives"},{"$f":"'Lists and CL Guidance'!H15","v":"Minor schedule slip. Able to meet key milestones with no schedule float.\nSlip < 6 month(s). Sub-system slip > 12 month(s) plus available float."},null,{"$f":"'Lists and CL Guidance'!I15","v":"Budget increase or unit production cost increases.\n(< 5% of Budget)"}]
[null,null,null,{"$f":"'Lists and CL Guidance'!E16","v":4},{"$f":"'Lists and CL Guidance'!F16","v":"Significant"},{"$f":"'Lists and CL Guidance'!G16","v":"Significant degradation in technical performance or major shortfall in supportability; may jeopardize program success"},{"$f":"'Lists and CL Guidance'!H16","v":"Program critical path affected.\nSlip < 12 months"},null,{"$f":"'Lists and CL Guidance'!I16","v":"Budget increase or unit production cost increases.\n(< 10% of Budget)"}]
["Action Taken with this Supplier","Date","Comments for Action Taken",{"$f":"'Lists and CL Guidance'!E17","v":5},{"$f":"'Lists and CL Guidance'!F17","v":"Severe"},{"$f":"'Lists and CL Guidance'!G17","v":"Severe degradation in technical performance; Cannot meet KPP or key technical/supportability threshold; will jeopardize program success"},{"$f":"'Lists and CL Guidance'!H17","v":"Cannot meet key program milestones. \nSlip > 12months"},null,{"$f":"'Lists and CL Guidance'!I17","v":"Exceeds APB threshold\n(> 10% of Budget)"}]
["No Action",{"$f":"rev_date","v":"2022-01-01"},"Initial Assessment",{"$f":"MRL_risk_reference","v":"1 - Reference - DOD MRL Deskbook (p36) - http://www.dodmrl.com/MRL Deskbook V2020.pdf"}]
[null,null,null,{"$f":"DOD_Risk_reference","v":"2 - Reference - Risk Management Guide for DOD Acquisition\nhttps://acqnotes.com/wp-content/uploads/2014/09/DoD-Risk-Mgt-Guide-v7-interim-Dec2014.pdf"}]
[]
[]
[]
[]
[]
[]
[{"$f":"distro_statement","v":"DISTRIBUTION STATEMENT: No Distribution Statement Determined. "}]

{"sheet":"Comp 7","index":12,"n_rows":43,"n_cols":21,"rows_kept":43,"cut":false,"hidden":false,"merged":[[0,0,0,1],[0,3,0,5],[0,6,0,9],[1,0,1,1],[1,3,1,5],[1,6,1,9],[12,3,12,5],[1,16,1,20],[2,0,2,2],[2,3,2,5],[2,8,3,8],[2,9,3,9],[2,11,9,14],[3,3,3,5],[4,3,4,5],[5,3,5,5],[6,3,6,5],[7,3,7,5],[8,3,8,5],[9,3,9,5],[10,3,10,5],[11,3,11,5],[13,0,13,1],[13,3,13,5],[13,6,14,6],[13,7,14,7],[13,8,14,9],[13,17,14,17],[13,19,14,19],[13,20,14,20],[14,3,14,5],[15,3,15,7],[15,8,16,8],[15,9,16,9],[16,3,16,7],[13,16,14,16],[18,3,18,5],[18,7,19,7],[21,7,22,7],[26,3,26,9],[27,3,28,3],[27,4,28,4],[27,5,27,9],[28,6,28,7],[28,8,28,9],[29,6,29,7],[29,8,29,9],[30,6,30,7],[30,8,30,9],[31,6,31,7],[31,8,31,9],[42,0,43,9],[32,6,32,7],[32,8,32,9],[33,6,33,7],[33,8,33,9],[34,3,34,9],[35,3,36,9]]}
["Component Name",null,"Component Supplier","OEM Point of Contact",null,null,"Component Engineer"]
["Name",null,"Supplier","POC",null,null,"Engineer",null,null,null,null,null,null,null,null,null,"This section is for charting and error checking - Do not alter"]
["Response to MRL Questions1",null,null,"Brief Statement of the Risk",null,null,"Likelihood2","Consequence2","Impact\nScore","Weighted\nImpact\nScore",null,"Correcting Chart Data Labels in Excel:  After entering your L/C scores if the data labels appear as empty they must be reset in Excel.  Follow this procedure to make your data labels appear properly.\n1. Right Click on the data label box\n2. Select \"Format Data Label\"\n3. In the right hand drop down box select the far right \"Label Options\" Category\n4. Uncheck the box \"Value From Cells\"\n5. Re-Check the box \"Value From Cells\"\n6. Confirm selection area is =$A$5:$A$13\n7. Click OK\n8. Click \"Reset Label Text\"\n9. Close the EDIT drop down box",null,null,null,null,"Likelihood2","Consequence2",null,"Likelihood2","Consequence2"]
["Category/Question","y/n","Brief Explanation for Response"," (derived from Explanation for Response)",null,null,"(of occurrence)","(to system)",null,null,null,null,null,null,null,null,"(of occurrence)","(to system)",null,"(of occurrence)","(to system)"]
["Materials","N",null,null,null,null,null,null,{"$f":"IF(AND(B5=\"y\",G5>0,G5<6,H5>0,H5<6),G5*H5,\"\")","v":""},{"$f":"IF(I5<>\"\",I5*9*('System Information'!B28/'System Information'!$B$37),\"\")","v":""},null,null,null,null,null,null,{"$f":"IF(AND(B5=\"y\",G5>0,G5<6),G5,FALSE)","v":false},{"$f":"IF(AND(B5=\"y\",H5>0,H5<6),H5,FALSE)","v":false},null,{"$f":"IF(AND(Q5<>\"\",TRUE),Q5,0)","v":false},{"$f":"IF(R5<>\"\",R5,0)","v":false}]
["Cost","N",null,null,null,null,null,null,{"$f":"IF(AND(B6=\"y\",G6>0,G6<6,H6>0,H6<6),G6*H6,\"\")","v":""},{"$f":"IF(I6<>\"\",I6*9*('System Information'!B29/'System Information'!$B$37),\"\")","v":""},null,null,null,null,null,null,{"$f":"IF(AND(B6=\"y\",G6>0,G6<6),G6,FALSE)","v":false},{"$f":"IF(AND(B6=\"y\",H6>0,H6<6),H6,FALSE)","v":false},null,{"$f":"IF(Q6<>\"\",Q6,0)","v":false},false]
["Design","N",null,null,null,null,null,null,"",{"$f":"IF(I7<>\"\",I7*9*('System Information'!B30/'System Information'!$B$37),\"\")","v":""},null,null,null,null,null,null,false,false,null,false,false]
["Manufacturing Process","N",null,null,null,null,null,null,"",{"$f":"IF(I8<>\"\",I8*9*('System Information'!B31/'System Information'!$B$37),\"\")","v":""},null,null,null,null,null,null,false,false,null,false,false]
["Quality","N",null,null,null,null,null,null,"",{"$f":"IF(I9<>\"\",I9*9*('System Information'!B32/'System Information'!$B$37),\"\")","v":""},null,null,null,null,null,null,false,false,null,false,false]
["Schedule","N",null,null,null,null,null,null,"",{"$f":"IF(I10<>\"\",I10*9*('System Information'!B33/'System Information'!$B$37),\"\")","v":""},null,null,null,null,null,null,false,false,null,false,false]
["Facilities","N",null,null,null,null,null,null,"",{"$f":"IF(I11<>\"\",I11*9*('System Information'!B34/'System Information'!$B$37),\"\")","v":""},null,null,null,null,null,null,false,false,null,false,false]
["Supply Chain Management","N",null,null,null,null,null,null,"",{"$f":"IF(I12<>\"\",I12*9*('System Information'!B35/'System Information'!$B$37),\"\")","v":""},null,null,null,null,null,null,false,false,null,false,false]
["Industrial Base","N",null,null,null,null,null,null,"",{"$f":"IF(I13<>\"\",I13*9*('System Information'!B36/'System Information'!$B$37),\"\")","v":""},null,null,null,null,null,null,false,false,null,false,false]
[null,null,null,"Weighted Likelihood and Consequence:",null,null,{"$f":"IF(T14>0,T14,0)","v":0},{"$f":"IF(U14>0,U14,0)","v":0},null,null,null,null,null,null,null,null,null,null,null,{"$f":"IF(SUM(T5:T13)<>0,SUMSQ(T5:T13)/SUM(T5:T13),0)","v":0},{"$f":"IF(SUM(U5:U13)<>0,SUMSQ(U5:U13)/SUM(U5:U13),0)","v":0}]
[null,null,null,"(Used for Component/Supplier Risk Rating graphic)"]
[null,null,null,"Sum of Impact Scores:",null,null,null,null,{"$f":"IF(SUM(I5:I13)>0,SUM(I5:I13),0)","v":0},{"$f":"IF(SUM(J5:J13)>0,SUM(J5:J13),0)","v":0}]
[null,null,null,"(Used to rank potential resources required)  "]
[]
[null,null,null,{"$f":"'Lists and CL Guidance'!B2","v":"Category Guidance: Likelihood of Occurrence"},null,null,null,"Risk Rating"]
[null,null,null,{"$f":"'Lists and CL Guidance'!B3","v":"Level"},{"$f":"'Lists and CL Guidance'!C3","v":"Likelihood"},{"$f":"'Lists and CL Guidance'!D3","v":"Probability of Occurrence"}]
[null,null,null,{"$f":"'Lists and CL Guidance'!B4","v":1},{"$f":"'Lists and CL Guidance'!C4","v":"Not Likely"},{"$f":"'Lists and CL Guidance'!D4","v":"~10%  (>  1% to ≤ 20%)"}]
[null,null,null,{"$f":"'Lists and CL Guidance'!B5","v":2},{"$f":"'Lists and CL Guidance'!C5","v":"Low Likelihood"},{"$f":"'Lists and CL Guidance'!D5","v":"~30%  (> 20% to ≤ 40%)"},null,"Component Summary Sheet"]
[null,null,null,{"$f":"'Lists and CL Guidance'!B6","v":3},{"$f":"'Lists and CL Guidance'!C6","v":"Likely"},{"$f":"'Lists and CL Guidance'!D6","v":"~50%  (> 40% to ≤ 60%)"}]
[null,null,null,{"$f":"'Lists and CL Guidance'!B7","v":4},{"$f":"'Lists and CL Guidance'!C7","v":"Highly Likely"},{"$f":"'Lists and CL Guidance'!D7","v":"~70% (> 60% to ≤ 80%)"},null,null,null,null,null,null,null,null,0]
[null,null,null,{"$f":"'Lists and CL Guidance'!B8","v":5},{"$f":"'Lists and CL Guidance'!C8","v":"Near Certainty"},{"$f":"'Lists and CL Guidance'!D8","v":"~90%  (> 80% to ≤ 99%)"},null,"Hot Links "]
[]
[null,null,null,{"$f":"'Lists and CL Guidance'!E10","v":"Category Guidance: Consequence (System Impact)"}]
[null,null,null,{"$f":"'Lists and CL Guidance'!E11","v":"Level"},"Consequence",{"$f":"'Lists and CL Guidance'!G11","v":"System Impact"}]
[null,null,null,null,null,{"$f":"'Lists and CL Guidance'!G12","v":"Technical Performance"},{"$f":"'Lists and CL Guidance'!H12","v":"Schedule"},null,{"$f":"'Lists and CL Guidance'!I12","v":"Cost"}]
[null,null,null,{"$f":"'Lists and CL Guidance'!E13","v":1},{"$f":"'Lists and CL Guidance'!F13","v":"Minimal"},{"$f":"'Lists and CL Guidance'!G13","v":"Minimal or no consequence to technical performance"},{"$f":"'Lists and CL Guidance'!H13","v":"Minimal or no impact"},null,{"$f":"'Lists and CL Guidance'!I13","v":"Minimal or no impact"}]
[null,null,null,{"$f":"'Lists and CL Guidance'!E14","v":2},{"$f":"'Lists and CL Guidance'!F14","v":"Minor"},{"$f":"'Lists and CL Guidance'!G14","v":"Minor reduction in technical performance or supportability, can be tolerated with little or no impact on program"},{"$f":"'Lists and CL Guidance'!H14","v":"Able to meet key dates. \nSlip < 6 month(s)"},null,{"$f":"'Lists and CL Guidance'!I14","v":"Budget increase or unit production cost increases.\n(< 1% of Budget)"}]
[null,null,null,{"$f":"'Lists and CL Guidance'!E15","v":3},{"$f":"'Lists and CL Guidance'!F15","v":"Moderate"},{"$f":"'Lists and CL Guidance'!G15","v":"Moderate reduction in technical performance or supportability with limited impact on program objectives"},{"$f":"'Lists and CL Guidance'!H15","v":"Minor schedule slip. Able to meet key milestones with no schedule float.\nSlip < 6 month(s). Sub-system slip > 12 month(s) plus available float."},null,{"$f":"'Lists and CL Guidance'!I15","v":"Budget increase or unit production cost increases.\n(< 5% of Budget)"}]
[null,null,null,{"$f":"'Lists and CL Guidance'!E16","v":4},{"$f":"'Lists and CL Guidance'!F16","v":"Significant"},{"$f":"'Lists and CL Guidance'!G16","v":"Significant degradation in technical performance or major shortfall in supportability; may jeopardize program success"},{"$f":"'Lists and CL Guidance'!H16","v":"Program critical path affected.\nSlip < 12 months"},null,{"$f":"'Lists and CL Guidance'!I16","v":"Budget increase or unit production cost increases.\n(< 10% of Budget)"}]
["Action Taken with this Supplier","Date","Comments for Action Taken",{"$f":"'Lists and CL Guidance'!E17","v":5},{"$f":"'Lists and CL Guidance'!F17","v":"Severe"},{"$f":"'Lists and CL Guidance'!G17","v":"Severe degradation in technical performance; Cannot meet KPP or key technical/supportability threshold; will jeopardize program success"},{"$f":"'Lists and CL Guidance'!H17","v":"Cannot meet key program milestones. \nSlip > 12months"},null,{"$f":"'Lists and CL Guidance'!I17","v":"Exceeds APB threshold\n(> 10% of Budget)"}]
["No Action",{"$f":"rev_date","v":"2022-01-01"},"Initial Assessment",{"$f":"MRL_risk_reference","v":"1 - Reference - DOD MRL Deskbook (p36) - http://www.dodmrl.com/MRL Deskbook V2020.pdf"}]
[null,null,null,{"$f":"DOD_Risk_reference","v":"2 - Reference - Risk Management Guide for DOD Acquisition\nhttps://acqnotes.com/wp-content/uploads/2014/09/DoD-Risk-Mgt-Guide-v7-interim-Dec2014.pdf"}]
[]
[]
[]
[]
[]
[]
[{"$f":"distro_statement","v":"DISTRIBUTION STATEMENT: No Distribution Statement Determined. "}]

{"sheet":"Comp 8","index":13,"n_rows":43,"n_cols":21,"rows_kept":43,"cut":false,"hidden":false,"merged":[[0,0,0,1],[0,3,0,5],[0,6,0,9],[1,0,1,1],[1,3,1,5],[1,6,1,9],[12,3,12,5],[1,16,1,20],[2,0,2,2],[2,3,2,5],[2,8,3,8],[2,9,3,9],[2,11,9,14],[3,3,3,5],[4,3,4,5],[5,3,5,5],[6,3,6,5],[7,3,7,5],[8,3,8,5],[9,3,9,5],[10,3,10,5],[11,3,11,5],[13,0,13,1],[13,3,13,5],[13,6,14,6],[13,7,14,7],[13,8,14,9],[13,17,14,17],[13,19,14,19],[13,20,14,20],[14,3,14,5],[15,3,15,7],[15,8,16,8],[15,9,16,9],[16,3,16,7],[13,16,14,16],[18,3,18,5],[18,7,19,7],[21,7,22,7],[26,3,26,9],[27,3,28,3],[27,4,28,4],[27,5,27,9],[28,6,28,7],[28,8,28,9],[29,6,29,7],[29,8,29,9],[30,6,30,7],[30,8,30,9],[31,6,31,7],[31,8,31,9],[42,0,43,9],[32,6,32,7],[32,8,32,9],[33,6,33,7],[33,8,33,9],[34,3,34,9],[35,3,36,9]]}
["Component Name",null,"Component Supplier","OEM Point of Contact",null,null,"Component Engineer"]
["Name",null,"Supplier","POC",null,null,"Engineer",null,null,null,null,null,null,null,null,null,"This section is for charting and error checking - Do not alter"]
["Response to MRL Questions1",null,null,"Brief Statement of the Risk",null,null,"Likelihood2","Consequence2","Impact\nScore","Weighted\nImpact\nScore",null,"Correcting Chart Data Labels in Excel:  After entering your L/C scores if the data labels appear as empty they must be reset in Excel.  Follow this procedure to make your data labels appear properly.\n1. Right Click on the data label box\n2. Select \"Format Data Label\"\n3. In the right hand drop down box select the far right \"Label Options\" Category\n4. Uncheck the box \"Value From Cells\"\n5. Re-Check the box \"Value From Cells\"\n6. Confirm selection area is =$A$5:$A$13\n7. Click OK\n8. Click \"Reset Label Text\"\n9. Close the EDIT drop down box",null,null,null,null,"Likelihood2","Consequence2",null,"Likelihood2","Consequence2"]
["Category/Question","y/n","Brief Explanation for Response"," (derived from Explanation for Response)",null,null,"(of occurrence)","(to system)",null,null,null,null,null,null,null,null,"(of occurrence)","(to system)",null,"(of occurrence)","(to system)"]
["Materials","N",null,null,null,null,null,null,{"$f":"IF(AND(B5=\"y\",G5>0,G5<6,H5>0,H5<6),G5*H5,\"\")","v":""},{"$f":"IF(I5<>\"\",I5*9*('System Information'!B28/'System Information'!$B$37),\"\")","v":""},null,null,null,null,null,null,{"$f":"IF(AND(B5=\"y\",G5>0,G5<6),G5,FALSE)","v":false},{"$f":"IF(AND(B5=\"y\",H5>0,H5<6),H5,FALSE)","v":false},null,{"$f":"IF(AND(Q5<>\"\",TRUE),Q5,0)","v":false},{"$f":"IF(R5<>\"\",R5,0)","v":false}]
["Cost","N",null,null,null,null,null,null,{"$f":"IF(AND(B6=\"y\",G6>0,G6<6,H6>0,H6<6),G6*H6,\"\")","v":""},{"$f":"IF(I6<>\"\",I6*9*('System Information'!B29/'System Information'!$B$37),\"\")","v":""},null,null,null,null,null,null,{"$f":"IF(AND(B6=\"y\",G6>0,G6<6),G6,FALSE)","v":false},{"$f":"IF(AND(B6=\"y\",H6>0,H6<6),H6,FALSE)","v":false},null,{"$f":"IF(Q6<>\"\",Q6,0)","v":false},false]
["Design","N",null,null,null,null,null,null,"",{"$f":"IF(I7<>\"\",I7*9*('System Information'!B30/'System Information'!$B$37),\"\")","v":""},null,null,null,null,null,null,false,false,null,false,false]
["Manufacturing Process","N",null,null,null,null,null,null,"",{"$f":"IF(I8<>\"\",I8*9*('System Information'!B31/'System Information'!$B$37),\"\")","v":""},null,null,null,null,null,null,false,false,null,false,false]
["Quality","N",null,null,null,null,null,null,"",{"$f":"IF(I9<>\"\",I9*9*('System Information'!B32/'System Information'!$B$37),\"\")","v":""},null,null,null,null,null,null,false,false,null,false,false]
["Schedule","N",null,null,null,null,null,null,"",{"$f":"IF(I10<>\"\",I10*9*('System Information'!B33/'System Information'!$B$37),\"\")","v":""},null,null,null,null,null,null,false,false,null,false,false]
["Facilities","N",null,null,null,null,null,null,"",{"$f":"IF(I11<>\"\",I11*9*('System Information'!B34/'System Information'!$B$37),\"\")","v":""},null,null,null,null,null,null,false,false,null,false,false]
["Supply Chain Management","N",null,null,null,null,null,null,"",{"$f":"IF(I12<>\"\",I12*9*('System Information'!B35/'System Information'!$B$37),\"\")","v":""},null,null,null,null,null,null,false,false,null,false,false]
["Industrial Base","N",null,null,null,null,null,null,"",{"$f":"IF(I13<>\"\",I13*9*('System Information'!B36/'System Information'!$B$37),\"\")","v":""},null,null,null,null,null,null,false,false,null,false,false]
[null,null,null,"Weighted Likelihood and Consequence:",null,null,{"$f":"IF(T14>0,T14,0)","v":0},{"$f":"IF(U14>0,U14,0)","v":0},null,null,null,null,null,null,null,null,null,null,null,{"$f":"IF(SUM(T5:T13)<>0,SUMSQ(T5:T13)/SUM(T5:T13),0)","v":0},{"$f":"IF(SUM(U5:U13)<>0,SUMSQ(U5:U13)/SUM(U5:U13),0)","v":0}]
[null,null,null,"(Used for Component/Supplier Risk Rating graphic)"]
[null,null,null,"Sum of Impact Scores:",null,null,null,null,{"$f":"IF(SUM(I5:I13)>0,SUM(I5:I13),0)","v":0},{"$f":"IF(SUM(J5:J13)>0,SUM(J5:J13),0)","v":0}]
[null,null,null,"(Used to rank potential resources required)  "]
[]
[null,null,null,{"$f":"'Lists and CL Guidance'!B2","v":"Category Guidance: Likelihood of Occurrence"},null,null,null,"Risk Rating"]
[null,null,null,{"$f":"'Lists and CL Guidance'!B3","v":"Level"},{"$f":"'Lists and CL Guidance'!C3","v":"Likelihood"},{"$f":"'Lists and CL Guidance'!D3","v":"Probability of Occurrence"}]
[null,null,null,{"$f":"'Lists and CL Guidance'!B4","v":1},{"$f":"'Lists and CL Guidance'!C4","v":"Not Likely"},{"$f":"'Lists and CL Guidance'!D4","v":"~10%  (>  1% to ≤ 20%)"}]
[null,null,null,{"$f":"'Lists and CL Guidance'!B5","v":2},{"$f":"'Lists and CL Guidance'!C5","v":"Low Likelihood"},{"$f":"'Lists and CL Guidance'!D5","v":"~30%  (> 20% to ≤ 40%)"},null,"Component Summary Sheet"]
[null,null,null,{"$f":"'Lists and CL Guidance'!B6","v":3},{"$f":"'Lists and CL Guidance'!C6","v":"Likely"},{"$f":"'Lists and CL Guidance'!D6","v":"~50%  (> 40% to ≤ 60%)"}]
[null,null,null,{"$f":"'Lists and CL Guidance'!B7","v":4},{"$f":"'Lists and CL Guidance'!C7","v":"Highly Likely"},{"$f":"'Lists and CL Guidance'!D7","v":"~70% (> 60% to ≤ 80%)"},null,null,null,null,null,null,null,null,0]
[null,null,null,{"$f":"'Lists and CL Guidance'!B8","v":5},{"$f":"'Lists and CL Guidance'!C8","v":"Near Certainty"},{"$f":"'Lists and CL Guidance'!D8","v":"~90%  (> 80% to ≤ 99%)"},null,"Hot Links "]
[]
[null,null,null,{"$f":"'Lists and CL Guidance'!E10","v":"Category Guidance: Consequence (System Impact)"}]
[null,null,null,{"$f":"'Lists and CL Guidance'!E11","v":"Level"},"Consequence",{"$f":"'Lists and CL Guidance'!G11","v":"System Impact"}]
[null,null,null,null,null,{"$f":"'Lists and CL Guidance'!G12","v":"Technical Performance"},{"$f":"'Lists and CL Guidance'!H12","v":"Schedule"},null,{"$f":"'Lists and CL Guidance'!I12","v":"Cost"}]
[null,null,null,{"$f":"'Lists and CL Guidance'!E13","v":1},{"$f":"'Lists and CL Guidance'!F13","v":"Minimal"},{"$f":"'Lists and CL Guidance'!G13","v":"Minimal or no consequence to technical performance"},{"$f":"'Lists and CL Guidance'!H13","v":"Minimal or no impact"},null,{"$f":"'Lists and CL Guidance'!I13","v":"Minimal or no impact"}]
[null,null,null,{"$f":"'Lists and CL Guidance'!E14","v":2},{"$f":"'Lists and CL Guidance'!F14","v":"Minor"},{"$f":"'Lists and CL Guidance'!G14","v":"Minor reduction in technical performance or supportability, can be tolerated with little or no impact on program"},{"$f":"'Lists and CL Guidance'!H14","v":"Able to meet key dates. \nSlip < 6 month(s)"},null,{"$f":"'Lists and CL Guidance'!I14","v":"Budget increase or unit production cost increases.\n(< 1% of Budget)"}]
[null,null,null,{"$f":"'Lists and CL Guidance'!E15","v":3},{"$f":"'Lists and CL Guidance'!F15","v":"Moderate"},{"$f":"'Lists and CL Guidance'!G15","v":"Moderate reduction in technical performance or supportability with limited impact on program objectives"},{"$f":"'Lists and CL Guidance'!H15","v":"Minor schedule slip. Able to meet key milestones with no schedule float.\nSlip < 6 month(s). Sub-system slip > 12 month(s) plus available float."},null,{"$f":"'Lists and CL Guidance'!I15","v":"Budget increase or unit production cost increases.\n(< 5% of Budget)"}]
[null,null,null,{"$f":"'Lists and CL Guidance'!E16","v":4},{"$f":"'Lists and CL Guidance'!F16","v":"Significant"},{"$f":"'Lists and CL Guidance'!G16","v":"Significant degradation in technical performance or major shortfall in supportability; may jeopardize program success"},{"$f":"'Lists and CL Guidance'!H16","v":"Program critical path affected.\nSlip < 12 months"},null,{"$f":"'Lists and CL Guidance'!I16","v":"Budget increase or unit production cost increases.\n(< 10% of Budget)"}]
["Action Taken with this Supplier","Date","Comments for Action Taken",{"$f":"'Lists and CL Guidance'!E17","v":5},{"$f":"'Lists and CL Guidance'!F17","v":"Severe"},{"$f":"'Lists and CL Guidance'!G17","v":"Severe degradation in technical performance; Cannot meet KPP or key technical/supportability threshold; will jeopardize program success"},{"$f":"'Lists and CL Guidance'!H17","v":"Cannot meet key program milestones. \nSlip > 12months"},null,{"$f":"'Lists and CL Guidance'!I17","v":"Exceeds APB threshold\n(> 10% of Budget)"}]
["No Action",{"$f":"rev_date","v":"2022-01-01"},"Initial Assessment",{"$f":"MRL_risk_reference","v":"1 - Reference - DOD MRL Deskbook (p36) - http://www.dodmrl.com/MRL Deskbook V2020.pdf"}]
[null,null,null,{"$f":"DOD_Risk_reference","v":"2 - Reference - Risk Management Guide for DOD Acquisition\nhttps://acqnotes.com/wp-content/uploads/2014/09/DoD-Risk-Mgt-Guide-v7-interim-Dec2014.pdf"}]
[]
[]
[]
[]
[]
[]
[{"$f":"distro_statement","v":"DISTRIBUTION STATEMENT: No Distribution Statement Determined. "}]

{"sheet":"Comp 9","index":14,"n_rows":43,"n_cols":21,"rows_kept":43,"cut":false,"hidden":false,"merged":[[0,0,0,1],[0,3,0,5],[0,6,0,9],[1,0,1,1],[1,3,1,5],[1,6,1,9],[12,3,12,5],[1,16,1,20],[2,0,2,2],[2,3,2,5],[2,8,3,8],[2,9,3,9],[2,11,9,14],[3,3,3,5],[4,3,4,5],[5,3,5,5],[6,3,6,5],[7,3,7,5],[8,3,8,5],[9,3,9,5],[10,3,10,5],[11,3,11,5],[13,0,13,1],[13,3,13,5],[13,6,14,6],[13,7,14,7],[13,8,14,9],[13,17,14,17],[13,19,14,19],[13,20,14,20],[14,3,14,5],[15,3,15,7],[15,8,16,8],[15,9,16,9],[16,3,16,7],[13,16,14,16],[18,3,18,5],[18,7,19,7],[21,7,22,7],[26,3,26,9],[27,3,28,3],[27,4,28,4],[27,5,27,9],[28,6,28,7],[28,8,28,9],[29,6,29,7],[29,8,29,9],[30,6,30,7],[30,8,30,9],[31,6,31,7],[31,8,31,9],[42,0,43,9],[32,6,32,7],[32,8,32,9],[33,6,33,7],[33,8,33,9],[34,3,34,9],[35,3,36,9]]}
["Component Name",null,"Component Supplier","OEM Point of Contact",null,null,"Component Engineer"]
["Name",null,"Supplier","POC",null,null,"Engineer",null,null,null,null,null,null,null,null,null,"This section is for charting and error checking - Do not alter"]
["Response to MRL Questions1",null,null,"Brief Statement of the Risk",null,null,"Likelihood2","Consequence2","Impact\nScore","Weighted\nImpact\nScore",null,"Correcting Chart Data Labels in Excel:  After entering your L/C scores if the data labels appear as empty they must be reset in Excel.  Follow this procedure to make your data labels appear properly.\n1. Right Click on the data label box\n2. Select \"Format Data Label\"\n3. In the right hand drop down box select the far right \"Label Options\" Category\n4. Uncheck the box \"Value From Cells\"\n5. Re-Check the box \"Value From Cells\"\n6. Confirm selection area is =$A$5:$A$13\n7. Click OK\n8. Click \"Reset Label Text\"\n9. Close the EDIT drop down box",null,null,null,null,"Likelihood2","Consequence2",null,"Likelihood2","Consequence2"]
["Category/Question","y/n","Brief Explanation for Response"," (derived from Explanation for Response)",null,null,"(of occurrence)","(to system)",null,null,null,null,null,null,null,null,"(of occurrence)","(to system)",null,"(of occurrence)","(to system)"]
["Materials","N",null,null,null,null,null,null,{"$f":"IF(AND(B5=\"y\",G5>0,G5<6,H5>0,H5<6),G5*H5,\"\")","v":""},{"$f":"IF(I5<>\"\",I5*9*('System Information'!B28/'System Information'!$B$37),\"\")","v":""},null,null,null,null,null,null,{"$f":"IF(AND(B5=\"y\",G5>0,G5<6),G5,FALSE)","v":false},{"$f":"IF(AND(B5=\"y\",H5>0,H5<6),H5,FALSE)","v":false},null,{"$f":"IF(AND(Q5<>\"\",TRUE),Q5,0)","v":false},{"$f":"IF(R5<>\"\",R5,0)","v":false}]
["Cost","N",null,null,null,null,null,null,{"$f":"IF(AND(B6=\"y\",G6>0,G6<6,H6>0,H6<6),G6*H6,\"\")","v":""},{"$f":"IF(I6<>\"\",I6*9*('System Information'!B29/'System Information'!$B$37),\"\")","v":""},null,null,null,null,null,null,{"$f":"IF(AND(B6=\"y\",G6>0,G6<6),G6,FALSE)","v":false},{"$f":"IF(AND(B6=\"y\",H6>0,H6<6),H6,FALSE)","v":false},null,{"$f":"IF(Q6<>\"\",Q6,0)","v":false},false]
["Design","N",null,null,null,null,null,null,"",{"$f":"IF(I7<>\"\",I7*9*('System Information'!B30/'System Information'!$B$37),\"\")","v":""},null,null,null,null,null,null,false,false,null,false,false]
["Manufacturing Process","N",null,null,null,null,null,null,"",{"$f":"IF(I8<>\"\",I8*9*('System Information'!B31/'System Information'!$B$37),\"\")","v":""},null,null,null,null,null,null,false,false,null,false,false]
["Quality","N",null,null,null,null,null,null,"",{"$f":"IF(I9<>\"\",I9*9*('System Information'!B32/'System Information'!$B$37),\"\")","v":""},null,null,null,null,null,null,false,false,null,false,false]
["Schedule","N",null,null,null,null,null,null,"",{"$f":"IF(I10<>\"\",I10*9*('System Information'!B33/'System Information'!$B$37),\"\")","v":""},null,null,null,null,null,null,false,false,null,false,false]
["Facilities","N",null,null,null,null,null,null,"",{"$f":"IF(I11<>\"\",I11*9*('System Information'!B34/'System Information'!$B$37),\"\")","v":""},null,null,null,null,null,null,false,false,null,false,false]
["Supply Chain Management","N",null,null,null,null,null,null,"",{"$f":"IF(I12<>\"\",I12*9*('System Information'!B35/'System Information'!$B$37),\"\")","v":""},null,null,null,null,null,null,false,false,null,false,false]
["Industrial Base","N",null,null,null,null,null,null,"",{"$f":"IF(I13<>\"\",I13*9*('System Information'!B36/'System Information'!$B$37),\"\")","v":""},null,null,null,null,null,null,false,false,null,false,false]
[null,null,null,"Weighted Likelihood and Consequence:",null,null,{"$f":"IF(T14>0,T14,0)","v":0},{"$f":"IF(U14>0,U14,0)","v":0},null,null,null,null,null,null,null,null,null,null,null,{"$f":"IF(SUM(T5:T13)<>0,SUMSQ(T5:T13)/SUM(T5:T13),0)","v":0},{"$f":"IF(SUM(U5:U13)<>0,SUMSQ(U5:U13)/SUM(U5:U13),0)","v":0}]
[null,null,null,"(Used for Component/Supplier Risk Rating graphic)"]
[null,null,null,"Sum of Impact Scores:",null,null,null,null,{"$f":"IF(SUM(I5:I13)>0,SUM(I5:I13),0)","v":0},{"$f":"IF(SUM(J5:J13)>0,SUM(J5:J13),0)","v":0}]
[null,null,null,"(Used to rank potential resources required)  "]
[]
[null,null,null,{"$f":"'Lists and CL Guidance'!B2","v":"Category Guidance: Likelihood of Occurrence"},null,null,null,"Risk Rating"]
[null,null,null,{"$f":"'Lists and CL Guidance'!B3","v":"Level"},{"$f":"'Lists and CL Guidance'!C3","v":"Likelihood"},{"$f":"'Lists and CL Guidance'!D3","v":"Probability of Occurrence"}]
[null,null,null,{"$f":"'Lists and CL Guidance'!B4","v":1},{"$f":"'Lists and CL Guidance'!C4","v":"Not Likely"},{"$f":"'Lists and CL Guidance'!D4","v":"~10%  (>  1% to ≤ 20%)"}]
[null,null,null,{"$f":"'Lists and CL Guidance'!B5","v":2},{"$f":"'Lists and CL Guidance'!C5","v":"Low Likelihood"},{"$f":"'Lists and CL Guidance'!D5","v":"~30%  (> 20% to ≤ 40%)"},null,"Component Summary Sheet"]
[null,null,null,{"$f":"'Lists and CL Guidance'!B6","v":3},{"$f":"'Lists and CL Guidance'!C6","v":"Likely"},{"$f":"'Lists and CL Guidance'!D6","v":"~50%  (> 40% to ≤ 60%)"}]
[null,null,null,{"$f":"'Lists and CL Guidance'!B7","v":4},{"$f":"'Lists and CL Guidance'!C7","v":"Highly Likely"},{"$f":"'Lists and CL Guidance'!D7","v":"~70% (> 60% to ≤ 80%)"},null,null,null,null,null,null,null,null,0]
[null,null,null,{"$f":"'Lists and CL Guidance'!B8","v":5},{"$f":"'Lists and CL Guidance'!C8","v":"Near Certainty"},{"$f":"'Lists and CL Guidance'!D8","v":"~90%  (> 80% to ≤ 99%)"},null,"Hot Links "]
[]
[null,null,null,{"$f":"'Lists and CL Guidance'!E10","v":"Category Guidance: Consequence (System Impact)"}]
[null,null,null,{"$f":"'Lists and CL Guidance'!E11","v":"Level"},"Consequence",{"$f":"'Lists and CL Guidance'!G11","v":"System Impact"}]
[null,null,null,null,null,{"$f":"'Lists and CL Guidance'!G12","v":"Technical Performance"},{"$f":"'Lists and CL Guidance'!H12","v":"Schedule"},null,{"$f":"'Lists and CL Guidance'!I12","v":"Cost"}]
[null,null,null,{"$f":"'Lists and CL Guidance'!E13","v":1},{"$f":"'Lists and CL Guidance'!F13","v":"Minimal"},{"$f":"'Lists and CL Guidance'!G13","v":"Minimal or no consequence to technical performance"},{"$f":"'Lists and CL Guidance'!H13","v":"Minimal or no impact"},null,{"$f":"'Lists and CL Guidance'!I13","v":"Minimal or no impact"}]
[null,null,null,{"$f":"'Lists and CL Guidance'!E14","v":2},{"$f":"'Lists and CL Guidance'!F14","v":"Minor"},{"$f":"'Lists and CL Guidance'!G14","v":"Minor reduction in technical performance or supportability, can be tolerated with little or no impact on program"},{"$f":"'Lists and CL Guidance'!H14","v":"Able to meet key dates. \nSlip < 6 month(s)"},null,{"$f":"'Lists and CL Guidance'!I14","v":"Budget increase or unit production cost increases.\n(< 1% of Budget)"}]
[null,null,null,{"$f":"'Lists and CL Guidance'!E15","v":3},{"$f":"'Lists and CL Guidance'!F15","v":"Moderate"},{"$f":"'Lists and CL Guidance'!G15","v":"Moderate reduction in technical performance or supportability with limited impact on program objectives"},{"$f":"'Lists and CL Guidance'!H15","v":"Minor schedule slip. Able to meet key milestones with no schedule float.\nSlip < 6 month(s). Sub-system slip > 12 month(s) plus available float."},null,{"$f":"'Lists and CL Guidance'!I15","v":"Budget increase or unit production cost increases.\n(< 5% of Budget)"}]
[null,null,null,{"$f":"'Lists and CL Guidance'!E16","v":4},{"$f":"'Lists and CL Guidance'!F16","v":"Significant"},{"$f":"'Lists and CL Guidance'!G16","v":"Significant degradation in technical performance or major shortfall in supportability; may jeopardize program success"},{"$f":"'Lists and CL Guidance'!H16","v":"Program critical path affected.\nSlip < 12 months"},null,{"$f":"'Lists and CL Guidance'!I16","v":"Budget increase or unit production cost increases.\n(< 10% of Budget)"}]
["Action Taken with this Supplier","Date","Comments for Action Taken",{"$f":"'Lists and CL Guidance'!E17","v":5},{"$f":"'Lists and CL Guidance'!F17","v":"Severe"},{"$f":"'Lists and CL Guidance'!G17","v":"Severe degradation in technical performance; Cannot meet KPP or key technical/supportability threshold; will jeopardize program success"},{"$f":"'Lists and CL Guidance'!H17","v":"Cannot meet key program milestones. \nSlip > 12months"},null,{"$f":"'Lists and CL Guidance'!I17","v":"Exceeds APB threshold\n(> 10% of Budget)"}]
["No Action",{"$f":"rev_date","v":"2022-01-01"},"Initial Assessment",{"$f":"MRL_risk_reference","v":"1 - Reference - DOD MRL Deskbook (p36) - http://www.dodmrl.com/MRL Deskbook V2020.pdf"}]
[null,null,null,{"$f":"DOD_Risk_reference","v":"2 - Reference - Risk Management Guide for DOD Acquisition\nhttps://acqnotes.com/wp-content/uploads/2014/09/DoD-Risk-Mgt-Guide-v7-interim-Dec2014.pdf"}]
[]
[]
[]
[]
[]
[]
[{"$f":"distro_statement","v":"DISTRIBUTION STATEMENT: No Distribution Statement Determined. "}]

{"sheet":"Comp 10","index":15,"n_rows":43,"n_cols":21,"rows_kept":43,"cut":false,"hidden":false,"merged":[[0,0,0,1],[0,3,0,5],[0,6,0,9],[1,0,1,1],[1,3,1,5],[1,6,1,9],[12,3,12,5],[1,16,1,20],[2,0,2,2],[2,3,2,5],[2,8,3,8],[2,9,3,9],[2,11,9,14],[3,3,3,5],[4,3,4,5],[5,3,5,5],[6,3,6,5],[7,3,7,5],[8,3,8,5],[9,3,9,5],[10,3,10,5],[11,3,11,5],[13,0,13,1],[13,3,13,5],[13,6,14,6],[13,7,14,7],[13,8,14,9],[13,17,14,17],[13,19,14,19],[13,20,14,20],[14,3,14,5],[15,3,15,7],[15,8,16,8],[15,9,16,9],[16,3,16,7],[13,16,14,16],[18,3,18,5],[18,7,19,7],[21,7,22,7],[26,3,26,9],[27,3,28,3],[27,4,28,4],[27,5,27,9],[28,6,28,7],[28,8,28,9],[29,6,29,7],[29,8,29,9],[30,6,30,7],[30,8,30,9],[31,6,31,7],[31,8,31,9],[42,0,43,9],[32,6,32,7],[32,8,32,9],[33,6,33,7],[33,8,33,9],[34,3,34,9],[35,3,36,9]]}
["Component Name",null,"Component Supplier","OEM Point of Contact",null,null,"Component Engineer"]
["Name",null,"Supplier","POC",null,null,"Engineer",null,null,null,null,null,null,null,null,null,"This section is for charting and error checking - Do not alter"]
["Response to MRL Questions1",null,null,"Brief Statement of the Risk",null,null,"Likelihood2","Consequence2","Impact\nScore","Weighted\nImpact\nScore",null,"Correcting Chart Data Labels in Excel:  After entering your L/C scores if the data labels appear as empty they must be reset in Excel.  Follow this procedure to make your data labels appear properly.\n1. Right Click on the data label box\n2. Select \"Format Data Label\"\n3. In the right hand drop down box select the far right \"Label Options\" Category\n4. Uncheck the box \"Value From Cells\"\n5. Re-Check the box \"Value From Cells\"\n6. Confirm selection area is =$A$5:$A$13\n7. Click OK\n8. Click \"Reset Label Text\"\n9. Close the EDIT drop down box",null,null,null,null,"Likelihood2","Consequence2",null,"Likelihood2","Consequence2"]
["Category/Question","y/n","Brief Explanation for Response"," (derived from Explanation for Response)",null,null,"(of occurrence)","(to system)",null,null,null,null,null,null,null,null,"(of occurrence)","(to system)",null,"(of occurrence)","(to system)"]
["Materials","N",null,null,null,null,null,null,{"$f":"IF(AND(B5=\"y\",G5>0,G5<6,H5>0,H5<6),G5*H5,\"\")","v":""},{"$f":"IF(I5<>\"\",I5*9*('System Information'!B28/'System Information'!$B$37),\"\")","v":""},null,null,null,null,null,null,{"$f":"IF(AND(B5=\"y\",G5>0,G5<6),G5,FALSE)","v":false},{"$f":"IF(AND(B5=\"y\",H5>0,H5<6),H5,FALSE)","v":false},null,{"$f":"IF(AND(Q5<>\"\",TRUE),Q5,0)","v":false},{"$f":"IF(R5<>\"\",R5,0)","v":false}]
["Cost","N",null,null,null,null,null,null,{"$f":"IF(AND(B6=\"y\",G6>0,G6<6,H6>0,H6<6),G6*H6,\"\")","v":""},{"$f":"IF(I6<>\"\",I6*9*('System Information'!B29/'System Information'!$B$37),\"\")","v":""},null,null,null,null,null,null,{"$f":"IF(AND(B6=\"y\",G6>0,G6<6),G6,FALSE)","v":false},{"$f":"IF(AND(B6=\"y\",H6>0,H6<6),H6,FALSE)","v":false},null,{"$f":"IF(Q6<>\"\",Q6,0)","v":false},false]
["Design","N",null,null,null,null,null,null,"",{"$f":"IF(I7<>\"\",I7*9*('System Information'!B30/'System Information'!$B$37),\"\")","v":""},null,null,null,null,null,null,false,false,null,false,false]
["Manufacturing Process","N",null,null,null,null,null,null,"",{"$f":"IF(I8<>\"\",I8*9*('System Information'!B31/'System Information'!$B$37),\"\")","v":""},null,null,null,null,null,null,false,false,null,false,false]
["Quality","N",null,null,null,null,null,null,"",{"$f":"IF(I9<>\"\",I9*9*('System Information'!B32/'System Information'!$B$37),\"\")","v":""},null,null,null,null,null,null,false,false,null,false,false]
["Schedule","N",null,null,null,null,null,null,"",{"$f":"IF(I10<>\"\",I10*9*('System Information'!B33/'System Information'!$B$37),\"\")","v":""},null,null,null,null,null,null,false,false,null,false,false]
["Facilities","N",null,null,null,null,null,null,"",{"$f":"IF(I11<>\"\",I11*9*('System Information'!B34/'System Information'!$B$37),\"\")","v":""},null,null,null,null,null,null,false,false,null,false,false]
["Supply Chain Management","N",null,null,null,null,null,null,"",{"$f":"IF(I12<>\"\",I12*9*('System Information'!B35/'System Information'!$B$37),\"\")","v":""},null,null,null,null,null,null,false,false,null,false,false]
["Industrial Base","N",null,null,null,null,null,null,"",{"$f":"IF(I13<>\"\",I13*9*('System Information'!B36/'System Information'!$B$37),\"\")","v":""},null,null,null,null,null,null,false,false,null,false,false]
[null,null,null,"Weighted Likelihood and Consequence:",null,null,{"$f":"IF(T14>0,T14,0)","v":0},{"$f":"IF(U14>0,U14,0)","v":0},null,null,null,null,null,null,null,null,null,null,null,{"$f":"IF(SUM(T5:T13)<>0,SUMSQ(T5:T13)/SUM(T5:T13),0)","v":0},{"$f":"IF(SUM(U5:U13)<>0,SUMSQ(U5:U13)/SUM(U5:U13),0)","v":0}]
[null,null,null,"(Used for Component/Supplier Risk Rating graphic)"]
[null,null,null,"Sum of Impact Scores:",null,null,null,null,{"$f":"IF(SUM(I5:I13)>0,SUM(I5:I13),0)","v":0},{"$f":"IF(SUM(J5:J13)>0,SUM(J5:J13),0)","v":0}]
[null,null,null,"(Used to rank potential resources required)  "]
[]
[null,null,null,{"$f":"'Lists and CL Guidance'!B2","v":"Category Guidance: Likelihood of Occurrence"},null,null,null,"Risk Rating"]
[null,null,null,{"$f":"'Lists and CL Guidance'!B3","v":"Level"},{"$f":"'Lists and CL Guidance'!C3","v":"Likelihood"},{"$f":"'Lists and CL Guidance'!D3","v":"Probability of Occurrence"}]
[null,null,null,{"$f":"'Lists and CL Guidance'!B4","v":1},{"$f":"'Lists and CL Guidance'!C4","v":"Not Likely"},{"$f":"'Lists and CL Guidance'!D4","v":"~10%  (>  1% to ≤ 20%)"}]
[null,null,null,{"$f":"'Lists and CL Guidance'!B5","v":2},{"$f":"'Lists and CL Guidance'!C5","v":"Low Likelihood"},{"$f":"'Lists and CL Guidance'!D5","v":"~30%  (> 20% to ≤ 40%)"},null,"Component Summary Sheet"]
[null,null,null,{"$f":"'Lists and CL Guidance'!B6","v":3},{"$f":"'Lists and CL Guidance'!C6","v":"Likely"},{"$f":"'Lists and CL Guidance'!D6","v":"~50%  (> 40% to ≤ 60%)"}]
[null,null,null,{"$f":"'Lists and CL Guidance'!B7","v":4},{"$f":"'Lists and CL Guidance'!C7","v":"Highly Likely"},{"$f":"'Lists and CL Guidance'!D7","v":"~70% (> 60% to ≤ 80%)"},null,null,null,null,null,null,null,null,0]
[null,null,null,{"$f":"'Lists and CL Guidance'!B8","v":5},{"$f":"'Lists and CL Guidance'!C8","v":"Near Certainty"},{"$f":"'Lists and CL Guidance'!D8","v":"~90%  (> 80% to ≤ 99%)"},null,"Hot Links "]
[]
[null,null,null,{"$f":"'Lists and CL Guidance'!E10","v":"Category Guidance: Consequence (System Impact)"}]
[null,null,null,{"$f":"'Lists and CL Guidance'!E11","v":"Level"},"Consequence",{"$f":"'Lists and CL Guidance'!G11","v":"System Impact"}]
[null,null,null,null,null,{"$f":"'Lists and CL Guidance'!G12","v":"Technical Performance"},{"$f":"'Lists and CL Guidance'!H12","v":"Schedule"},null,{"$f":"'Lists and CL Guidance'!I12","v":"Cost"}]
[null,null,null,{"$f":"'Lists and CL Guidance'!E13","v":1},{"$f":"'Lists and CL Guidance'!F13","v":"Minimal"},{"$f":"'Lists and CL Guidance'!G13","v":"Minimal or no consequence to technical performance"},{"$f":"'Lists and CL Guidance'!H13","v":"Minimal or no impact"},null,{"$f":"'Lists and CL Guidance'!I13","v":"Minimal or no impact"}]
[null,null,null,{"$f":"'Lists and CL Guidance'!E14","v":2},{"$f":"'Lists and CL Guidance'!F14","v":"Minor"},{"$f":"'Lists and CL Guidance'!G14","v":"Minor reduction in technical performance or supportability, can be tolerated with little or no impact on program"},{"$f":"'Lists and CL Guidance'!H14","v":"Able to meet key dates. \nSlip < 6 month(s)"},null,{"$f":"'Lists and CL Guidance'!I14","v":"Budget increase or unit production cost increases.\n(< 1% of Budget)"}]
[null,null,null,{"$f":"'Lists and CL Guidance'!E15","v":3},{"$f":"'Lists and CL Guidance'!F15","v":"Moderate"},{"$f":"'Lists and CL Guidance'!G15","v":"Moderate reduction in technical performance or supportability with limited impact on program objectives"},{"$f":"'Lists and CL Guidance'!H15","v":"Minor schedule slip. Able to meet key milestones with no schedule float.\nSlip < 6 month(s). Sub-system slip > 12 month(s) plus available float."},null,{"$f":"'Lists and CL Guidance'!I15","v":"Budget increase or unit production cost increases.\n(< 5% of Budget)"}]
[null,null,null,{"$f":"'Lists and CL Guidance'!E16","v":4},{"$f":"'Lists and CL Guidance'!F16","v":"Significant"},{"$f":"'Lists and CL Guidance'!G16","v":"Significant degradation in technical performance or major shortfall in supportability; may jeopardize program success"},{"$f":"'Lists and CL Guidance'!H16","v":"Program critical path affected.\nSlip < 12 months"},null,{"$f":"'Lists and CL Guidance'!I16","v":"Budget increase or unit production cost increases.\n(< 10% of Budget)"}]
["Action Taken with this Supplier","Date","Comments for Action Taken",{"$f":"'Lists and CL Guidance'!E17","v":5},{"$f":"'Lists and CL Guidance'!F17","v":"Severe"},{"$f":"'Lists and CL Guidance'!G17","v":"Severe degradation in technical performance; Cannot meet KPP or key technical/supportability threshold; will jeopardize program success"},{"$f":"'Lists and CL Guidance'!H17","v":"Cannot meet key program milestones. \nSlip > 12months"},null,{"$f":"'Lists and CL Guidance'!I17","v":"Exceeds APB threshold\n(> 10% of Budget)"}]
["No Action",{"$f":"rev_date","v":"2022-01-01"},"Initial Assessment",{"$f":"MRL_risk_reference","v":"1 - Reference - DOD MRL Deskbook (p36) - http://www.dodmrl.com/MRL Deskbook V2020.pdf"}]
[null,null,null,{"$f":"DOD_Risk_reference","v":"2 - Reference - Risk Management Guide for DOD Acquisition\nhttps://acqnotes.com/wp-content/uploads/2014/09/DoD-Risk-Mgt-Guide-v7-interim-Dec2014.pdf"}]
[]
[]
[]
[]
[]
[]
[{"$f":"distro_statement","v":"DISTRIBUTION STATEMENT: No Distribution Statement Determined. "}]

{"sheet":"Comp 11","index":16,"n_rows":43,"n_cols":21,"rows_kept":43,"cut":false,"hidden":false,"merged":[[0,0,0,1],[0,3,0,5],[0,6,0,9],[1,0,1,1],[1,3,1,5],[1,6,1,9],[12,3,12,5],[1,16,1,20],[2,0,2,2],[2,3,2,5],[2,8,3,8],[2,9,3,9],[2,11,9,14],[3,3,3,5],[4,3,4,5],[5,3,5,5],[6,3,6,5],[7,3,7,5],[8,3,8,5],[9,3,9,5],[10,3,10,5],[11,3,11,5],[13,0,13,1],[13,3,13,5],[13,6,14,6],[13,7,14,7],[13,8,14,9],[13,17,14,17],[13,19,14,19],[13,20,14,20],[14,3,14,5],[15,3,15,7],[15,8,16,8],[15,9,16,9],[16,3,16,7],[13,16,14,16],[18,3,18,5],[18,7,19,7],[21,7,22,7],[26,3,26,9],[27,3,28,3],[27,4,28,4],[27,5,27,9],[28,6,28,7],[28,8,28,9],[29,6,29,7],[29,8,29,9],[30,6,30,7],[30,8,30,9],[31,6,31,7],[31,8,31,9],[42,0,43,9],[32,6,32,7],[32,8,32,9],[33,6,33,7],[33,8,33,9],[34,3,34,9],[35,3,36,9]]}
["Component Name",null,"Component Supplier","OEM Point of Contact",null,null,"Component Engineer"]
["Name",null,"Supplier","POC",null,null,"Engineer",null,null,null,null,null,null,null,null,null,"This section is for charting and error checking - Do not alter"]
["Response to MRL Questions1",null,null,"Brief Statement of the Risk",null,null,"Likelihood2","Consequence2","Impact\nScore","Weighted\nImpact\nScore",null,"Correcting Chart Data Labels in Excel:  After entering your L/C scores if the data labels appear as empty they must be reset in Excel.  Follow this procedure to make your data labels appear properly.\n1. Right Click on the data label box\n2. Select \"Format Data Label\"\n3. In the right hand drop down box select the far right \"Label Options\" Category\n4. Uncheck the box \"Value From Cells\"\n5. Re-Check the box \"Value From Cells\"\n6. Confirm selection area is =$A$5:$A$13\n7. Click OK\n8. Click \"Reset Label Text\"\n9. Close the EDIT drop down box",null,null,null,null,"Likelihood2","Consequence2",null,"Likelihood2","Consequence2"]
["Category/Question","y/n","Brief Explanation for Response"," (derived from Explanation for Response)",null,null,"(of occurrence)","(to system)",null,null,null,null,null,null,null,null,"(of occurrence)","(to system)",null,"(of occurrence)","(to system)"]
["Materials","N",null,null,null,null,null,null,{"$f":"IF(AND(B5=\"y\",G5>0,G5<6,H5>0,H5<6),G5*H5,\"\")","v":""},{"$f":"IF(I5<>\"\",I5*9*('System Information'!B28/'System Information'!$B$37),\"\")","v":""},null,null,null,null,null,null,{"$f":"IF(AND(B5=\"y\",G5>0,G5<6),G5,FALSE)","v":false},{"$f":"IF(AND(B5=\"y\",H5>0,H5<6),H5,FALSE)","v":false},null,{"$f":"IF(AND(Q5<>\"\",TRUE),Q5,0)","v":false},{"$f":"IF(R5<>\"\",R5,0)","v":false}]
["Cost","N",null,null,null,null,null,null,{"$f":"IF(AND(B6=\"y\",G6>0,G6<6,H6>0,H6<6),G6*H6,\"\")","v":""},{"$f":"IF(I6<>\"\",I6*9*('System Information'!B29/'System Information'!$B$37),\"\")","v":""},null,null,null,null,null,null,{"$f":"IF(AND(B6=\"y\",G6>0,G6<6),G6,FALSE)","v":false},{"$f":"IF(AND(B6=\"y\",H6>0,H6<6),H6,FALSE)","v":false},null,{"$f":"IF(Q6<>\"\",Q6,0)","v":false},false]
["Design","N",null,null,null,null,null,null,"",{"$f":"IF(I7<>\"\",I7*9*('System Information'!B30/'System Information'!$B$37),\"\")","v":""},null,null,null,null,null,null,false,false,null,false,false]
["Manufacturing Process","N",null,null,null,null,null,null,"",{"$f":"IF(I8<>\"\",I8*9*('System Information'!B31/'System Information'!$B$37),\"\")","v":""},null,null,null,null,null,null,false,false,null,false,false]
["Quality","N",null,null,null,null,null,null,"",{"$f":"IF(I9<>\"\",I9*9*('System Information'!B32/'System Information'!$B$37),\"\")","v":""},null,null,null,null,null,null,false,false,null,false,false]
["Schedule","N",null,null,null,null,null,null,"",{"$f":"IF(I10<>\"\",I10*9*('System Information'!B33/'System Information'!$B$37),\"\")","v":""},null,null,null,null,null,null,false,false,null,false,false]
["Facilities","N",null,null,null,null,null,null,"",{"$f":"IF(I11<>\"\",I11*9*('System Information'!B34/'System Information'!$B$37),\"\")","v":""},null,null,null,null,null,null,false,false,null,false,false]
["Supply Chain Management","N",null,null,null,null,null,null,"",{"$f":"IF(I12<>\"\",I12*9*('System Information'!B35/'System Information'!$B$37),\"\")","v":""},null,null,null,null,null,null,false,false,null,false,false]
["Industrial Base","N",null,null,null,null,null,null,"",{"$f":"IF(I13<>\"\",I13*9*('System Information'!B36/'System Information'!$B$37),\"\")","v":""},null,null,null,null,null,null,false,false,null,false,false]
[null,null,null,"Weighted Likelihood and Consequence:",null,null,{"$f":"IF(T14>0,T14,0)","v":0},{"$f":"IF(U14>0,U14,0)","v":0},null,null,null,null,null,null,null,null,null,null,null,{"$f":"IF(SUM(T5:T13)<>0,SUMSQ(T5:T13)/SUM(T5:T13),0)","v":0},{"$f":"IF(SUM(U5:U13)<>0,SUMSQ(U5:U13)/SUM(U5:U13),0)","v":0}]
[null,null,null,"(Used for Component/Supplier Risk Rating graphic)"]
[null,null,null,"Sum of Impact Scores:",null,null,null,null,{"$f":"IF(SUM(I5:I13)>0,SUM(I5:I13),0)","v":0},{"$f":"IF(SUM(J5:J13)>0,SUM(J5:J13),0)","v":0}]
[null,null,null,"(Used to rank potential resources required)  "]
[]
[null,null,null,{"$f":"'Lists and CL Guidance'!B2","v":"Category Guidance: Likelihood of Occurrence"},null,null,null,"Risk Rating"]
[null,null,null,{"$f":"'Lists and CL Guidance'!B3","v":"Level"},{"$f":"'Lists and CL Guidance'!C3","v":"Likelihood"},{"$f":"'Lists and CL Guidance'!D3","v":"Probability of Occurrence"}]
[null,null,null,{"$f":"'Lists and CL Guidance'!B4","v":1},{"$f":"'Lists and CL Guidance'!C4","v":"Not Likely"},{"$f":"'Lists and CL Guidance'!D4","v":"~10%  (>  1% to ≤ 20%)"}]
[null,null,null,{"$f":"'Lists and CL Guidance'!B5","v":2},{"$f":"'Lists and CL Guidance'!C5","v":"Low Likelihood"},{"$f":"'Lists and CL Guidance'!D5","v":"~30%  (> 20% to ≤ 40%)"},null,"Component Summary Sheet"]
[null,null,null,{"$f":"'Lists and CL Guidance'!B6","v":3},{"$f":"'Lists and CL Guidance'!C6","v":"Likely"},{"$f":"'Lists and CL Guidance'!D6","v":"~50%  (> 40% to ≤ 60%)"}]
[null,null,null,{"$f":"'Lists and CL Guidance'!B7","v":4},{"$f":"'Lists and CL Guidance'!C7","v":"Highly Likely"},{"$f":"'Lists and CL Guidance'!D7","v":"~70% (> 60% to ≤ 80%)"},null,null,null,null,null,null,null,null,0]
[null,null,null,{"$f":"'Lists and CL Guidance'!B8","v":5},{"$f":"'Lists and CL Guidance'!C8","v":"Near Certainty"},{"$f":"'Lists and CL Guidance'!D8","v":"~90%  (> 80% to ≤ 99%)"},null,"Hot Links "]
[]
[null,null,null,{"$f":"'Lists and CL Guidance'!E10","v":"Category Guidance: Consequence (System Impact)"}]
[null,null,null,{"$f":"'Lists and CL Guidance'!E11","v":"Level"},"Consequence",{"$f":"'Lists and CL Guidance'!G11","v":"System Impact"}]
[null,null,null,null,null,{"$f":"'Lists and CL Guidance'!G12","v":"Technical Performance"},{"$f":"'Lists and CL Guidance'!H12","v":"Schedule"},null,{"$f":"'Lists and CL Guidance'!I12","v":"Cost"}]
[null,null,null,{"$f":"'Lists and CL Guidance'!E13","v":1},{"$f":"'Lists and CL Guidance'!F13","v":"Minimal"},{"$f":"'Lists and CL Guidance'!G13","v":"Minimal or no consequence to technical performance"},{"$f":"'Lists and CL Guidance'!H13","v":"Minimal or no impact"},null,{"$f":"'Lists and CL Guidance'!I13","v":"Minimal or no impact"}]
[null,null,null,{"$f":"'Lists and CL Guidance'!E14","v":2},{"$f":"'Lists and CL Guidance'!F14","v":"Minor"},{"$f":"'Lists and CL Guidance'!G14","v":"Minor reduction in technical performance or supportability, can be tolerated with little or no impact on program"},{"$f":"'Lists and CL Guidance'!H14","v":"Able to meet key dates. \nSlip < 6 month(s)"},null,{"$f":"'Lists and CL Guidance'!I14","v":"Budget increase or unit production cost increases.\n(< 1% of Budget)"}]
[null,null,null,{"$f":"'Lists and CL Guidance'!E15","v":3},{"$f":"'Lists and CL Guidance'!F15","v":"Moderate"},{"$f":"'Lists and CL Guidance'!G15","v":"Moderate reduction in technical performance or supportability with limited impact on program objectives"},{"$f":"'Lists and CL Guidance'!H15","v":"Minor schedule slip. Able to meet key milestones with no schedule float.\nSlip < 6 month(s). Sub-system slip > 12 month(s) plus available float."},null,{"$f":"'Lists and CL Guidance'!I15","v":"Budget increase or unit production cost increases.\n(< 5% of Budget)"}]
[null,null,null,{"$f":"'Lists and CL Guidance'!E16","v":4},{"$f":"'Lists and CL Guidance'!F16","v":"Significant"},{"$f":"'Lists and CL Guidance'!G16","v":"Significant degradation in technical performance or major shortfall in supportability; may jeopardize program success"},{"$f":"'Lists and CL Guidance'!H16","v":"Program critical path affected.\nSlip < 12 months"},null,{"$f":"'Lists and CL Guidance'!I16","v":"Budget increase or unit production cost increases.\n(< 10% of Budget)"}]
["Action Taken with this Supplier","Date","Comments for Action Taken",{"$f":"'Lists and CL Guidance'!E17","v":5},{"$f":"'Lists and CL Guidance'!F17","v":"Severe"},{"$f":"'Lists and CL Guidance'!G17","v":"Severe degradation in technical performance; Cannot meet KPP or key technical/supportability threshold; will jeopardize program success"},{"$f":"'Lists and CL Guidance'!H17","v":"Cannot meet key program milestones. \nSlip > 12months"},null,{"$f":"'Lists and CL Guidance'!I17","v":"Exceeds APB threshold\n(> 10% of Budget)"}]
["No Action",{"$f":"rev_date","v":"2022-01-01"},"Initial Assessment",{"$f":"MRL_risk_reference","v":"1 - Reference - DOD MRL Deskbook (p36) - http://www.dodmrl.com/MRL Deskbook V2020.pdf"}]
[null,null,null,{"$f":"DOD_Risk_reference","v":"2 - Reference - Risk Management Guide for DOD Acquisition\nhttps://acqnotes.com/wp-content/uploads/2014/09/DoD-Risk-Mgt-Guide-v7-interim-Dec2014.pdf"}]
[]
[]
[]
[]
[]
[]
[{"$f":"distro_statement","v":"DISTRIBUTION STATEMENT: No Distribution Statement Determined. "}]

{"sheet":"Comp 12","index":17,"n_rows":43,"n_cols":21,"rows_kept":43,"cut":false,"hidden":false,"merged":[[0,0,0,1],[0,3,0,5],[0,6,0,9],[1,0,1,1],[1,3,1,5],[1,6,1,9],[12,3,12,5],[1,16,1,20],[2,0,2,2],[2,3,2,5],[2,8,3,8],[2,9,3,9],[2,11,9,14],[3,3,3,5],[4,3,4,5],[5,3,5,5],[6,3,6,5],[7,3,7,5],[8,3,8,5],[9,3,9,5],[10,3,10,5],[11,3,11,5],[13,0,13,1],[13,3,13,5],[13,6,14,6],[13,7,14,7],[13,8,14,9],[13,17,14,17],[13,19,14,19],[13,20,14,20],[14,3,14,5],[15,3,15,7],[15,8,16,8],[15,9,16,9],[16,3,16,7],[13,16,14,16],[18,3,18,5],[18,7,19,7],[21,7,22,7],[26,3,26,9],[27,3,28,3],[27,4,28,4],[27,5,27,9],[28,6,28,7],[28,8,28,9],[29,6,29,7],[29,8,29,9],[30,6,30,7],[30,8,30,9],[31,6,31,7],[31,8,31,9],[42,0,43,9],[32,6,32,7],[32,8,32,9],[33,6,33,7],[33,8,33,9],[34,3,34,9],[35,3,36,9]]}
["Component Name",null,"Component Supplier","OEM Point of Contact",null,null,"Component Engineer"]
["Name",null,"Supplier","POC",null,null,"Engineer",null,null,null,null,null,null,null,null,null,"This section is for charting and error checking - Do not alter"]
["Response to MRL Questions1",null,null,"Brief Statement of the Risk",null,null,"Likelihood2","Consequence2","Impact\nScore","Weighted\nImpact\nScore",null,"Correcting Chart Data Labels in Excel:  After entering your L/C scores if the data labels appear as empty they must be reset in Excel.  Follow this procedure to make your data labels appear properly.\n1. Right Click on the data label box\n2. Select \"Format Data Label\"\n3. In the right hand drop down box select the far right \"Label Options\" Category\n4. Uncheck the box \"Value From Cells\"\n5. Re-Check the box \"Value From Cells\"\n6. Confirm selection area is =$A$5:$A$13\n7. Click OK\n8. Click \"Reset Label Text\"\n9. Close the EDIT drop down box",null,null,null,null,"Likelihood2","Consequence2",null,"Likelihood2","Consequence2"]
["Category/Question","y/n","Brief Explanation for Response"," (derived from Explanation for Response)",null,null,"(of occurrence)","(to system)",null,null,null,null,null,null,null,null,"(of occurrence)","(to system)",null,"(of occurrence)","(to system)"]
["Materials","N",null,null,null,null,null,null,{"$f":"IF(AND(B5=\"y\",G5>0,G5<6,H5>0,H5<6),G5*H5,\"\")","v":""},{"$f":"IF(I5<>\"\",I5*9*('System Information'!B28/'System Information'!$B$37),\"\")","v":""},null,null,null,null,null,null,{"$f":"IF(AND(B5=\"y\",G5>0,G5<6),G5,FALSE)","v":false},{"$f":"IF(AND(B5=\"y\",H5>0,H5<6),H5,FALSE)","v":false},null,{"$f":"IF(AND(Q5<>\"\",TRUE),Q5,0)","v":false},{"$f":"IF(R5<>\"\",R5,0)","v":false}]
["Cost","N",null,null,null,null,null,null,{"$f":"IF(AND(B6=\"y\",G6>0,G6<6,H6>0,H6<6),G6*H6,\"\")","v":""},{"$f":"IF(I6<>\"\",I6*9*('System Information'!B29/'System Information'!$B$37),\"\")","v":""},null,null,null,null,null,null,{"$f":"IF(AND(B6=\"y\",G6>0,G6<6),G6,FALSE)","v":false},{"$f":"IF(AND(B6=\"y\",H6>0,H6<6),H6,FALSE)","v":false},null,{"$f":"IF(Q6<>\"\",Q6,0)","v":false},false]
["Design","N",null,null,null,null,null,null,"",{"$f":"IF(I7<>\"\",I7*9*('System Information'!B30/'System Information'!$B$37),\"\")","v":""},null,null,null,null,null,null,false,false,null,false,false]
["Manufacturing Process","N",null,null,null,null,null,null,"",{"$f":"IF(I8<>\"\",I8*9*('System Information'!B31/'System Information'!$B$37),\"\")","v":""},null,null,null,null,null,null,false,false,null,false,false]
["Quality","N",null,null,null,null,null,null,"",{"$f":"IF(I9<>\"\",I9*9*('System Information'!B32/'System Information'!$B$37),\"\")","v":""},null,null,null,null,null,null,false,false,null,false,false]
["Schedule","N",null,null,null,null,null,null,"",{"$f":"IF(I10<>\"\",I10*9*('System Information'!B33/'System Information'!$B$37),\"\")","v":""},null,null,null,null,null,null,false,false,null,false,false]
["Facilities","N",null,null,null,null,null,null,"",{"$f":"IF(I11<>\"\",I11*9*('System Information'!B34/'System Information'!$B$37),\"\")","v":""},null,null,null,null,null,null,false,false,null,false,false]
["Supply Chain Management","N",null,null,null,null,null,null,"",{"$f":"IF(I12<>\"\",I12*9*('System Information'!B35/'System Information'!$B$37),\"\")","v":""},null,null,null,null,null,null,false,false,null,false,false]
["Industrial Base","N",null,null,null,null,null,null,"",{"$f":"IF(I13<>\"\",I13*9*('System Information'!B36/'System Information'!$B$37),\"\")","v":""},null,null,null,null,null,null,false,false,null,false,false]
[null,null,null,"Weighted Likelihood and Consequence:",null,null,{"$f":"IF(T14>0,T14,0)","v":0},{"$f":"IF(U14>0,U14,0)","v":0},null,null,null,null,null,null,null,null,null,null,null,{"$f":"IF(SUM(T5:T13)<>0,SUMSQ(T5:T13)/SUM(T5:T13),0)","v":0},{"$f":"IF(SUM(U5:U13)<>0,SUMSQ(U5:U13)/SUM(U5:U13),0)","v":0}]
[null,null,null,"(Used for Component/Supplier Risk Rating graphic)"]
[null,null,null,"Sum of Impact Scores:",null,null,null,null,{"$f":"IF(SUM(I5:I13)>0,SUM(I5:I13),0)","v":0},{"$f":"IF(SUM(J5:J13)>0,SUM(J5:J13),0)","v":0}]
[null,null,null,"(Used to rank potential resources required)  "]
[]
[null,null,null,{"$f":"'Lists and CL Guidance'!B2","v":"Category Guidance: Likelihood of Occurrence"},null,null,null,"Risk Rating"]
[null,null,null,{"$f":"'Lists and CL Guidance'!B3","v":"Level"},{"$f":"'Lists and CL Guidance'!C3","v":"Likelihood"},{"$f":"'Lists and CL Guidance'!D3","v":"Probability of Occurrence"}]
[null,null,null,{"$f":"'Lists and CL Guidance'!B4","v":1},{"$f":"'Lists and CL Guidance'!C4","v":"Not Likely"},{"$f":"'Lists and CL Guidance'!D4","v":"~10%  (>  1% to ≤ 20%)"}]
[null,null,null,{"$f":"'Lists and CL Guidance'!B5","v":2},{"$f":"'Lists and CL Guidance'!C5","v":"Low Likelihood"},{"$f":"'Lists and CL Guidance'!D5","v":"~30%  (> 20% to ≤ 40%)"},null,"Component Summary Sheet"]
[null,null,null,{"$f":"'Lists and CL Guidance'!B6","v":3},{"$f":"'Lists and CL Guidance'!C6","v":"Likely"},{"$f":"'Lists and CL Guidance'!D6","v":"~50%  (> 40% to ≤ 60%)"}]
[null,null,null,{"$f":"'Lists and CL Guidance'!B7","v":4},{"$f":"'Lists and CL Guidance'!C7","v":"Highly Likely"},{"$f":"'Lists and CL Guidance'!D7","v":"~70% (> 60% to ≤ 80%)"},null,null,null,null,null,null,null,null,0]
[null,null,null,{"$f":"'Lists and CL Guidance'!B8","v":5},{"$f":"'Lists and CL Guidance'!C8","v":"Near Certainty"},{"$f":"'Lists and CL Guidance'!D8","v":"~90%  (> 80% to ≤ 99%)"},null,"Hot Links "]
[]
[null,null,null,{"$f":"'Lists and CL Guidance'!E10","v":"Category Guidance: Consequence (System Impact)"}]
[null,null,null,{"$f":"'Lists and CL Guidance'!E11","v":"Level"},"Consequence",{"$f":"'Lists and CL Guidance'!G11","v":"System Impact"}]
[null,null,null,null,null,{"$f":"'Lists and CL Guidance'!G12","v":"Technical Performance"},{"$f":"'Lists and CL Guidance'!H12","v":"Schedule"},null,{"$f":"'Lists and CL Guidance'!I12","v":"Cost"}]
[null,null,null,{"$f":"'Lists and CL Guidance'!E13","v":1},{"$f":"'Lists and CL Guidance'!F13","v":"Minimal"},{"$f":"'Lists and CL Guidance'!G13","v":"Minimal or no consequence to technical performance"},{"$f":"'Lists and CL Guidance'!H13","v":"Minimal or no impact"},null,{"$f":"'Lists and CL Guidance'!I13","v":"Minimal or no impact"}]
[null,null,null,{"$f":"'Lists and CL Guidance'!E14","v":2},{"$f":"'Lists and CL Guidance'!F14","v":"Minor"},{"$f":"'Lists and CL Guidance'!G14","v":"Minor reduction in technical performance or supportability, can be tolerated with little or no impact on program"},{"$f":"'Lists and CL Guidance'!H14","v":"Able to meet key dates. \nSlip < 6 month(s)"},null,{"$f":"'Lists and CL Guidance'!I14","v":"Budget increase or unit production cost increases.\n(< 1% of Budget)"}]
[null,null,null,{"$f":"'Lists and CL Guidance'!E15","v":3},{"$f":"'Lists and CL Guidance'!F15","v":"Moderate"},{"$f":"'Lists and CL Guidance'!G15","v":"Moderate reduction in technical performance or supportability with limited impact on program objectives"},{"$f":"'Lists and CL Guidance'!H15","v":"Minor schedule slip. Able to meet key milestones with no schedule float.\nSlip < 6 month(s). Sub-system slip > 12 month(s) plus available float."},null,{"$f":"'Lists and CL Guidance'!I15","v":"Budget increase or unit production cost increases.\n(< 5% of Budget)"}]
[null,null,null,{"$f":"'Lists and CL Guidance'!E16","v":4},{"$f":"'Lists and CL Guidance'!F16","v":"Significant"},{"$f":"'Lists and CL Guidance'!G16","v":"Significant degradation in technical performance or major shortfall in supportability; may jeopardize program success"},{"$f":"'Lists and CL Guidance'!H16","v":"Program critical path affected.\nSlip < 12 months"},null,{"$f":"'Lists and CL Guidance'!I16","v":"Budget increase or unit production cost increases.\n(< 10% of Budget)"}]
["Action Taken with this Supplier","Date","Comments for Action Taken",{"$f":"'Lists and CL Guidance'!E17","v":5},{"$f":"'Lists and CL Guidance'!F17","v":"Severe"},{"$f":"'Lists and CL Guidance'!G17","v":"Severe degradation in technical performance; Cannot meet KPP or key technical/supportability threshold; will jeopardize program success"},{"$f":"'Lists and CL Guidance'!H17","v":"Cannot meet key program milestones. \nSlip > 12months"},null,{"$f":"'Lists and CL Guidance'!I17","v":"Exceeds APB threshold\n(> 10% of Budget)"}]
["No Action",{"$f":"rev_date","v":"2022-01-01"},"Initial Assessment",{"$f":"MRL_risk_reference","v":"1 - Reference - DOD MRL Deskbook (p36) - http://www.dodmrl.com/MRL Deskbook V2020.pdf"}]
[null,null,null,{"$f":"DOD_Risk_reference","v":"2 - Reference - Risk Management Guide for DOD Acquisition\nhttps://acqnotes.com/wp-content/uploads/2014/09/DoD-Risk-Mgt-Guide-v7-interim-Dec2014.pdf"}]
[]
[]
[]
[]
[]
[]
[{"$f":"distro_statement","v":"DISTRIBUTION STATEMENT: No Distribution Statement Determined. "}]

{"sheet":"Comp 13","index":18,"n_rows":43,"n_cols":21,"rows_kept":43,"cut":false,"hidden":false,"merged":[[0,0,0,1],[0,3,0,5],[0,6,0,9],[1,0,1,1],[1,3,1,5],[1,6,1,9],[12,3,12,5],[1,16,1,20],[2,0,2,2],[2,3,2,5],[2,8,3,8],[2,9,3,9],[2,11,9,14],[3,3,3,5],[4,3,4,5],[5,3,5,5],[6,3,6,5],[7,3,7,5],[8,3,8,5],[9,3,9,5],[10,3,10,5],[11,3,11,5],[13,0,13,1],[13,3,13,5],[13,6,14,6],[13,7,14,7],[13,8,14,9],[13,17,14,17],[13,19,14,19],[13,20,14,20],[14,3,14,5],[15,3,15,7],[15,8,16,8],[15,9,16,9],[16,3,16,7],[13,16,14,16],[18,3,18,5],[18,7,19,7],[21,7,22,7],[26,3,26,9],[27,3,28,3],[27,4,28,4],[27,5,27,9],[28,6,28,7],[28,8,28,9],[29,6,29,7],[29,8,29,9],[30,6,30,7],[30,8,30,9],[31,6,31,7],[31,8,31,9],[42,0,43,9],[32,6,32,7],[32,8,32,9],[33,6,33,7],[33,8,33,9],[34,3,34,9],[35,3,36,9]]}
["Component Name",null,"Component Supplier","OEM Point of Contact",null,null,"Component Engineer"]
["Name",null,"Supplier","POC",null,null,"Engineer",null,null,null,null,null,null,null,null,null,"This section is for charting and error checking - Do not alter"]
["Response to MRL Questions1",null,null,"Brief Statement of the Risk",null,null,"Likelihood2","Consequence2","Impact\nScore","Weighted\nImpact\nScore",null,"Correcting Chart Data Labels in Excel:  After entering your L/C scores if the data labels appear as empty they must be reset in Excel.  Follow this procedure to make your data labels appear properly.\n1. Right Click on the data label box\n2. Select \"Format Data Label\"\n3. In the right hand drop down box select the far right \"Label Options\" Category\n4. Uncheck the box \"Value From Cells\"\n5. Re-Check the box \"Value From Cells\"\n6. Confirm selection area is =$A$5:$A$13\n7. Click OK\n8. Click \"Reset Label Text\"\n9. Close the EDIT drop down box",null,null,null,null,"Likelihood2","Consequence2",null,"Likelihood2","Consequence2"]
["Category/Question","y/n","Brief Explanation for Response"," (derived from Explanation for Response)",null,null,"(of occurrence)","(to system)",null,null,null,null,null,null,null,null,"(of occurrence)","(to system)",null,"(of occurrence)","(to system)"]
["Materials","N",null,null,null,null,null,null,{"$f":"IF(AND(B5=\"y\",G5>0,G5<6,H5>0,H5<6),G5*H5,\"\")","v":""},{"$f":"IF(I5<>\"\",I5*9*('System Information'!B28/'System Information'!$B$37),\"\")","v":""},null,null,null,null,null,null,{"$f":"IF(AND(B5=\"y\",G5>0,G5<6),G5,FALSE)","v":false},{"$f":"IF(AND(B5=\"y\",H5>0,H5<6),H5,FALSE)","v":false},null,{"$f":"IF(AND(Q5<>\"\",TRUE),Q5,0)","v":false},{"$f":"IF(R5<>\"\",R5,0)","v":false}]
["Cost","N",null,null,null,null,null,null,{"$f":"IF(AND(B6=\"y\",G6>0,G6<6,H6>0,H6<6),G6*H6,\"\")","v":""},{"$f":"IF(I6<>\"\",I6*9*('System Information'!B29/'System Information'!$B$37),\"\")","v":""},null,null,null,null,null,null,{"$f":"IF(AND(B6=\"y\",G6>0,G6<6),G6,FALSE)","v":false},{"$f":"IF(AND(B6=\"y\",H6>0,H6<6),H6,FALSE)","v":false},null,{"$f":"IF(Q6<>\"\",Q6,0)","v":false},false]
["Design","N",null,null,null,null,null,null,"",{"$f":"IF(I7<>\"\",I7*9*('System Information'!B30/'System Information'!$B$37),\"\")","v":""},null,null,null,null,null,null,false,false,null,false,false]
["Manufacturing Process","N",null,null,null,null,null,null,"",{"$f":"IF(I8<>\"\",I8*9*('System Information'!B31/'System Information'!$B$37),\"\")","v":""},null,null,null,null,null,null,false,false,null,false,false]
["Quality","N",null,null,null,null,null,null,"",{"$f":"IF(I9<>\"\",I9*9*('System Information'!B32/'System Information'!$B$37),\"\")","v":""},null,null,null,null,null,null,false,false,null,false,false]
["Schedule","N",null,null,null,null,null,null,"",{"$f":"IF(I10<>\"\",I10*9*('System Information'!B33/'System Information'!$B$37),\"\")","v":""},null,null,null,null,null,null,false,false,null,false,false]
["Facilities","N",null,null,null,null,null,null,"",{"$f":"IF(I11<>\"\",I11*9*('System Information'!B34/'System Information'!$B$37),\"\")","v":""},null,null,null,null,null,null,false,false,null,false,false]
["Supply Chain Management","N",null,null,null,null,null,null,"",{"$f":"IF(I12<>\"\",I12*9*('System Information'!B35/'System Information'!$B$37),\"\")","v":""},null,null,null,null,null,null,false,false,null,false,false]
["Industrial Base","N",null,null,null,null,null,null,"",{"$f":"IF(I13<>\"\",I13*9*('System Information'!B36/'System Information'!$B$37),\"\")","v":""},null,null,null,null,null,null,false,false,null,false,false]
[null,null,null,"Weighted Likelihood and Consequence:",null,null,{"$f":"IF(T14>0,T14,0)","v":0},{"$f":"IF(U14>0,U14,0)","v":0},null,null,null,null,null,null,null,null,null,null,null,{"$f":"IF(SUM(T5:T13)<>0,SUMSQ(T5:T13)/SUM(T5:T13),0)","v":0},{"$f":"IF(SUM(U5:U13)<>0,SUMSQ(U5:U13)/SUM(U5:U13),0)","v":0}]
[null,null,null,"(Used for Component/Supplier Risk Rating graphic)"]
[null,null,null,"Sum of Impact Scores:",null,null,null,null,{"$f":"IF(SUM(I5:I13)>0,SUM(I5:I13),0)","v":0},{"$f":"IF(SUM(J5:J13)>0,SUM(J5:J13),0)","v":0}]
[null,null,null,"(Used to rank potential resources required)  "]
[]
[null,null,null,{"$f":"'Lists and CL Guidance'!B2","v":"Category Guidance: Likelihood of Occurrence"},null,null,null,"Risk Rating"]
[null,null,null,{"$f":"'Lists and CL Guidance'!B3","v":"Level"},{"$f":"'Lists and CL Guidance'!C3","v":"Likelihood"},{"$f":"'Lists and CL Guidance'!D3","v":"Probability of Occurrence"}]
[null,null,null,{"$f":"'Lists and CL Guidance'!B4","v":1},{"$f":"'Lists and CL Guidance'!C4","v":"Not Likely"},{"$f":"'Lists and CL Guidance'!D4","v":"~10%  (>  1% to ≤ 20%)"}]
[null,null,null,{"$f":"'Lists and CL Guidance'!B5","v":2},{"$f":"'Lists and CL Guidance'!C5","v":"Low Likelihood"},{"$f":"'Lists and CL Guidance'!D5","v":"~30%  (> 20% to ≤ 40%)"},null,"Component Summary Sheet"]
[null,null,null,{"$f":"'Lists and CL Guidance'!B6","v":3},{"$f":"'Lists and CL Guidance'!C6","v":"Likely"},{"$f":"'Lists and CL Guidance'!D6","v":"~50%  (> 40% to ≤ 60%)"}]
[null,null,null,{"$f":"'Lists and CL Guidance'!B7","v":4},{"$f":"'Lists and CL Guidance'!C7","v":"Highly Likely"},{"$f":"'Lists and CL Guidance'!D7","v":"~70% (> 60% to ≤ 80%)"},null,null,null,null,null,null,null,null,0]
[null,null,null,{"$f":"'Lists and CL Guidance'!B8","v":5},{"$f":"'Lists and CL Guidance'!C8","v":"Near Certainty"},{"$f":"'Lists and CL Guidance'!D8","v":"~90%  (> 80% to ≤ 99%)"},null,"Hot Links "]
[]
[null,null,null,{"$f":"'Lists and CL Guidance'!E10","v":"Category Guidance: Consequence (System Impact)"}]
[null,null,null,{"$f":"'Lists and CL Guidance'!E11","v":"Level"},"Consequence",{"$f":"'Lists and CL Guidance'!G11","v":"System Impact"}]
[null,null,null,null,null,{"$f":"'Lists and CL Guidance'!G12","v":"Technical Performance"},{"$f":"'Lists and CL Guidance'!H12","v":"Schedule"},null,{"$f":"'Lists and CL Guidance'!I12","v":"Cost"}]
[null,null,null,{"$f":"'Lists and CL Guidance'!E13","v":1},{"$f":"'Lists and CL Guidance'!F13","v":"Minimal"},{"$f":"'Lists and CL Guidance'!G13","v":"Minimal or no consequence to technical performance"},{"$f":"'Lists and CL Guidance'!H13","v":"Minimal or no impact"},null,{"$f":"'Lists and CL Guidance'!I13","v":"Minimal or no impact"}]
[null,null,null,{"$f":"'Lists and CL Guidance'!E14","v":2},{"$f":"'Lists and CL Guidance'!F14","v":"Minor"},{"$f":"'Lists and CL Guidance'!G14","v":"Minor reduction in technical performance or supportability, can be tolerated with little or no impact on program"},{"$f":"'Lists and CL Guidance'!H14","v":"Able to meet key dates. \nSlip < 6 month(s)"},null,{"$f":"'Lists and CL Guidance'!I14","v":"Budget increase or unit production cost increases.\n(< 1% of Budget)"}]
[null,null,null,{"$f":"'Lists and CL Guidance'!E15","v":3},{"$f":"'Lists and CL Guidance'!F15","v":"Moderate"},{"$f":"'Lists and CL Guidance'!G15","v":"Moderate reduction in technical performance or supportability with limited impact on program objectives"},{"$f":"'Lists and CL Guidance'!H15","v":"Minor schedule slip. Able to meet key milestones with no schedule float.\nSlip < 6 month(s). Sub-system slip > 12 month(s) plus available float."},null,{"$f":"'Lists and CL Guidance'!I15","v":"Budget increase or unit production cost increases.\n(< 5% of Budget)"}]
[null,null,null,{"$f":"'Lists and CL Guidance'!E16","v":4},{"$f":"'Lists and CL Guidance'!F16","v":"Significant"},{"$f":"'Lists and CL Guidance'!G16","v":"Significant degradation in technical performance or major shortfall in supportability; may jeopardize program success"},{"$f":"'Lists and CL Guidance'!H16","v":"Program critical path affected.\nSlip < 12 months"},null,{"$f":"'Lists and CL Guidance'!I16","v":"Budget increase or unit production cost increases.\n(< 10% of Budget)"}]
["Action Taken with this Supplier","Date","Comments for Action Taken",{"$f":"'Lists and CL Guidance'!E17","v":5},{"$f":"'Lists and CL Guidance'!F17","v":"Severe"},{"$f":"'Lists and CL Guidance'!G17","v":"Severe degradation in technical performance; Cannot meet KPP or key technical/supportability threshold; will jeopardize program success"},{"$f":"'Lists and CL Guidance'!H17","v":"Cannot meet key program milestones. \nSlip > 12months"},null,{"$f":"'Lists and CL Guidance'!I17","v":"Exceeds APB threshold\n(> 10% of Budget)"}]
["No Action",{"$f":"rev_date","v":"2022-01-01"},"Initial Assessment",{"$f":"MRL_risk_reference","v":"1 - Reference - DOD MRL Deskbook (p36) - http://www.dodmrl.com/MRL Deskbook V2020.pdf"}]
[null,null,null,{"$f":"DOD_Risk_reference","v":"2 - Reference - Risk Management Guide for DOD Acquisition\nhttps://acqnotes.com/wp-content/uploads/2014/09/DoD-Risk-Mgt-Guide-v7-interim-Dec2014.pdf"}]
[]
[]
[]
[]
[]
[]
[{"$f":"distro_statement","v":"DISTRIBUTION STATEMENT: No Distribution Statement Determined. "}]

{"sheet":"Comp 14","index":19,"n_rows":43,"n_cols":21,"rows_kept":43,"cut":false,"hidden":false,"merged":[[0,0,0,1],[0,3,0,5],[0,6,0,9],[1,0,1,1],[1,3,1,5],[1,6,1,9],[12,3,12,5],[1,16,1,20],[2,0,2,2],[2,3,2,5],[2,8,3,8],[2,9,3,9],[2,11,9,14],[3,3,3,5],[4,3,4,5],[5,3,5,5],[6,3,6,5],[7,3,7,5],[8,3,8,5],[9,3,9,5],[10,3,10,5],[11,3,11,5],[13,0,13,1],[13,3,13,5],[13,6,14,6],[13,7,14,7],[13,8,14,9],[13,17,14,17],[13,19,14,19],[13,20,14,20],[14,3,14,5],[15,3,15,7],[15,8,16,8],[15,9,16,9],[16,3,16,7],[13,16,14,16],[18,3,18,5],[18,7,19,7],[21,7,22,7],[26,3,26,9],[27,3,28,3],[27,4,28,4],[27,5,27,9],[28,6,28,7],[28,8,28,9],[29,6,29,7],[29,8,29,9],[30,6,30,7],[30,8,30,9],[31,6,31,7],[31,8,31,9],[42,0,43,9],[32,6,32,7],[32,8,32,9],[33,6,33,7],[33,8,33,9],[34,3,34,9],[35,3,36,9]]}
["Component Name",null,"Component Supplier","OEM Point of Contact",null,null,"Component Engineer"]
["Name",null,"Supplier","POC",null,null,"Engineer",null,null,null,null,null,null,null,null,null,"This section is for charting and error checking - Do not alter"]
["Response to MRL Questions1",null,null,"Brief Statement of the Risk",null,null,"Likelihood2","Consequence2","Impact\nScore","Weighted\nImpact\nScore",null,"Correcting Chart Data Labels in Excel:  After entering your L/C scores if the data labels appear as empty they must be reset in Excel.  Follow this procedure to make your data labels appear properly.\n1. Right Click on the data label box\n2. Select \"Format Data Label\"\n3. In the right hand drop down box select the far right \"Label Options\" Category\n4. Uncheck the box \"Value From Cells\"\n5. Re-Check the box \"Value From Cells\"\n6. Confirm selection area is =$A$5:$A$13\n7. Click OK\n8. Click \"Reset Label Text\"\n9. Close the EDIT drop down box",null,null,null,null,"Likelihood2","Consequence2",null,"Likelihood2","Consequence2"]
["Category/Question","y/n","Brief Explanation for Response"," (derived from Explanation for Response)",null,null,"(of occurrence)","(to system)",null,null,null,null,null,null,null,null,"(of occurrence)","(to system)",null,"(of occurrence)","(to system)"]
["Materials","N",null,null,null,null,null,null,{"$f":"IF(AND(B5=\"y\",G5>0,G5<6,H5>0,H5<6),G5*H5,\"\")","v":""},{"$f":"IF(I5<>\"\",I5*9*('System Information'!B28/'System Information'!$B$37),\"\")","v":""},null,null,null,null,null,null,{"$f":"IF(AND(B5=\"y\",G5>0,G5<6),G5,FALSE)","v":false},{"$f":"IF(AND(B5=\"y\",H5>0,H5<6),H5,FALSE)","v":false},null,{"$f":"IF(AND(Q5<>\"\",TRUE),Q5,0)","v":false},{"$f":"IF(R5<>\"\",R5,0)","v":false}]
["Cost","N",null,null,null,null,null,null,{"$f":"IF(AND(B6=\"y\",G6>0,G6<6,H6>0,H6<6),G6*H6,\"\")","v":""},{"$f":"IF(I6<>\"\",I6*9*('System Information'!B29/'System Information'!$B$37),\"\")","v":""},null,null,null,null,null,null,{"$f":"IF(AND(B6=\"y\",G6>0,G6<6),G6,FALSE)","v":false},{"$f":"IF(AND(B6=\"y\",H6>0,H6<6),H6,FALSE)","v":false},null,{"$f":"IF(Q6<>\"\",Q6,0)","v":false},false]
["Design","N",null,null,null,null,null,null,"",{"$f":"IF(I7<>\"\",I7*9*('System Information'!B30/'System Information'!$B$37),\"\")","v":""},null,null,null,null,null,null,false,false,null,false,false]
["Manufacturing Process","N",null,null,null,null,null,null,"",{"$f":"IF(I8<>\"\",I8*9*('System Information'!B31/'System Information'!$B$37),\"\")","v":""},null,null,null,null,null,null,false,false,null,false,false]
["Quality","N",null,null,null,null,null,null,"",{"$f":"IF(I9<>\"\",I9*9*('System Information'!B32/'System Information'!$B$37),\"\")","v":""},null,null,null,null,null,null,false,false,null,false,false]
["Schedule","N",null,null,null,null,null,null,"",{"$f":"IF(I10<>\"\",I10*9*('System Information'!B33/'System Information'!$B$37),\"\")","v":""},null,null,null,null,null,null,false,false,null,false,false]
["Facilities","N",null,null,null,null,null,null,"",{"$f":"IF(I11<>\"\",I11*9*('System Information'!B34/'System Information'!$B$37),\"\")","v":""},null,null,null,null,null,null,false,false,null,false,false]
["Supply Chain Management","N",null,null,null,null,null,null,"",{"$f":"IF(I12<>\"\",I12*9*('System Information'!B35/'System Information'!$B$37),\"\")","v":""},null,null,null,null,null,null,false,false,null,false,false]
["Industrial Base","N",null,null,null,null,null,null,"",{"$f":"IF(I13<>\"\",I13*9*('System Information'!B36/'System Information'!$B$37),\"\")","v":""},null,null,null,null,null,null,false,false,null,false,false]
[null,null,null,"Weighted Likelihood and Consequence:",null,null,{"$f":"IF(T14>0,T14,0)","v":0},{"$f":"IF(U14>0,U14,0)","v":0},null,null,null,null,null,null,null,null,null,null,null,{"$f":"IF(SUM(T5:T13)<>0,SUMSQ(T5:T13)/SUM(T5:T13),0)","v":0},{"$f":"IF(SUM(U5:U13)<>0,SUMSQ(U5:U13)/SUM(U5:U13),0)","v":0}]
[null,null,null,"(Used for Component/Supplier Risk Rating graphic)"]
[null,null,null,"Sum of Impact Scores:",null,null,null,null,{"$f":"IF(SUM(I5:I13)>0,SUM(I5:I13),0)","v":0},{"$f":"IF(SUM(J5:J13)>0,SUM(J5:J13),0)","v":0}]
[null,null,null,"(Used to rank potential resources required)  "]
[]
[null,null,null,{"$f":"'Lists and CL Guidance'!B2","v":"Category Guidance: Likelihood of Occurrence"},null,null,null,"Risk Rating"]
[null,null,null,{"$f":"'Lists and CL Guidance'!B3","v":"Level"},{"$f":"'Lists and CL Guidance'!C3","v":"Likelihood"},{"$f":"'Lists and CL Guidance'!D3","v":"Probability of Occurrence"}]
[null,null,null,{"$f":"'Lists and CL Guidance'!B4","v":1},{"$f":"'Lists and CL Guidance'!C4","v":"Not Likely"},{"$f":"'Lists and CL Guidance'!D4","v":"~10%  (>  1% to ≤ 20%)"}]
[null,null,null,{"$f":"'Lists and CL Guidance'!B5","v":2},{"$f":"'Lists and CL Guidance'!C5","v":"Low Likelihood"},{"$f":"'Lists and CL Guidance'!D5","v":"~30%  (> 20% to ≤ 40%)"},null,"Component Summary Sheet"]
[null,null,null,{"$f":"'Lists and CL Guidance'!B6","v":3},{"$f":"'Lists and CL Guidance'!C6","v":"Likely"},{"$f":"'Lists and CL Guidance'!D6","v":"~50%  (> 40% to ≤ 60%)"}]
[null,null,null,{"$f":"'Lists and CL Guidance'!B7","v":4},{"$f":"'Lists and CL Guidance'!C7","v":"Highly Likely"},{"$f":"'Lists and CL Guidance'!D7","v":"~70% (> 60% to ≤ 80%)"},null,null,null,null,null,null,null,null,0]
[null,null,null,{"$f":"'Lists and CL Guidance'!B8","v":5},{"$f":"'Lists and CL Guidance'!C8","v":"Near Certainty"},{"$f":"'Lists and CL Guidance'!D8","v":"~90%  (> 80% to ≤ 99%)"},null,"Hot Links "]
[]
[null,null,null,{"$f":"'Lists and CL Guidance'!E10","v":"Category Guidance: Consequence (System Impact)"}]
[null,null,null,{"$f":"'Lists and CL Guidance'!E11","v":"Level"},"Consequence",{"$f":"'Lists and CL Guidance'!G11","v":"System Impact"}]
[null,null,null,null,null,{"$f":"'Lists and CL Guidance'!G12","v":"Technical Performance"},{"$f":"'Lists and CL Guidance'!H12","v":"Schedule"},null,{"$f":"'Lists and CL Guidance'!I12","v":"Cost"}]
[null,null,null,{"$f":"'Lists and CL Guidance'!E13","v":1},{"$f":"'Lists and CL Guidance'!F13","v":"Minimal"},{"$f":"'Lists and CL Guidance'!G13","v":"Minimal or no consequence to technical performance"},{"$f":"'Lists and CL Guidance'!H13","v":"Minimal or no impact"},null,{"$f":"'Lists and CL Guidance'!I13","v":"Minimal or no impact"}]
[null,null,null,{"$f":"'Lists and CL Guidance'!E14","v":2},{"$f":"'Lists and CL Guidance'!F14","v":"Minor"},{"$f":"'Lists and CL Guidance'!G14","v":"Minor reduction in technical performance or supportability, can be tolerated with little or no impact on program"},{"$f":"'Lists and CL Guidance'!H14","v":"Able to meet key dates. \nSlip < 6 month(s)"},null,{"$f":"'Lists and CL Guidance'!I14","v":"Budget increase or unit production cost increases.\n(< 1% of Budget)"}]
[null,null,null,{"$f":"'Lists and CL Guidance'!E15","v":3},{"$f":"'Lists and CL Guidance'!F15","v":"Moderate"},{"$f":"'Lists and CL Guidance'!G15","v":"Moderate reduction in technical performance or supportability with limited impact on program objectives"},{"$f":"'Lists and CL Guidance'!H15","v":"Minor schedule slip. Able to meet key milestones with no schedule float.\nSlip < 6 month(s). Sub-system slip > 12 month(s) plus available float."},null,{"$f":"'Lists and CL Guidance'!I15","v":"Budget increase or unit production cost increases.\n(< 5% of Budget)"}]
[null,null,null,{"$f":"'Lists and CL Guidance'!E16","v":4},{"$f":"'Lists and CL Guidance'!F16","v":"Significant"},{"$f":"'Lists and CL Guidance'!G16","v":"Significant degradation in technical performance or major shortfall in supportability; may jeopardize program success"},{"$f":"'Lists and CL Guidance'!H16","v":"Program critical path affected.\nSlip < 12 months"},null,{"$f":"'Lists and CL Guidance'!I16","v":"Budget increase or unit production cost increases.\n(< 10% of Budget)"}]
["Action Taken with this Supplier","Date","Comments for Action Taken",{"$f":"'Lists and CL Guidance'!E17","v":5},{"$f":"'Lists and CL Guidance'!F17","v":"Severe"},{"$f":"'Lists and CL Guidance'!G17","v":"Severe degradation in technical performance; Cannot meet KPP or key technical/supportability threshold; will jeopardize program success"},{"$f":"'Lists and CL Guidance'!H17","v":"Cannot meet key program milestones. \nSlip > 12months"},null,{"$f":"'Lists and CL Guidance'!I17","v":"Exceeds APB threshold\n(> 10% of Budget)"}]
["No Action",{"$f":"rev_date","v":"2022-01-01"},"Initial Assessment",{"$f":"MRL_risk_reference","v":"1 - Reference - DOD MRL Deskbook (p36) - http://www.dodmrl.com/MRL Deskbook V2020.pdf"}]
[null,null,null,{"$f":"DOD_Risk_reference","v":"2 - Reference - Risk Management Guide for DOD Acquisition\nhttps://acqnotes.com/wp-content/uploads/2014/09/DoD-Risk-Mgt-Guide-v7-interim-Dec2014.pdf"}]
[]
[]
[]
[]
[]
[]
[{"$f":"distro_statement","v":"DISTRIBUTION STATEMENT: No Distribution Statement Determined. "}]

{"sheet":"Comp 15","index":20,"n_rows":43,"n_cols":21,"rows_kept":43,"cut":false,"hidden":false,"merged":[[0,0,0,1],[0,3,0,5],[0,6,0,9],[1,0,1,1],[1,3,1,5],[1,6,1,9],[12,3,12,5],[1,16,1,20],[2,0,2,2],[2,3,2,5],[2,8,3,8],[2,9,3,9],[2,11,9,14],[3,3,3,5],[4,3,4,5],[5,3,5,5],[6,3,6,5],[7,3,7,5],[8,3,8,5],[9,3,9,5],[10,3,10,5],[11,3,11,5],[13,0,13,1],[13,3,13,5],[13,6,14,6],[13,7,14,7],[13,8,14,9],[13,17,14,17],[13,19,14,19],[13,20,14,20],[14,3,14,5],[15,3,15,7],[15,8,16,8],[15,9,16,9],[16,3,16,7],[13,16,14,16],[18,3,18,5],[18,7,19,7],[21,7,22,7],[26,3,26,9],[27,3,28,3],[27,4,28,4],[27,5,27,9],[28,6,28,7],[28,8,28,9],[29,6,29,7],[29,8,29,9],[30,6,30,7],[30,8,30,9],[31,6,31,7],[31,8,31,9],[42,0,43,9],[32,6,32,7],[32,8,32,9],[33,6,33,7],[33,8,33,9],[34,3,34,9],[35,3,36,9]]}
["Component Name",null,"Component Supplier","OEM Point of Contact",null,null,"Component Engineer"]
["Name",null,"Supplier","POC",null,null,"Engineer",null,null,null,null,null,null,null,null,null,"This section is for charting and error checking - Do not alter"]
["Response to MRL Questions1",null,null,"Brief Statement of the Risk",null,null,"Likelihood2","Consequence2","Impact\nScore","Weighted\nImpact\nScore",null,"Correcting Chart Data Labels in Excel:  After entering your L/C scores if the data labels appear as empty they must be reset in Excel.  Follow this procedure to make your data labels appear properly.\n1. Right Click on the data label box\n2. Select \"Format Data Label\"\n3. In the right hand drop down box select the far right \"Label Options\" Category\n4. Uncheck the box \"Value From Cells\"\n5. Re-Check the box \"Value From Cells\"\n6. Confirm selection area is =$A$5:$A$13\n7. Click OK\n8. Click \"Reset Label Text\"\n9. Close the EDIT drop down box",null,null,null,null,"Likelihood2","Consequence2",null,"Likelihood2","Consequence2"]
["Category/Question","y/n","Brief Explanation for Response"," (derived from Explanation for Response)",null,null,"(of occurrence)","(to system)",null,null,null,null,null,null,null,null,"(of occurrence)","(to system)",null,"(of occurrence)","(to system)"]
["Materials","N",null,null,null,null,null,null,{"$f":"IF(AND(B5=\"y\",G5>0,G5<6,H5>0,H5<6),G5*H5,\"\")","v":""},{"$f":"IF(I5<>\"\",I5*9*('System Information'!B28/'System Information'!$B$37),\"\")","v":""},null,null,null,null,null,null,{"$f":"IF(AND(B5=\"y\",G5>0,G5<6),G5,FALSE)","v":false},{"$f":"IF(AND(B5=\"y\",H5>0,H5<6),H5,FALSE)","v":false},null,{"$f":"IF(AND(Q5<>\"\",TRUE),Q5,0)","v":false},{"$f":"IF(R5<>\"\",R5,0)","v":false}]
["Cost","N",null,null,null,null,null,null,{"$f":"IF(AND(B6=\"y\",G6>0,G6<6,H6>0,H6<6),G6*H6,\"\")","v":""},{"$f":"IF(I6<>\"\",I6*9*('System Information'!B29/'System Information'!$B$37),\"\")","v":""},null,null,null,null,null,null,{"$f":"IF(AND(B6=\"y\",G6>0,G6<6),G6,FALSE)","v":false},{"$f":"IF(AND(B6=\"y\",H6>0,H6<6),H6,FALSE)","v":false},null,{"$f":"IF(Q6<>\"\",Q6,0)","v":false},false]
["Design","N",null,null,null,null,null,null,"",{"$f":"IF(I7<>\"\",I7*9*('System Information'!B30/'System Information'!$B$37),\"\")","v":""},null,null,null,null,null,null,false,false,null,false,false]
["Manufacturing Process","N",null,null,null,null,null,null,"",{"$f":"IF(I8<>\"\",I8*9*('System Information'!B31/'System Information'!$B$37),\"\")","v":""},null,null,null,null,null,null,false,false,null,false,false]
["Quality","N",null,null,null,null,null,null,"",{"$f":"IF(I9<>\"\",I9*9*('System Information'!B32/'System Information'!$B$37),\"\")","v":""},null,null,null,null,null,null,false,false,null,false,false]
["Schedule","N",null,null,null,null,null,null,"",{"$f":"IF(I10<>\"\",I10*9*('System Information'!B33/'System Information'!$B$37),\"\")","v":""},null,null,null,null,null,null,false,false,null,false,false]
["Facilities","N",null,null,null,null,null,null,"",{"$f":"IF(I11<>\"\",I11*9*('System Information'!B34/'System Information'!$B$37),\"\")","v":""},null,null,null,null,null,null,false,false,null,false,false]
["Supply Chain Management","N",null,null,null,null,null,null,"",{"$f":"IF(I12<>\"\",I12*9*('System Information'!B35/'System Information'!$B$37),\"\")","v":""},null,null,null,null,null,null,false,false,null,false,false]
["Industrial Base","N",null,null,null,null,null,null,"",{"$f":"IF(I13<>\"\",I13*9*('System Information'!B36/'System Information'!$B$37),\"\")","v":""},null,null,null,null,null,null,false,false,null,false,false]
[null,null,null,"Weighted Likelihood and Consequence:",null,null,{"$f":"IF(T14>0,T14,0)","v":0},{"$f":"IF(U14>0,U14,0)","v":0},null,null,null,null,null,null,null,null,null,null,null,{"$f":"IF(SUM(T5:T13)<>0,SUMSQ(T5:T13)/SUM(T5:T13),0)","v":0},{"$f":"IF(SUM(U5:U13)<>0,SUMSQ(U5:U13)/SUM(U5:U13),0)","v":0}]
[null,null,null,"(Used for Component/Supplier Risk Rating graphic)"]
[null,null,null,"Sum of Impact Scores:",null,null,null,null,{"$f":"IF(SUM(I5:I13)>0,SUM(I5:I13),0)","v":0},{"$f":"IF(SUM(J5:J13)>0,SUM(J5:J13),0)","v":0}]
[null,null,null,"(Used to rank potential resources required)  "]
[]
[null,null,null,{"$f":"'Lists and CL Guidance'!B2","v":"Category Guidance: Likelihood of Occurrence"},null,null,null,"Risk Rating"]
[null,null,null,{"$f":"'Lists and CL Guidance'!B3","v":"Level"},{"$f":"'Lists and CL Guidance'!C3","v":"Likelihood"},{"$f":"'Lists and CL Guidance'!D3","v":"Probability of Occurrence"}]
[null,null,null,{"$f":"'Lists and CL Guidance'!B4","v":1},{"$f":"'Lists and CL Guidance'!C4","v":"Not Likely"},{"$f":"'Lists and CL Guidance'!D4","v":"~10%  (>  1% to ≤ 20%)"}]
[null,null,null,{"$f":"'Lists and CL Guidance'!B5","v":2},{"$f":"'Lists and CL Guidance'!C5","v":"Low Likelihood"},{"$f":"'Lists and CL Guidance'!D5","v":"~30%  (> 20% to ≤ 40%)"},null,"Component Summary Sheet"]
[null,null,null,{"$f":"'Lists and CL Guidance'!B6","v":3},{"$f":"'Lists and CL Guidance'!C6","v":"Likely"},{"$f":"'Lists and CL Guidance'!D6","v":"~50%  (> 40% to ≤ 60%)"}]
[null,null,null,{"$f":"'Lists and CL Guidance'!B7","v":4},{"$f":"'Lists and CL Guidance'!C7","v":"Highly Likely"},{"$f":"'Lists and CL Guidance'!D7","v":"~70% (> 60% to ≤ 80%)"},null,null,null,null,null,null,null,null,0]
[null,null,null,{"$f":"'Lists and CL Guidance'!B8","v":5},{"$f":"'Lists and CL Guidance'!C8","v":"Near Certainty"},{"$f":"'Lists and CL Guidance'!D8","v":"~90%  (> 80% to ≤ 99%)"},null,"Hot Links "]
[]
[null,null,null,{"$f":"'Lists and CL Guidance'!E10","v":"Category Guidance: Consequence (System Impact)"}]
[null,null,null,{"$f":"'Lists and CL Guidance'!E11","v":"Level"},"Consequence",{"$f":"'Lists and CL Guidance'!G11","v":"System Impact"}]
[null,null,null,null,null,{"$f":"'Lists and CL Guidance'!G12","v":"Technical Performance"},{"$f":"'Lists and CL Guidance'!H12","v":"Schedule"},null,{"$f":"'Lists and CL Guidance'!I12","v":"Cost"}]
[null,null,null,{"$f":"'Lists and CL Guidance'!E13","v":1},{"$f":"'Lists and CL Guidance'!F13","v":"Minimal"},{"$f":"'Lists and CL Guidance'!G13","v":"Minimal or no consequence to technical performance"},{"$f":"'Lists and CL Guidance'!H13","v":"Minimal or no impact"},null,{"$f":"'Lists and CL Guidance'!I13","v":"Minimal or no impact"}]
[null,null,null,{"$f":"'Lists and CL Guidance'!E14","v":2},{"$f":"'Lists and CL Guidance'!F14","v":"Minor"},{"$f":"'Lists and CL Guidance'!G14","v":"Minor reduction in technical performance or supportability, can be tolerated with little or no impact on program"},{"$f":"'Lists and CL Guidance'!H14","v":"Able to meet key dates. \nSlip < 6 month(s)"},null,{"$f":"'Lists and CL Guidance'!I14","v":"Budget increase or unit production cost increases.\n(< 1% of Budget)"}]
[null,null,null,{"$f":"'Lists and CL Guidance'!E15","v":3},{"$f":"'Lists and CL Guidance'!F15","v":"Moderate"},{"$f":"'Lists and CL Guidance'!G15","v":"Moderate reduction in technical performance or supportability with limited impact on program objectives"},{"$f":"'Lists and CL Guidance'!H15","v":"Minor schedule slip. Able to meet key milestones with no schedule float.\nSlip < 6 month(s). Sub-system slip > 12 month(s) plus available float."},null,{"$f":"'Lists and CL Guidance'!I15","v":"Budget increase or unit production cost increases.\n(< 5% of Budget)"}]
[null,null,null,{"$f":"'Lists and CL Guidance'!E16","v":4},{"$f":"'Lists and CL Guidance'!F16","v":"Significant"},{"$f":"'Lists and CL Guidance'!G16","v":"Significant degradation in technical performance or major shortfall in supportability; may jeopardize program success"},{"$f":"'Lists and CL Guidance'!H16","v":"Program critical path affected.\nSlip < 12 months"},null,{"$f":"'Lists and CL Guidance'!I16","v":"Budget increase or unit production cost increases.\n(< 10% of Budget)"}]
["Action Taken with this Supplier","Date","Comments for Action Taken",{"$f":"'Lists and CL Guidance'!E17","v":5},{"$f":"'Lists and CL Guidance'!F17","v":"Severe"},{"$f":"'Lists and CL Guidance'!G17","v":"Severe degradation in technical performance; Cannot meet KPP or key technical/supportability threshold; will jeopardize program success"},{"$f":"'Lists and CL Guidance'!H17","v":"Cannot meet key program milestones. \nSlip > 12months"},null,{"$f":"'Lists and CL Guidance'!I17","v":"Exceeds APB threshold\n(> 10% of Budget)"}]
["No Action",{"$f":"rev_date","v":"2022-01-01"},"Initial Assessment",{"$f":"MRL_risk_reference","v":"1 - Reference - DOD MRL Deskbook (p36) - http://www.dodmrl.com/MRL Deskbook V2020.pdf"}]
[null,null,null,{"$f":"DOD_Risk_reference","v":"2 - Reference - Risk Management Guide for DOD Acquisition\nhttps://acqnotes.com/wp-content/uploads/2014/09/DoD-Risk-Mgt-Guide-v7-interim-Dec2014.pdf"}]
[]
[]
[]
[]
[]
[]
[{"$f":"distro_statement","v":"DISTRIBUTION STATEMENT: No Distribution Statement Determined. "}]

{"sheet":"Comp 16","index":21,"n_rows":43,"n_cols":21,"rows_kept":43,"cut":false,"hidden":false,"merged":[[0,0,0,1],[0,3,0,5],[0,6,0,9],[1,0,1,1],[1,3,1,5],[1,6,1,9],[12,3,12,5],[1,16,1,20],[2,0,2,2],[2,3,2,5],[2,8,3,8],[2,9,3,9],[2,11,9,14],[3,3,3,5],[4,3,4,5],[5,3,5,5],[6,3,6,5],[7,3,7,5],[8,3,8,5],[9,3,9,5],[10,3,10,5],[11,3,11,5],[13,0,13,1],[13,3,13,5],[13,6,14,6],[13,7,14,7],[13,8,14,9],[13,17,14,17],[13,19,14,19],[13,20,14,20],[14,3,14,5],[15,3,15,7],[15,8,16,8],[15,9,16,9],[16,3,16,7],[13,16,14,16],[18,3,18,5],[18,7,19,7],[21,7,22,7],[26,3,26,9],[27,3,28,3],[27,4,28,4],[27,5,27,9],[28,6,28,7],[28,8,28,9],[29,6,29,7],[29,8,29,9],[30,6,30,7],[30,8,30,9],[31,6,31,7],[31,8,31,9],[42,0,43,9],[32,6,32,7],[32,8,32,9],[33,6,33,7],[33,8,33,9],[34,3,34,9],[35,3,36,9]]}
["Component Name",null,"Component Supplier","OEM Point of Contact",null,null,"Component Engineer"]
["Name",null,"Supplier","POC",null,null,"Engineer",null,null,null,null,null,null,null,null,null,"This section is for charting and error checking - Do not alter"]
["Response to MRL Questions1",null,null,"Brief Statement of the Risk",null,null,"Likelihood2","Consequence2","Impact\nScore","Weighted\nImpact\nScore",null,"Correcting Chart Data Labels in Excel:  After entering your L/C scores if the data labels appear as empty they must be reset in Excel.  Follow this procedure to make your data labels appear properly.\n1. Right Click on the data label box\n2. Select \"Format Data Label\"\n3. In the right hand drop down box select the far right \"Label Options\" Category\n4. Uncheck the box \"Value From Cells\"\n5. Re-Check the box \"Value From Cells\"\n6. Confirm selection area is =$A$5:$A$13\n7. Click OK\n8. Click \"Reset Label Text\"\n9. Close the EDIT drop down box",null,null,null,null,"Likelihood2","Consequence2",null,"Likelihood2","Consequence2"]
["Category/Question","y/n","Brief Explanation for Response"," (derived from Explanation for Response)",null,null,"(of occurrence)","(to system)",null,null,null,null,null,null,null,null,"(of occurrence)","(to system)",null,"(of occurrence)","(to system)"]
["Materials","N",null,null,null,null,null,null,{"$f":"IF(AND(B5=\"y\",G5>0,G5<6,H5>0,H5<6),G5*H5,\"\")","v":""},{"$f":"IF(I5<>\"\",I5*9*('System Information'!B28/'System Information'!$B$37),\"\")","v":""},null,null,null,null,null,null,{"$f":"IF(AND(B5=\"y\",G5>0,G5<6),G5,FALSE)","v":false},{"$f":"IF(AND(B5=\"y\",H5>0,H5<6),H5,FALSE)","v":false},null,{"$f":"IF(AND(Q5<>\"\",TRUE),Q5,0)","v":false},{"$f":"IF(R5<>\"\",R5,0)","v":false}]
["Cost","N",null,null,null,null,null,null,{"$f":"IF(AND(B6=\"y\",G6>0,G6<6,H6>0,H6<6),G6*H6,\"\")","v":""},{"$f":"IF(I6<>\"\",I6*9*('System Information'!B29/'System Information'!$B$37),\"\")","v":""},null,null,null,null,null,null,{"$f":"IF(AND(B6=\"y\",G6>0,G6<6),G6,FALSE)","v":false},{"$f":"IF(AND(B6=\"y\",H6>0,H6<6),H6,FALSE)","v":false},null,{"$f":"IF(Q6<>\"\",Q6,0)","v":false},false]
["Design","N",null,null,null,null,null,null,"",{"$f":"IF(I7<>\"\",I7*9*('System Information'!B30/'System Information'!$B$37),\"\")","v":""},null,null,null,null,null,null,false,false,null,false,false]
["Manufacturing Process","N",null,null,null,null,null,null,"",{"$f":"IF(I8<>\"\",I8*9*('System Information'!B31/'System Information'!$B$37),\"\")","v":""},null,null,null,null,null,null,false,false,null,false,false]
["Quality","N",null,null,null,null,null,null,"",{"$f":"IF(I9<>\"\",I9*9*('System Information'!B32/'System Information'!$B$37),\"\")","v":""},null,null,null,null,null,null,false,false,null,false,false]
["Schedule","N",null,null,null,null,null,null,"",{"$f":"IF(I10<>\"\",I10*9*('System Information'!B33/'System Information'!$B$37),\"\")","v":""},null,null,null,null,null,null,false,false,null,false,false]
["Facilities","N",null,null,null,null,null,null,"",{"$f":"IF(I11<>\"\",I11*9*('System Information'!B34/'System Information'!$B$37),\"\")","v":""},null,null,null,null,null,null,false,false,null,false,false]
["Supply Chain Management","N",null,null,null,null,null,null,"",{"$f":"IF(I12<>\"\",I12*9*('System Information'!B35/'System Information'!$B$37),\"\")","v":""},null,null,null,null,null,null,false,false,null,false,false]
["Industrial Base","N",null,null,null,null,null,null,"",{"$f":"IF(I13<>\"\",I13*9*('System Information'!B36/'System Information'!$B$37),\"\")","v":""},null,null,null,null,null,null,false,false,null,false,false]
[null,null,null,"Weighted Likelihood and Consequence:",null,null,{"$f":"IF(T14>0,T14,0)","v":0},{"$f":"IF(U14>0,U14,0)","v":0},null,null,null,null,null,null,null,null,null,null,null,{"$f":"IF(SUM(T5:T13)<>0,SUMSQ(T5:T13)/SUM(T5:T13),0)","v":0},{"$f":"IF(SUM(U5:U13)<>0,SUMSQ(U5:U13)/SUM(U5:U13),0)","v":0}]
[null,null,null,"(Used for Component/Supplier Risk Rating graphic)"]
[null,null,null,"Sum of Impact Scores:",null,null,null,null,{"$f":"IF(SUM(I5:I13)>0,SUM(I5:I13),0)","v":0},{"$f":"IF(SUM(J5:J13)>0,SUM(J5:J13),0)","v":0}]
[null,null,null,"(Used to rank potential resources required)  "]
[]
[null,null,null,{"$f":"'Lists and CL Guidance'!B2","v":"Category Guidance: Likelihood of Occurrence"},null,null,null,"Risk Rating"]
[null,null,null,{"$f":"'Lists and CL Guidance'!B3","v":"Level"},{"$f":"'Lists and CL Guidance'!C3","v":"Likelihood"},{"$f":"'Lists and CL Guidance'!D3","v":"Probability of Occurrence"}]
[null,null,null,{"$f":"'Lists and CL Guidance'!B4","v":1},{"$f":"'Lists and CL Guidance'!C4","v":"Not Likely"},{"$f":"'Lists and CL Guidance'!D4","v":"~10%  (>  1% to ≤ 20%)"}]
[null,null,null,{"$f":"'Lists and CL Guidance'!B5","v":2},{"$f":"'Lists and CL Guidance'!C5","v":"Low Likelihood"},{"$f":"'Lists and CL Guidance'!D5","v":"~30%  (> 20% to ≤ 40%)"},null,"Component Summary Sheet"]
[null,null,null,{"$f":"'Lists and CL Guidance'!B6","v":3},{"$f":"'Lists and CL Guidance'!C6","v":"Likely"},{"$f":"'Lists and CL Guidance'!D6","v":"~50%  (> 40% to ≤ 60%)"}]
[null,null,null,{"$f":"'Lists and CL Guidance'!B7","v":4},{"$f":"'Lists and CL Guidance'!C7","v":"Highly Likely"},{"$f":"'Lists and CL Guidance'!D7","v":"~70% (> 60% to ≤ 80%)"},null,null,null,null,null,null,null,null,0]
[null,null,null,{"$f":"'Lists and CL Guidance'!B8","v":5},{"$f":"'Lists and CL Guidance'!C8","v":"Near Certainty"},{"$f":"'Lists and CL Guidance'!D8","v":"~90%  (> 80% to ≤ 99%)"},null,"Hot Links "]
[]
[null,null,null,{"$f":"'Lists and CL Guidance'!E10","v":"Category Guidance: Consequence (System Impact)"}]
[null,null,null,{"$f":"'Lists and CL Guidance'!E11","v":"Level"},"Consequence",{"$f":"'Lists and CL Guidance'!G11","v":"System Impact"}]
[null,null,null,null,null,{"$f":"'Lists and CL Guidance'!G12","v":"Technical Performance"},{"$f":"'Lists and CL Guidance'!H12","v":"Schedule"},null,{"$f":"'Lists and CL Guidance'!I12","v":"Cost"}]
[null,null,null,{"$f":"'Lists and CL Guidance'!E13","v":1},{"$f":"'Lists and CL Guidance'!F13","v":"Minimal"},{"$f":"'Lists and CL Guidance'!G13","v":"Minimal or no consequence to technical performance"},{"$f":"'Lists and CL Guidance'!H13","v":"Minimal or no impact"},null,{"$f":"'Lists and CL Guidance'!I13","v":"Minimal or no impact"}]
[null,null,null,{"$f":"'Lists and CL Guidance'!E14","v":2},{"$f":"'Lists and CL Guidance'!F14","v":"Minor"},{"$f":"'Lists and CL Guidance'!G14","v":"Minor reduction in technical performance or supportability, can be tolerated with little or no impact on program"},{"$f":"'Lists and CL Guidance'!H14","v":"Able to meet key dates. \nSlip < 6 month(s)"},null,{"$f":"'Lists and CL Guidance'!I14","v":"Budget increase or unit production cost increases.\n(< 1% of Budget)"}]
[null,null,null,{"$f":"'Lists and CL Guidance'!E15","v":3},{"$f":"'Lists and CL Guidance'!F15","v":"Moderate"},{"$f":"'Lists and CL Guidance'!G15","v":"Moderate reduction in technical performance or supportability with limited impact on program objectives"},{"$f":"'Lists and CL Guidance'!H15","v":"Minor schedule slip. Able to meet key milestones with no schedule float.\nSlip < 6 month(s). Sub-system slip > 12 month(s) plus available float."},null,{"$f":"'Lists and CL Guidance'!I15","v":"Budget increase or unit production cost increases.\n(< 5% of Budget)"}]
[null,null,null,{"$f":"'Lists and CL Guidance'!E16","v":4},{"$f":"'Lists and CL Guidance'!F16","v":"Significant"},{"$f":"'Lists and CL Guidance'!G16","v":"Significant degradation in technical performance or major shortfall in supportability; may jeopardize program success"},{"$f":"'Lists and CL Guidance'!H16","v":"Program critical path affected.\nSlip < 12 months"},null,{"$f":"'Lists and CL Guidance'!I16","v":"Budget increase or unit production cost increases.\n(< 10% of Budget)"}]
["Action Taken with this Supplier","Date","Comments for Action Taken",{"$f":"'Lists and CL Guidance'!E17","v":5},{"$f":"'Lists and CL Guidance'!F17","v":"Severe"},{"$f":"'Lists and CL Guidance'!G17","v":"Severe degradation in technical performance; Cannot meet KPP or key technical/supportability threshold; will jeopardize program success"},{"$f":"'Lists and CL Guidance'!H17","v":"Cannot meet key program milestones. \nSlip > 12months"},null,{"$f":"'Lists and CL Guidance'!I17","v":"Exceeds APB threshold\n(> 10% of Budget)"}]
["No Action",{"$f":"rev_date","v":"2022-01-01"},"Initial Assessment",{"$f":"MRL_risk_reference","v":"1 - Reference - DOD MRL Deskbook (p36) - http://www.dodmrl.com/MRL Deskbook V2020.pdf"}]
[null,null,null,{"$f":"DOD_Risk_reference","v":"2 - Reference - Risk Management Guide for DOD Acquisition\nhttps://acqnotes.com/wp-content/uploads/2014/09/DoD-Risk-Mgt-Guide-v7-interim-Dec2014.pdf"}]
[]
[]
[]
[]
[]
[]
[{"$f":"distro_statement","v":"DISTRIBUTION STATEMENT: No Distribution Statement Determined. "}]

{"sheet":"Comp 17","index":22,"n_rows":43,"n_cols":21,"rows_kept":43,"cut":false,"hidden":false,"merged":[[0,0,0,1],[0,3,0,5],[0,6,0,9],[1,0,1,1],[1,3,1,5],[1,6,1,9],[12,3,12,5],[1,16,1,20],[2,0,2,2],[2,3,2,5],[2,8,3,8],[2,9,3,9],[2,11,9,14],[3,3,3,5],[4,3,4,5],[5,3,5,5],[6,3,6,5],[7,3,7,5],[8,3,8,5],[9,3,9,5],[10,3,10,5],[11,3,11,5],[13,0,13,1],[13,3,13,5],[13,6,14,6],[13,7,14,7],[13,8,14,9],[13,17,14,17],[13,19,14,19],[13,20,14,20],[14,3,14,5],[15,3,15,7],[15,8,16,8],[15,9,16,9],[16,3,16,7],[13,16,14,16],[18,3,18,5],[18,7,19,7],[21,7,22,7],[26,3,26,9],[27,3,28,3],[27,4,28,4],[27,5,27,9],[28,6,28,7],[28,8,28,9],[29,6,29,7],[29,8,29,9],[30,6,30,7],[30,8,30,9],[31,6,31,7],[31,8,31,9],[42,0,43,9],[32,6,32,7],[32,8,32,9],[33,6,33,7],[33,8,33,9],[34,3,34,9],[35,3,36,9]]}
["Component Name",null,"Component Supplier","OEM Point of Contact",null,null,"Component Engineer"]
["Name",null,"Supplier","POC",null,null,"Engineer",null,null,null,null,null,null,null,null,null,"This section is for charting and error checking - Do not alter"]
["Response to MRL Questions1",null,null,"Brief Statement of the Risk",null,null,"Likelihood2","Consequence2","Impact\nScore","Weighted\nImpact\nScore",null,"Correcting Chart Data Labels in Excel:  After entering your L/C scores if the data labels appear as empty they must be reset in Excel.  Follow this procedure to make your data labels appear properly.\n1. Right Click on the data label box\n2. Select \"Format Data Label\"\n3. In the right hand drop down box select the far right \"Label Options\" Category\n4. Uncheck the box \"Value From Cells\"\n5. Re-Check the box \"Value From Cells\"\n6. Confirm selection area is =$A$5:$A$13\n7. Click OK\n8. Click \"Reset Label Text\"\n9. Close the EDIT drop down box",null,null,null,null,"Likelihood2","Consequence2",null,"Likelihood2","Consequence2"]
["Category/Question","y/n","Brief Explanation for Response"," (derived from Explanation for Response)",null,null,"(of occurrence)","(to system)",null,null,null,null,null,null,null,null,"(of occurrence)","(to system)",null,"(of occurrence)","(to system)"]
["Materials","N",null,null,null,null,null,null,{"$f":"IF(AND(B5=\"y\",G5>0,G5<6,H5>0,H5<6),G5*H5,\"\")","v":""},{"$f":"IF(I5<>\"\",I5*9*('System Information'!B28/'System Information'!$B$37),\"\")","v":""},null,null,null,null,null,null,{"$f":"IF(AND(B5=\"y\",G5>0,G5<6),G5,FALSE)","v":false},{"$f":"IF(AND(B5=\"y\",H5>0,H5<6),H5,FALSE)","v":false},null,{"$f":"IF(AND(Q5<>\"\",TRUE),Q5,0)","v":false},{"$f":"IF(R5<>\"\",R5,0)","v":false}]
["Cost","N",null,null,null,null,null,null,{"$f":"IF(AND(B6=\"y\",G6>0,G6<6,H6>0,H6<6),G6*H6,\"\")","v":""},{"$f":"IF(I6<>\"\",I6*9*('System Information'!B29/'System Information'!$B$37),\"\")","v":""},null,null,null,null,null,null,{"$f":"IF(AND(B6=\"y\",G6>0,G6<6),G6,FALSE)","v":false},{"$f":"IF(AND(B6=\"y\",H6>0,H6<6),H6,FALSE)","v":false},null,{"$f":"IF(Q6<>\"\",Q6,0)","v":false},false]
["Design","N",null,null,null,null,null,null,"",{"$f":"IF(I7<>\"\",I7*9*('System Information'!B30/'System Information'!$B$37),\"\")","v":""},null,null,null,null,null,null,false,false,null,false,false]
["Manufacturing Process","N",null,null,null,null,null,null,"",{"$f":"IF(I8<>\"\",I8*9*('System Information'!B31/'System Information'!$B$37),\"\")","v":""},null,null,null,null,null,null,false,false,null,false,false]
["Quality","N",null,null,null,null,null,null,"",{"$f":"IF(I9<>\"\",I9*9*('System Information'!B32/'System Information'!$B$37),\"\")","v":""},null,null,null,null,null,null,false,false,null,false,false]
["Schedule","N",null,null,null,null,null,null,"",{"$f":"IF(I10<>\"\",I10*9*('System Information'!B33/'System Information'!$B$37),\"\")","v":""},null,null,null,null,null,null,false,false,null,false,false]
["Facilities","N",null,null,null,null,null,null,"",{"$f":"IF(I11<>\"\",I11*9*('System Information'!B34/'System Information'!$B$37),\"\")","v":""},null,null,null,null,null,null,false,false,null,false,false]
["Supply Chain Management","N",null,null,null,null,null,null,"",{"$f":"IF(I12<>\"\",I12*9*('System Information'!B35/'System Information'!$B$37),\"\")","v":""},null,null,null,null,null,null,false,false,null,false,false]
["Industrial Base","N",null,null,null,null,null,null,"",{"$f":"IF(I13<>\"\",I13*9*('System Information'!B36/'System Information'!$B$37),\"\")","v":""},null,null,null,null,null,null,false,false,null,false,false]
[null,null,null,"Weighted Likelihood and Consequence:",null,null,{"$f":"IF(T14>0,T14,0)","v":0},{"$f":"IF(U14>0,U14,0)","v":0},null,null,null,null,null,null,null,null,null,null,null,{"$f":"IF(SUM(T5:T13)<>0,SUMSQ(T5:T13)/SUM(T5:T13),0)","v":0},{"$f":"IF(SUM(U5:U13)<>0,SUMSQ(U5:U13)/SUM(U5:U13),0)","v":0}]
[null,null,null,"(Used for Component/Supplier Risk Rating graphic)"]
[null,null,null,"Sum of Impact Scores:",null,null,null,null,{"$f":"IF(SUM(I5:I13)>0,SUM(I5:I13),0)","v":0},{"$f":"IF(SUM(J5:J13)>0,SUM(J5:J13),0)","v":0}]
[null,null,null,"(Used to rank potential resources required)  "]
[]
[null,null,null,{"$f":"'Lists and CL Guidance'!B2","v":"Category Guidance: Likelihood of Occurrence"},null,null,null,"Risk Rating"]
[null,null,null,{"$f":"'Lists and CL Guidance'!B3","v":"Level"},{"$f":"'Lists and CL Guidance'!C3","v":"Likelihood"},{"$f":"'Lists and CL Guidance'!D3","v":"Probability of Occurrence"}]
[null,null,null,{"$f":"'Lists and CL Guidance'!B4","v":1},{"$f":"'Lists and CL Guidance'!C4","v":"Not Likely"},{"$f":"'Lists and CL Guidance'!D4","v":"~10%  (>  1% to ≤ 20%)"}]
[null,null,null,{"$f":"'Lists and CL Guidance'!B5","v":2},{"$f":"'Lists and CL Guidance'!C5","v":"Low Likelihood"},{"$f":"'Lists and CL Guidance'!D5","v":"~30%  (> 20% to ≤ 40%)"},null,"Component Summary Sheet"]
[null,null,null,{"$f":"'Lists and CL Guidance'!B6","v":3},{"$f":"'Lists and CL Guidance'!C6","v":"Likely"},{"$f":"'Lists and CL Guidance'!D6","v":"~50%  (> 40% to ≤ 60%)"}]
[null,null,null,{"$f":"'Lists and CL Guidance'!B7","v":4},{"$f":"'Lists and CL Guidance'!C7","v":"Highly Likely"},{"$f":"'Lists and CL Guidance'!D7","v":"~70% (> 60% to ≤ 80%)"},null,null,null,null,null,null,null,null,0]
[null,null,null,{"$f":"'Lists and CL Guidance'!B8","v":5},{"$f":"'Lists and CL Guidance'!C8","v":"Near Certainty"},{"$f":"'Lists and CL Guidance'!D8","v":"~90%  (> 80% to ≤ 99%)"},null,"Hot Links "]
[]
[null,null,null,{"$f":"'Lists and CL Guidance'!E10","v":"Category Guidance: Consequence (System Impact)"}]
[null,null,null,{"$f":"'Lists and CL Guidance'!E11","v":"Level"},"Consequence",{"$f":"'Lists and CL Guidance'!G11","v":"System Impact"}]
[null,null,null,null,null,{"$f":"'Lists and CL Guidance'!G12","v":"Technical Performance"},{"$f":"'Lists and CL Guidance'!H12","v":"Schedule"},null,{"$f":"'Lists and CL Guidance'!I12","v":"Cost"}]
[null,null,null,{"$f":"'Lists and CL Guidance'!E13","v":1},{"$f":"'Lists and CL Guidance'!F13","v":"Minimal"},{"$f":"'Lists and CL Guidance'!G13","v":"Minimal or no consequence to technical performance"},{"$f":"'Lists and CL Guidance'!H13","v":"Minimal or no impact"},null,{"$f":"'Lists and CL Guidance'!I13","v":"Minimal or no impact"}]
[null,null,null,{"$f":"'Lists and CL Guidance'!E14","v":2},{"$f":"'Lists and CL Guidance'!F14","v":"Minor"},{"$f":"'Lists and CL Guidance'!G14","v":"Minor reduction in technical performance or supportability, can be tolerated with little or no impact on program"},{"$f":"'Lists and CL Guidance'!H14","v":"Able to meet key dates. \nSlip < 6 month(s)"},null,{"$f":"'Lists and CL Guidance'!I14","v":"Budget increase or unit production cost increases.\n(< 1% of Budget)"}]
[null,null,null,{"$f":"'Lists and CL Guidance'!E15","v":3},{"$f":"'Lists and CL Guidance'!F15","v":"Moderate"},{"$f":"'Lists and CL Guidance'!G15","v":"Moderate reduction in technical performance or supportability with limited impact on program objectives"},{"$f":"'Lists and CL Guidance'!H15","v":"Minor schedule slip. Able to meet key milestones with no schedule float.\nSlip < 6 month(s). Sub-system slip > 12 month(s) plus available float."},null,{"$f":"'Lists and CL Guidance'!I15","v":"Budget increase or unit production cost increases.\n(< 5% of Budget)"}]
[null,null,null,{"$f":"'Lists and CL Guidance'!E16","v":4},{"$f":"'Lists and CL Guidance'!F16","v":"Significant"},{"$f":"'Lists and CL Guidance'!G16","v":"Significant degradation in technical performance or major shortfall in supportability; may jeopardize program success"},{"$f":"'Lists and CL Guidance'!H16","v":"Program critical path affected.\nSlip < 12 months"},null,{"$f":"'Lists and CL Guidance'!I16","v":"Budget increase or unit production cost increases.\n(< 10% of Budget)"}]
["Action Taken with this Supplier","Date","Comments for Action Taken",{"$f":"'Lists and CL Guidance'!E17","v":5},{"$f":"'Lists and CL Guidance'!F17","v":"Severe"},{"$f":"'Lists and CL Guidance'!G17","v":"Severe degradation in technical performance; Cannot meet KPP or key technical/supportability threshold; will jeopardize program success"},{"$f":"'Lists and CL Guidance'!H17","v":"Cannot meet key program milestones. \nSlip > 12months"},null,{"$f":"'Lists and CL Guidance'!I17","v":"Exceeds APB threshold\n(> 10% of Budget)"}]
["No Action",{"$f":"rev_date","v":"2022-01-01"},"Initial Assessment",{"$f":"MRL_risk_reference","v":"1 - Reference - DOD MRL Deskbook (p36) - http://www.dodmrl.com/MRL Deskbook V2020.pdf"}]
[null,null,null,{"$f":"DOD_Risk_reference","v":"2 - Reference - Risk Management Guide for DOD Acquisition\nhttps://acqnotes.com/wp-content/uploads/2014/09/DoD-Risk-Mgt-Guide-v7-interim-Dec2014.pdf"}]
[]
[]
[]
[]
[]
[]
[{"$f":"distro_statement","v":"DISTRIBUTION STATEMENT: No Distribution Statement Determined. "}]

{"sheet":"Comp 18","index":23,"n_rows":43,"n_cols":21,"rows_kept":43,"cut":false,"hidden":false,"merged":[[0,0,0,1],[0,3,0,5],[0,6,0,9],[1,0,1,1],[1,3,1,5],[1,6,1,9],[12,3,12,5],[1,16,1,20],[2,0,2,2],[2,3,2,5],[2,8,3,8],[2,9,3,9],[2,11,9,14],[3,3,3,5],[4,3,4,5],[5,3,5,5],[6,3,6,5],[7,3,7,5],[8,3,8,5],[9,3,9,5],[10,3,10,5],[11,3,11,5],[13,0,13,1],[13,3,13,5],[13,6,14,6],[13,7,14,7],[13,8,14,9],[13,17,14,17],[13,19,14,19],[13,20,14,20],[14,3,14,5],[15,3,15,7],[15,8,16,8],[15,9,16,9],[16,3,16,7],[13,16,14,16],[18,3,18,5],[18,7,19,7],[21,7,22,7],[26,3,26,9],[27,3,28,3],[27,4,28,4],[27,5,27,9],[28,6,28,7],[28,8,28,9],[29,6,29,7],[29,8,29,9],[30,6,30,7],[30,8,30,9],[31,6,31,7],[31,8,31,9],[42,0,43,9],[32,6,32,7],[32,8,32,9],[33,6,33,7],[33,8,33,9],[34,3,34,9],[35,3,36,9]]}
["Component Name",null,"Component Supplier","OEM Point of Contact",null,null,"Component Engineer"]
["Name",null,"Supplier","POC",null,null,"Engineer",null,null,null,null,null,null,null,null,null,"This section is for charting and error checking - Do not alter"]
["Response to MRL Questions1",null,null,"Brief Statement of the Risk",null,null,"Likelihood2","Consequence2","Impact\nScore","Weighted\nImpact\nScore",null,"Correcting Chart Data Labels in Excel:  After entering your L/C scores if the data labels appear as empty they must be reset in Excel.  Follow this procedure to make your data labels appear properly.\n1. Right Click on the data label box\n2. Select \"Format Data Label\"\n3. In the right hand drop down box select the far right \"Label Options\" Category\n4. Uncheck the box \"Value From Cells\"\n5. Re-Check the box \"Value From Cells\"\n6. Confirm selection area is =$A$5:$A$13\n7. Click OK\n8. Click \"Reset Label Text\"\n9. Close the EDIT drop down box",null,null,null,null,"Likelihood2","Consequence2",null,"Likelihood2","Consequence2"]
["Category/Question","y/n","Brief Explanation for Response"," (derived from Explanation for Response)",null,null,"(of occurrence)","(to system)",null,null,null,null,null,null,null,null,"(of occurrence)","(to system)",null,"(of occurrence)","(to system)"]
["Materials","N",null,null,null,null,null,null,{"$f":"IF(AND(B5=\"y\",G5>0,G5<6,H5>0,H5<6),G5*H5,\"\")","v":""},{"$f":"IF(I5<>\"\",I5*9*('System Information'!B28/'System Information'!$B$37),\"\")","v":""},null,null,null,null,null,null,{"$f":"IF(AND(B5=\"y\",G5>0,G5<6),G5,FALSE)","v":false},{"$f":"IF(AND(B5=\"y\",H5>0,H5<6),H5,FALSE)","v":false},null,{"$f":"IF(AND(Q5<>\"\",TRUE),Q5,0)","v":false},{"$f":"IF(R5<>\"\",R5,0)","v":false}]
["Cost","N",null,null,null,null,null,null,{"$f":"IF(AND(B6=\"y\",G6>0,G6<6,H6>0,H6<6),G6*H6,\"\")","v":""},{"$f":"IF(I6<>\"\",I6*9*('System Information'!B29/'System Information'!$B$37),\"\")","v":""},null,null,null,null,null,null,{"$f":"IF(AND(B6=\"y\",G6>0,G6<6),G6,FALSE)","v":false},{"$f":"IF(AND(B6=\"y\",H6>0,H6<6),H6,FALSE)","v":false},null,{"$f":"IF(Q6<>\"\",Q6,0)","v":false},false]
["Design","N",null,null,null,null,null,null,"",{"$f":"IF(I7<>\"\",I7*9*('System Information'!B30/'System Information'!$B$37),\"\")","v":""},null,null,null,null,null,null,false,false,null,false,false]
["Manufacturing Process","N",null,null,null,null,null,null,"",{"$f":"IF(I8<>\"\",I8*9*('System Information'!B31/'System Information'!$B$37),\"\")","v":""},null,null,null,null,null,null,false,false,null,false,false]
["Quality","N",null,null,null,null,null,null,"",{"$f":"IF(I9<>\"\",I9*9*('System Information'!B32/'System Information'!$B$37),\"\")","v":""},null,null,null,null,null,null,false,false,null,false,false]
["Schedule","N",null,null,null,null,null,null,"",{"$f":"IF(I10<>\"\",I10*9*('System Information'!B33/'System Information'!$B$37),\"\")","v":""},null,null,null,null,null,null,false,false,null,false,false]
["Facilities","N",null,null,null,null,null,null,"",{"$f":"IF(I11<>\"\",I11*9*('System Information'!B34/'System Information'!$B$37),\"\")","v":""},null,null,null,null,null,null,false,false,null,false,false]
["Supply Chain Management","N",null,null,null,null,null,null,"",{"$f":"IF(I12<>\"\",I12*9*('System Information'!B35/'System Information'!$B$37),\"\")","v":""},null,null,null,null,null,null,false,false,null,false,false]
["Industrial Base","N",null,null,null,null,null,null,"",{"$f":"IF(I13<>\"\",I13*9*('System Information'!B36/'System Information'!$B$37),\"\")","v":""},null,null,null,null,null,null,false,false,null,false,false]
[null,null,null,"Weighted Likelihood and Consequence:",null,null,{"$f":"IF(T14>0,T14,0)","v":0},{"$f":"IF(U14>0,U14,0)","v":0},null,null,null,null,null,null,null,null,null,null,null,{"$f":"IF(SUM(T5:T13)<>0,SUMSQ(T5:T13)/SUM(T5:T13),0)","v":0},{"$f":"IF(SUM(U5:U13)<>0,SUMSQ(U5:U13)/SUM(U5:U13),0)","v":0}]
[null,null,null,"(Used for Component/Supplier Risk Rating graphic)"]
[null,null,null,"Sum of Impact Scores:",null,null,null,null,{"$f":"IF(SUM(I5:I13)>0,SUM(I5:I13),0)","v":0},{"$f":"IF(SUM(J5:J13)>0,SUM(J5:J13),0)","v":0}]
[null,null,null,"(Used to rank potential resources required)  "]
[]
[null,null,null,{"$f":"'Lists and CL Guidance'!B2","v":"Category Guidance: Likelihood of Occurrence"},null,null,null,"Risk Rating"]
[null,null,null,{"$f":"'Lists and CL Guidance'!B3","v":"Level"},{"$f":"'Lists and CL Guidance'!C3","v":"Likelihood"},{"$f":"'Lists and CL Guidance'!D3","v":"Probability of Occurrence"}]
[null,null,null,{"$f":"'Lists and CL Guidance'!B4","v":1},{"$f":"'Lists and CL Guidance'!C4","v":"Not Likely"},{"$f":"'Lists and CL Guidance'!D4","v":"~10%  (>  1% to ≤ 20%)"}]
[null,null,null,{"$f":"'Lists and CL Guidance'!B5","v":2},{"$f":"'Lists and CL Guidance'!C5","v":"Low Likelihood"},{"$f":"'Lists and CL Guidance'!D5","v":"~30%  (> 20% to ≤ 40%)"},null,"Component Summary Sheet"]
[null,null,null,{"$f":"'Lists and CL Guidance'!B6","v":3},{"$f":"'Lists and CL Guidance'!C6","v":"Likely"},{"$f":"'Lists and CL Guidance'!D6","v":"~50%  (> 40% to ≤ 60%)"}]
[null,null,null,{"$f":"'Lists and CL Guidance'!B7","v":4},{"$f":"'Lists and CL Guidance'!C7","v":"Highly Likely"},{"$f":"'Lists and CL Guidance'!D7","v":"~70% (> 60% to ≤ 80%)"},null,null,null,null,null,null,null,null,0]
[null,null,null,{"$f":"'Lists and CL Guidance'!B8","v":5},{"$f":"'Lists and CL Guidance'!C8","v":"Near Certainty"},{"$f":"'Lists and CL Guidance'!D8","v":"~90%  (> 80% to ≤ 99%)"},null,"Hot Links "]
[]
[null,null,null,{"$f":"'Lists and CL Guidance'!E10","v":"Category Guidance: Consequence (System Impact)"}]
[null,null,null,{"$f":"'Lists and CL Guidance'!E11","v":"Level"},"Consequence",{"$f":"'Lists and CL Guidance'!G11","v":"System Impact"}]
[null,null,null,null,null,{"$f":"'Lists and CL Guidance'!G12","v":"Technical Performance"},{"$f":"'Lists and CL Guidance'!H12","v":"Schedule"},null,{"$f":"'Lists and CL Guidance'!I12","v":"Cost"}]
[null,null,null,{"$f":"'Lists and CL Guidance'!E13","v":1},{"$f":"'Lists and CL Guidance'!F13","v":"Minimal"},{"$f":"'Lists and CL Guidance'!G13","v":"Minimal or no consequence to technical performance"},{"$f":"'Lists and CL Guidance'!H13","v":"Minimal or no impact"},null,{"$f":"'Lists and CL Guidance'!I13","v":"Minimal or no impact"}]
[null,null,null,{"$f":"'Lists and CL Guidance'!E14","v":2},{"$f":"'Lists and CL Guidance'!F14","v":"Minor"},{"$f":"'Lists and CL Guidance'!G14","v":"Minor reduction in technical performance or supportability, can be tolerated with little or no impact on program"},{"$f":"'Lists and CL Guidance'!H14","v":"Able to meet key dates. \nSlip < 6 month(s)"},null,{"$f":"'Lists and CL Guidance'!I14","v":"Budget increase or unit production cost increases.\n(< 1% of Budget)"}]
[null,null,null,{"$f":"'Lists and CL Guidance'!E15","v":3},{"$f":"'Lists and CL Guidance'!F15","v":"Moderate"},{"$f":"'Lists and CL Guidance'!G15","v":"Moderate reduction in technical performance or supportability with limited impact on program objectives"},{"$f":"'Lists and CL Guidance'!H15","v":"Minor schedule slip. Able to meet key milestones with no schedule float.\nSlip < 6 month(s). Sub-system slip > 12 month(s) plus available float."},null,{"$f":"'Lists and CL Guidance'!I15","v":"Budget increase or unit production cost increases.\n(< 5% of Budget)"}]
[null,null,null,{"$f":"'Lists and CL Guidance'!E16","v":4},{"$f":"'Lists and CL Guidance'!F16","v":"Significant"},{"$f":"'Lists and CL Guidance'!G16","v":"Significant degradation in technical performance or major shortfall in supportability; may jeopardize program success"},{"$f":"'Lists and CL Guidance'!H16","v":"Program critical path affected.\nSlip < 12 months"},null,{"$f":"'Lists and CL Guidance'!I16","v":"Budget increase or unit production cost increases.\n(< 10% of Budget)"}]
["Action Taken with this Supplier","Date","Comments for Action Taken",{"$f":"'Lists and CL Guidance'!E17","v":5},{"$f":"'Lists and CL Guidance'!F17","v":"Severe"},{"$f":"'Lists and CL Guidance'!G17","v":"Severe degradation in technical performance; Cannot meet KPP or key technical/supportability threshold; will jeopardize program success"},{"$f":"'Lists and CL Guidance'!H17","v":"Cannot meet key program milestones. \nSlip > 12months"},null,{"$f":"'Lists and CL Guidance'!I17","v":"Exceeds APB threshold\n(> 10% of Budget)"}]
["No Action",{"$f":"rev_date","v":"2022-01-01"},"Initial Assessment",{"$f":"MRL_risk_reference","v":"1 - Reference - DOD MRL Deskbook (p36) - http://www.dodmrl.com/MRL Deskbook V2020.pdf"}]
[null,null,null,{"$f":"DOD_Risk_reference","v":"2 - Reference - Risk Management Guide for DOD Acquisition\nhttps://acqnotes.com/wp-content/uploads/2014/09/DoD-Risk-Mgt-Guide-v7-interim-Dec2014.pdf"}]
[]
[]
[]
[]
[]
[]
[{"$f":"distro_statement","v":"DISTRIBUTION STATEMENT: No Distribution Statement Determined. "}]

{"sheet":"Comp 19","index":24,"n_rows":43,"n_cols":21,"rows_kept":43,"cut":false,"hidden":false,"merged":[[0,0,0,1],[0,3,0,5],[0,6,0,9],[1,0,1,1],[1,3,1,5],[1,6,1,9],[12,3,12,5],[1,16,1,20],[2,0,2,2],[2,3,2,5],[2,8,3,8],[2,9,3,9],[2,11,9,14],[3,3,3,5],[4,3,4,5],[5,3,5,5],[6,3,6,5],[7,3,7,5],[8,3,8,5],[9,3,9,5],[10,3,10,5],[11,3,11,5],[13,0,13,1],[13,3,13,5],[13,6,14,6],[13,7,14,7],[13,8,14,9],[13,17,14,17],[13,19,14,19],[13,20,14,20],[14,3,14,5],[15,3,15,7],[15,8,16,8],[15,9,16,9],[16,3,16,7],[13,16,14,16],[18,3,18,5],[18,7,19,7],[21,7,22,7],[26,3,26,9],[27,3,28,3],[27,4,28,4],[27,5,27,9],[28,6,28,7],[28,8,28,9],[29,6,29,7],[29,8,29,9],[30,6,30,7],[30,8,30,9],[31,6,31,7],[31,8,31,9],[42,0,43,9],[32,6,32,7],[32,8,32,9],[33,6,33,7],[33,8,33,9],[34,3,34,9],[35,3,36,9]]}
["Component Name",null,"Component Supplier","OEM Point of Contact",null,null,"Component Engineer"]
["Name",null,"Supplier","POC",null,null,"Engineer",null,null,null,null,null,null,null,null,null,"This section is for charting and error checking - Do not alter"]
["Response to MRL Questions1",null,null,"Brief Statement of the Risk",null,null,"Likelihood2","Consequence2","Impact\nScore","Weighted\nImpact\nScore",null,"Correcting Chart Data Labels in Excel:  After entering your L/C scores if the data labels appear as empty they must be reset in Excel.  Follow this procedure to make your data labels appear properly.\n1. Right Click on the data label box\n2. Select \"Format Data Label\"\n3. In the right hand drop down box select the far right \"Label Options\" Category\n4. Uncheck the box \"Value From Cells\"\n5. Re-Check the box \"Value From Cells\"\n6. Confirm selection area is =$A$5:$A$13\n7. Click OK\n8. Click \"Reset Label Text\"\n9. Close the EDIT drop down box",null,null,null,null,"Likelihood2","Consequence2",null,"Likelihood2","Consequence2"]
["Category/Question","y/n","Brief Explanation for Response"," (derived from Explanation for Response)",null,null,"(of occurrence)","(to system)",null,null,null,null,null,null,null,null,"(of occurrence)","(to system)",null,"(of occurrence)","(to system)"]
["Materials","N",null,null,null,null,null,null,{"$f":"IF(AND(B5=\"y\",G5>0,G5<6,H5>0,H5<6),G5*H5,\"\")","v":""},{"$f":"IF(I5<>\"\",I5*9*('System Information'!B28/'System Information'!$B$37),\"\")","v":""},null,null,null,null,null,null,{"$f":"IF(AND(B5=\"y\",G5>0,G5<6),G5,FALSE)","v":false},{"$f":"IF(AND(B5=\"y\",H5>0,H5<6),H5,FALSE)","v":false},null,{"$f":"IF(AND(Q5<>\"\",TRUE),Q5,0)","v":false},{"$f":"IF(R5<>\"\",R5,0)","v":false}]
["Cost","N",null,null,null,null,null,null,{"$f":"IF(AND(B6=\"y\",G6>0,G6<6,H6>0,H6<6),G6*H6,\"\")","v":""},{"$f":"IF(I6<>\"\",I6*9*('System Information'!B29/'System Information'!$B$37),\"\")","v":""},null,null,null,null,null,null,{"$f":"IF(AND(B6=\"y\",G6>0,G6<6),G6,FALSE)","v":false},{"$f":"IF(AND(B6=\"y\",H6>0,H6<6),H6,FALSE)","v":false},null,{"$f":"IF(Q6<>\"\",Q6,0)","v":false},false]
["Design","N",null,null,null,null,null,null,"",{"$f":"IF(I7<>\"\",I7*9*('System Information'!B30/'System Information'!$B$37),\"\")","v":""},null,null,null,null,null,null,false,false,null,false,false]
["Manufacturing Process","N",null,null,null,null,null,null,"",{"$f":"IF(I8<>\"\",I8*9*('System Information'!B31/'System Information'!$B$37),\"\")","v":""},null,null,null,null,null,null,false,false,null,false,false]
["Quality","N",null,null,null,null,null,null,"",{"$f":"IF(I9<>\"\",I9*9*('System Information'!B32/'System Information'!$B$37),\"\")","v":""},null,null,null,null,null,null,false,false,null,false,false]
["Schedule","N",null,null,null,null,null,null,"",{"$f":"IF(I10<>\"\",I10*9*('System Information'!B33/'System Information'!$B$37),\"\")","v":""},null,null,null,null,null,null,false,false,null,false,false]
["Facilities","N",null,null,null,null,null,null,"",{"$f":"IF(I11<>\"\",I11*9*('System Information'!B34/'System Information'!$B$37),\"\")","v":""},null,null,null,null,null,null,false,false,null,false,false]
["Supply Chain Management","N",null,null,null,null,null,null,"",{"$f":"IF(I12<>\"\",I12*9*('System Information'!B35/'System Information'!$B$37),\"\")","v":""},null,null,null,null,null,null,false,false,null,false,false]
["Industrial Base","N",null,null,null,null,null,null,"",{"$f":"IF(I13<>\"\",I13*9*('System Information'!B36/'System Information'!$B$37),\"\")","v":""},null,null,null,null,null,null,false,false,null,false,false]
[null,null,null,"Weighted Likelihood and Consequence:",null,null,{"$f":"IF(T14>0,T14,0)","v":0},{"$f":"IF(U14>0,U14,0)","v":0},null,null,null,null,null,null,null,null,null,null,null,{"$f":"IF(SUM(T5:T13)<>0,SUMSQ(T5:T13)/SUM(T5:T13),0)","v":0},{"$f":"IF(SUM(U5:U13)<>0,SUMSQ(U5:U13)/SUM(U5:U13),0)","v":0}]
[null,null,null,"(Used for Component/Supplier Risk Rating graphic)"]
[null,null,null,"Sum of Impact Scores:",null,null,null,null,{"$f":"IF(SUM(I5:I13)>0,SUM(I5:I13),0)","v":0},{"$f":"IF(SUM(J5:J13)>0,SUM(J5:J13),0)","v":0}]
[null,null,null,"(Used to rank potential resources required)  "]
[]
[null,null,null,{"$f":"'Lists and CL Guidance'!B2","v":"Category Guidance: Likelihood of Occurrence"},null,null,null,"Risk Rating"]
[null,null,null,{"$f":"'Lists and CL Guidance'!B3","v":"Level"},{"$f":"'Lists and CL Guidance'!C3","v":"Likelihood"},{"$f":"'Lists and CL Guidance'!D3","v":"Probability of Occurrence"}]
[null,null,null,{"$f":"'Lists and CL Guidance'!B4","v":1},{"$f":"'Lists and CL Guidance'!C4","v":"Not Likely"},{"$f":"'Lists and CL Guidance'!D4","v":"~10%  (>  1% to ≤ 20%)"}]
[null,null,null,{"$f":"'Lists and CL Guidance'!B5","v":2},{"$f":"'Lists and CL Guidance'!C5","v":"Low Likelihood"},{"$f":"'Lists and CL Guidance'!D5","v":"~30%  (> 20% to ≤ 40%)"},null,"Component Summary Sheet"]
[null,null,null,{"$f":"'Lists and CL Guidance'!B6","v":3},{"$f":"'Lists and CL Guidance'!C6","v":"Likely"},{"$f":"'Lists and CL Guidance'!D6","v":"~50%  (> 40% to ≤ 60%)"}]
[null,null,null,{"$f":"'Lists and CL Guidance'!B7","v":4},{"$f":"'Lists and CL Guidance'!C7","v":"Highly Likely"},{"$f":"'Lists and CL Guidance'!D7","v":"~70% (> 60% to ≤ 80%)"},null,null,null,null,null,null,null,null,0]
[null,null,null,{"$f":"'Lists and CL Guidance'!B8","v":5},{"$f":"'Lists and CL Guidance'!C8","v":"Near Certainty"},{"$f":"'Lists and CL Guidance'!D8","v":"~90%  (> 80% to ≤ 99%)"},null,"Hot Links "]
[]
[null,null,null,{"$f":"'Lists and CL Guidance'!E10","v":"Category Guidance: Consequence (System Impact)"}]
[null,null,null,{"$f":"'Lists and CL Guidance'!E11","v":"Level"},"Consequence",{"$f":"'Lists and CL Guidance'!G11","v":"System Impact"}]
[null,null,null,null,null,{"$f":"'Lists and CL Guidance'!G12","v":"Technical Performance"},{"$f":"'Lists and CL Guidance'!H12","v":"Schedule"},null,{"$f":"'Lists and CL Guidance'!I12","v":"Cost"}]
[null,null,null,{"$f":"'Lists and CL Guidance'!E13","v":1},{"$f":"'Lists and CL Guidance'!F13","v":"Minimal"},{"$f":"'Lists and CL Guidance'!G13","v":"Minimal or no consequence to technical performance"},{"$f":"'Lists and CL Guidance'!H13","v":"Minimal or no impact"},null,{"$f":"'Lists and CL Guidance'!I13","v":"Minimal or no impact"}]
[null,null,null,{"$f":"'Lists and CL Guidance'!E14","v":2},{"$f":"'Lists and CL Guidance'!F14","v":"Minor"},{"$f":"'Lists and CL Guidance'!G14","v":"Minor reduction in technical performance or supportability, can be tolerated with little or no impact on program"},{"$f":"'Lists and CL Guidance'!H14","v":"Able to meet key dates. \nSlip < 6 month(s)"},null,{"$f":"'Lists and CL Guidance'!I14","v":"Budget increase or unit production cost increases.\n(< 1% of Budget)"}]
[null,null,null,{"$f":"'Lists and CL Guidance'!E15","v":3},{"$f":"'Lists and CL Guidance'!F15","v":"Moderate"},{"$f":"'Lists and CL Guidance'!G15","v":"Moderate reduction in technical performance or supportability with limited impact on program objectives"},{"$f":"'Lists and CL Guidance'!H15","v":"Minor schedule slip. Able to meet key milestones with no schedule float.\nSlip < 6 month(s). Sub-system slip > 12 month(s) plus available float."},null,{"$f":"'Lists and CL Guidance'!I15","v":"Budget increase or unit production cost increases.\n(< 5% of Budget)"}]
[null,null,null,{"$f":"'Lists and CL Guidance'!E16","v":4},{"$f":"'Lists and CL Guidance'!F16","v":"Significant"},{"$f":"'Lists and CL Guidance'!G16","v":"Significant degradation in technical performance or major shortfall in supportability; may jeopardize program success"},{"$f":"'Lists and CL Guidance'!H16","v":"Program critical path affected.\nSlip < 12 months"},null,{"$f":"'Lists and CL Guidance'!I16","v":"Budget increase or unit production cost increases.\n(< 10% of Budget)"}]
["Action Taken with this Supplier","Date","Comments for Action Taken",{"$f":"'Lists and CL Guidance'!E17","v":5},{"$f":"'Lists and CL Guidance'!F17","v":"Severe"},{"$f":"'Lists and CL Guidance'!G17","v":"Severe degradation in technical performance; Cannot meet KPP or key technical/supportability threshold; will jeopardize program success"},{"$f":"'Lists and CL Guidance'!H17","v":"Cannot meet key program milestones. \nSlip > 12months"},null,{"$f":"'Lists and CL Guidance'!I17","v":"Exceeds APB threshold\n(> 10% of Budget)"}]
["No Action",{"$f":"rev_date","v":"2022-01-01"},"Initial Assessment",{"$f":"MRL_risk_reference","v":"1 - Reference - DOD MRL Deskbook (p36) - http://www.dodmrl.com/MRL Deskbook V2020.pdf"}]
[null,null,null,{"$f":"DOD_Risk_reference","v":"2 - Reference - Risk Management Guide for DOD Acquisition\nhttps://acqnotes.com/wp-content/uploads/2014/09/DoD-Risk-Mgt-Guide-v7-interim-Dec2014.pdf"}]
[]
[]
[]
[]
[]
[]
[{"$f":"distro_statement","v":"DISTRIBUTION STATEMENT: No Distribution Statement Determined. "}]

{"sheet":"Comp 20","index":25,"n_rows":43,"n_cols":21,"rows_kept":43,"cut":false,"hidden":false,"merged":[[0,0,0,1],[0,3,0,5],[0,6,0,9],[1,0,1,1],[1,3,1,5],[1,6,1,9],[12,3,12,5],[1,16,1,20],[2,0,2,2],[2,3,2,5],[2,8,3,8],[2,9,3,9],[2,11,9,14],[3,3,3,5],[4,3,4,5],[5,3,5,5],[6,3,6,5],[7,3,7,5],[8,3,8,5],[9,3,9,5],[10,3,10,5],[11,3,11,5],[13,0,13,1],[13,3,13,5],[13,6,14,6],[13,7,14,7],[13,8,14,9],[13,17,14,17],[13,19,14,19],[13,20,14,20],[14,3,14,5],[15,3,15,7],[15,8,16,8],[15,9,16,9],[16,3,16,7],[13,16,14,16],[18,3,18,5],[18,7,19,7],[21,7,22,7],[26,3,26,9],[27,3,28,3],[27,4,28,4],[27,5,27,9],[28,6,28,7],[28,8,28,9],[29,6,29,7],[29,8,29,9],[30,6,30,7],[30,8,30,9],[31,6,31,7],[31,8,31,9],[42,0,43,9],[32,6,32,7],[32,8,32,9],[33,6,33,7],[33,8,33,9],[34,3,34,9],[35,3,36,9]]}
["Component Name",null,"Component Supplier","OEM Point of Contact",null,null,"Component Engineer"]
["Name",null,"Supplier","POC",null,null,"Engineer",null,null,null,null,null,null,null,null,null,"This section is for charting and error checking - Do not alter"]
["Response to MRL Questions1",null,null,"Brief Statement of the Risk",null,null,"Likelihood2","Consequence2","Impact\nScore","Weighted\nImpact\nScore",null,"Correcting Chart Data Labels in Excel:  After entering your L/C scores if the data labels appear as empty they must be reset in Excel.  Follow this procedure to make your data labels appear properly.\n1. Right Click on the data label box\n2. Select \"Format Data Label\"\n3. In the right hand drop down box select the far right \"Label Options\" Category\n4. Uncheck the box \"Value From Cells\"\n5. Re-Check the box \"Value From Cells\"\n6. Confirm selection area is =$A$5:$A$13\n7. Click OK\n8. Click \"Reset Label Text\"\n9. Close the EDIT drop down box",null,null,null,null,"Likelihood2","Consequence2",null,"Likelihood2","Consequence2"]
["Category/Question","y/n","Brief Explanation for Response"," (derived from Explanation for Response)",null,null,"(of occurrence)","(to system)",null,null,null,null,null,null,null,null,"(of occurrence)","(to system)",null,"(of occurrence)","(to system)"]
["Materials","N",null,null,null,null,null,null,{"$f":"IF(AND(B5=\"y\",G5>0,G5<6,H5>0,H5<6),G5*H5,\"\")","v":""},{"$f":"IF(I5<>\"\",I5*9*('System Information'!B28/'System Information'!$B$37),\"\")","v":""},null,null,null,null,null,null,{"$f":"IF(AND(B5=\"y\",G5>0,G5<6),G5,FALSE)","v":false},{"$f":"IF(AND(B5=\"y\",H5>0,H5<6),H5,FALSE)","v":false},null,{"$f":"IF(AND(Q5<>\"\",TRUE),Q5,0)","v":false},{"$f":"IF(R5<>\"\",R5,0)","v":false}]
["Cost","N",null,null,null,null,null,null,{"$f":"IF(AND(B6=\"y\",G6>0,G6<6,H6>0,H6<6),G6*H6,\"\")","v":""},{"$f":"IF(I6<>\"\",I6*9*('System Information'!B29/'System Information'!$B$37),\"\")","v":""},null,null,null,null,null,null,{"$f":"IF(AND(B6=\"y\",G6>0,G6<6),G6,FALSE)","v":false},{"$f":"IF(AND(B6=\"y\",H6>0,H6<6),H6,FALSE)","v":false},null,{"$f":"IF(Q6<>\"\",Q6,0)","v":false},false]
["Design","N",null,null,null,null,null,null,"",{"$f":"IF(I7<>\"\",I7*9*('System Information'!B30/'System Information'!$B$37),\"\")","v":""},null,null,null,null,null,null,false,false,null,false,false]
["Manufacturing Process","N",null,null,null,null,null,null,"",{"$f":"IF(I8<>\"\",I8*9*('System Information'!B31/'System Information'!$B$37),\"\")","v":""},null,null,null,null,null,null,false,false,null,false,false]
["Quality","N",null,null,null,null,null,null,"",{"$f":"IF(I9<>\"\",I9*9*('System Information'!B32/'System Information'!$B$37),\"\")","v":""},null,null,null,null,null,null,false,false,null,false,false]
["Schedule","N",null,null,null,null,null,null,"",{"$f":"IF(I10<>\"\",I10*9*('System Information'!B33/'System Information'!$B$37),\"\")","v":""},null,null,null,null,null,null,false,false,null,false,false]
["Facilities","N",null,null,null,null,null,null,"",{"$f":"IF(I11<>\"\",I11*9*('System Information'!B34/'System Information'!$B$37),\"\")","v":""},null,null,null,null,null,null,false,false,null,false,false]
["Supply Chain Management","N",null,null,null,null,null,null,"",{"$f":"IF(I12<>\"\",I12*9*('System Information'!B35/'System Information'!$B$37),\"\")","v":""},null,null,null,null,null,null,false,false,null,false,false]
["Industrial Base","N",null,null,null,null,null,null,"",{"$f":"IF(I13<>\"\",I13*9*('System Information'!B36/'System Information'!$B$37),\"\")","v":""},null,null,null,null,null,null,false,false,null,false,false]
[null,null,null,"Weighted Likelihood and Consequence:",null,null,{"$f":"IF(T14>0,T14,0)","v":0},{"$f":"IF(U14>0,U14,0)","v":0},null,null,null,null,null,null,null,null,null,null,null,{"$f":"IF(SUM(T5:T13)<>0,SUMSQ(T5:T13)/SUM(T5:T13),0)","v":0},{"$f":"IF(SUM(U5:U13)<>0,SUMSQ(U5:U13)/SUM(U5:U13),0)","v":0}]
[null,null,null,"(Used for Component/Supplier Risk Rating graphic)"]
[null,null,null,"Sum of Impact Scores:",null,null,null,null,{"$f":"IF(SUM(I5:I13)>0,SUM(I5:I13),0)","v":0},{"$f":"IF(SUM(J5:J13)>0,SUM(J5:J13),0)","v":0}]
[null,null,null,"(Used to rank potential resources required)  "]
[]
[null,null,null,{"$f":"'Lists and CL Guidance'!B2","v":"Category Guidance: Likelihood of Occurrence"},null,null,null,"Risk Rating"]
[null,null,null,{"$f":"'Lists and CL Guidance'!B3","v":"Level"},{"$f":"'Lists and CL Guidance'!C3","v":"Likelihood"},{"$f":"'Lists and CL Guidance'!D3","v":"Probability of Occurrence"}]
[null,null,null,{"$f":"'Lists and CL Guidance'!B4","v":1},{"$f":"'Lists and CL Guidance'!C4","v":"Not Likely"},{"$f":"'Lists and CL Guidance'!D4","v":"~10%  (>  1% to ≤ 20%)"}]
[null,null,null,{"$f":"'Lists and CL Guidance'!B5","v":2},{"$f":"'Lists and CL Guidance'!C5","v":"Low Likelihood"},{"$f":"'Lists and CL Guidance'!D5","v":"~30%  (> 20% to ≤ 40%)"},null,"Component Summary Sheet"]
[null,null,null,{"$f":"'Lists and CL Guidance'!B6","v":3},{"$f":"'Lists and CL Guidance'!C6","v":"Likely"},{"$f":"'Lists and CL Guidance'!D6","v":"~50%  (> 40% to ≤ 60%)"}]
[null,null,null,{"$f":"'Lists and CL Guidance'!B7","v":4},{"$f":"'Lists and CL Guidance'!C7","v":"Highly Likely"},{"$f":"'Lists and CL Guidance'!D7","v":"~70% (> 60% to ≤ 80%)"},null,null,null,null,null,null,null,null,0]
[null,null,null,{"$f":"'Lists and CL Guidance'!B8","v":5},{"$f":"'Lists and CL Guidance'!C8","v":"Near Certainty"},{"$f":"'Lists and CL Guidance'!D8","v":"~90%  (> 80% to ≤ 99%)"},null,"Hot Links "]
[]
[null,null,null,{"$f":"'Lists and CL Guidance'!E10","v":"Category Guidance: Consequence (System Impact)"}]
[null,null,null,{"$f":"'Lists and CL Guidance'!E11","v":"Level"},"Consequence",{"$f":"'Lists and CL Guidance'!G11","v":"System Impact"}]
[null,null,null,null,null,{"$f":"'Lists and CL Guidance'!G12","v":"Technical Performance"},{"$f":"'Lists and CL Guidance'!H12","v":"Schedule"},null,{"$f":"'Lists and CL Guidance'!I12","v":"Cost"}]
[null,null,null,{"$f":"'Lists and CL Guidance'!E13","v":1},{"$f":"'Lists and CL Guidance'!F13","v":"Minimal"},{"$f":"'Lists and CL Guidance'!G13","v":"Minimal or no consequence to technical performance"},{"$f":"'Lists and CL Guidance'!H13","v":"Minimal or no impact"},null,{"$f":"'Lists and CL Guidance'!I13","v":"Minimal or no impact"}]
[null,null,null,{"$f":"'Lists and CL Guidance'!E14","v":2},{"$f":"'Lists and CL Guidance'!F14","v":"Minor"},{"$f":"'Lists and CL Guidance'!G14","v":"Minor reduction in technical performance or supportability, can be tolerated with little or no impact on program"},{"$f":"'Lists and CL Guidance'!H14","v":"Able to meet key dates. \nSlip < 6 month(s)"},null,{"$f":"'Lists and CL Guidance'!I14","v":"Budget increase or unit production cost increases.\n(< 1% of Budget)"}]
[null,null,null,{"$f":"'Lists and CL Guidance'!E15","v":3},{"$f":"'Lists and CL Guidance'!F15","v":"Moderate"},{"$f":"'Lists and CL Guidance'!G15","v":"Moderate reduction in technical performance or supportability with limited impact on program objectives"},{"$f":"'Lists and CL Guidance'!H15","v":"Minor schedule slip. Able to meet key milestones with no schedule float.\nSlip < 6 month(s). Sub-system slip > 12 month(s) plus available float."},null,{"$f":"'Lists and CL Guidance'!I15","v":"Budget increase or unit production cost increases.\n(< 5% of Budget)"}]
[null,null,null,{"$f":"'Lists and CL Guidance'!E16","v":4},{"$f":"'Lists and CL Guidance'!F16","v":"Significant"},{"$f":"'Lists and CL Guidance'!G16","v":"Significant degradation in technical performance or major shortfall in supportability; may jeopardize program success"},{"$f":"'Lists and CL Guidance'!H16","v":"Program critical path affected.\nSlip < 12 months"},null,{"$f":"'Lists and CL Guidance'!I16","v":"Budget increase or unit production cost increases.\n(< 10% of Budget)"}]
["Action Taken with this Supplier","Date","Comments for Action Taken",{"$f":"'Lists and CL Guidance'!E17","v":5},{"$f":"'Lists and CL Guidance'!F17","v":"Severe"},{"$f":"'Lists and CL Guidance'!G17","v":"Severe degradation in technical performance; Cannot meet KPP or key technical/supportability threshold; will jeopardize program success"},{"$f":"'Lists and CL Guidance'!H17","v":"Cannot meet key program milestones. \nSlip > 12months"},null,{"$f":"'Lists and CL Guidance'!I17","v":"Exceeds APB threshold\n(> 10% of Budget)"}]
["No Action",{"$f":"rev_date","v":"2022-01-01"},"Initial Assessment",{"$f":"MRL_risk_reference","v":"1 - Reference - DOD MRL Deskbook (p36) - http://www.dodmrl.com/MRL Deskbook V2020.pdf"}]
[null,null,null,{"$f":"DOD_Risk_reference","v":"2 - Reference - Risk Management Guide for DOD Acquisition\nhttps://acqnotes.com/wp-content/uploads/2014/09/DoD-Risk-Mgt-Guide-v7-interim-Dec2014.pdf"}]
[]
[]
[]
[]
[]
[]
[{"$f":"distro_statement","v":"DISTRIBUTION STATEMENT: No Distribution Statement Determined. "}]

{"sheet":"Comp 21","index":26,"n_rows":43,"n_cols":21,"rows_kept":43,"cut":false,"hidden":false,"merged":[[0,0,0,1],[0,3,0,5],[0,6,0,9],[1,0,1,1],[1,3,1,5],[1,6,1,9],[12,3,12,5],[1,16,1,20],[2,0,2,2],[2,3,2,5],[2,8,3,8],[2,9,3,9],[2,11,9,14],[3,3,3,5],[4,3,4,5],[5,3,5,5],[6,3,6,5],[7,3,7,5],[8,3,8,5],[9,3,9,5],[10,3,10,5],[11,3,11,5],[13,0,13,1],[13,3,13,5],[13,6,14,6],[13,7,14,7],[13,8,14,9],[13,17,14,17],[13,19,14,19],[13,20,14,20],[14,3,14,5],[15,3,15,7],[15,8,16,8],[15,9,16,9],[16,3,16,7],[13,16,14,16],[18,3,18,5],[18,7,19,7],[21,7,22,7],[26,3,26,9],[27,3,28,3],[27,4,28,4],[27,5,27,9],[28,6,28,7],[28,8,28,9],[29,6,29,7],[29,8,29,9],[30,6,30,7],[30,8,30,9],[31,6,31,7],[31,8,31,9],[42,0,43,9],[32,6,32,7],[32,8,32,9],[33,6,33,7],[33,8,33,9],[34,3,34,9],[35,3,36,9]]}
["Component Name",null,"Component Supplier","OEM Point of Contact",null,null,"Component Engineer"]
["Name",null,"Supplier","POC",null,null,"Engineer",null,null,null,null,null,null,null,null,null,"This section is for charting and error checking - Do not alter"]
["Response to MRL Questions1",null,null,"Brief Statement of the Risk",null,null,"Likelihood2","Consequence2","Impact\nScore","Weighted\nImpact\nScore",null,"Correcting Chart Data Labels in Excel:  After entering your L/C scores if the data labels appear as empty they must be reset in Excel.  Follow this procedure to make your data labels appear properly.\n1. Right Click on the data label box\n2. Select \"Format Data Label\"\n3. In the right hand drop down box select the far right \"Label Options\" Category\n4. Uncheck the box \"Value From Cells\"\n5. Re-Check the box \"Value From Cells\"\n6. Confirm selection area is =$A$5:$A$13\n7. Click OK\n8. Click \"Reset Label Text\"\n9. Close the EDIT drop down box",null,null,null,null,"Likelihood2","Consequence2",null,"Likelihood2","Consequence2"]
["Category/Question","y/n","Brief Explanation for Response"," (derived from Explanation for Response)",null,null,"(of occurrence)","(to system)",null,null,null,null,null,null,null,null,"(of occurrence)","(to system)",null,"(of occurrence)","(to system)"]
["Materials","N",null,null,null,null,null,null,{"$f":"IF(AND(B5=\"y\",G5>0,G5<6,H5>0,H5<6),G5*H5,\"\")","v":""},{"$f":"IF(I5<>\"\",I5*9*('System Information'!B28/'System Information'!$B$37),\"\")","v":""},null,null,null,null,null,null,{"$f":"IF(AND(B5=\"y\",G5>0,G5<6),G5,FALSE)","v":false},{"$f":"IF(AND(B5=\"y\",H5>0,H5<6),H5,FALSE)","v":false},null,{"$f":"IF(AND(Q5<>\"\",TRUE),Q5,0)","v":false},{"$f":"IF(R5<>\"\",R5,0)","v":false}]
["Cost","N",null,null,null,null,null,null,{"$f":"IF(AND(B6=\"y\",G6>0,G6<6,H6>0,H6<6),G6*H6,\"\")","v":""},{"$f":"IF(I6<>\"\",I6*9*('System Information'!B29/'System Information'!$B$37),\"\")","v":""},null,null,null,null,null,null,{"$f":"IF(AND(B6=\"y\",G6>0,G6<6),G6,FALSE)","v":false},{"$f":"IF(AND(B6=\"y\",H6>0,H6<6),H6,FALSE)","v":false},null,{"$f":"IF(Q6<>\"\",Q6,0)","v":false},false]
["Design","N",null,null,null,null,null,null,"",{"$f":"IF(I7<>\"\",I7*9*('System Information'!B30/'System Information'!$B$37),\"\")","v":""},null,null,null,null,null,null,false,false,null,false,false]
["Manufacturing Process","N",null,null,null,null,null,null,"",{"$f":"IF(I8<>\"\",I8*9*('System Information'!B31/'System Information'!$B$37),\"\")","v":""},null,null,null,null,null,null,false,false,null,false,false]
["Quality","N",null,null,null,null,null,null,"",{"$f":"IF(I9<>\"\",I9*9*('System Information'!B32/'System Information'!$B$37),\"\")","v":""},null,null,null,null,null,null,false,false,null,false,false]
["Schedule","N",null,null,null,null,null,null,"",{"$f":"IF(I10<>\"\",I10*9*('System Information'!B33/'System Information'!$B$37),\"\")","v":""},null,null,null,null,null,null,false,false,null,false,false]
["Facilities","N",null,null,null,null,null,null,"",{"$f":"IF(I11<>\"\",I11*9*('System Information'!B34/'System Information'!$B$37),\"\")","v":""},null,null,null,null,null,null,false,false,null,false,false]
["Supply Chain Management","N",null,null,null,null,null,null,"",{"$f":"IF(I12<>\"\",I12*9*('System Information'!B35/'System Information'!$B$37),\"\")","v":""},null,null,null,null,null,null,false,false,null,false,false]
["Industrial Base","N",null,null,null,null,null,null,"",{"$f":"IF(I13<>\"\",I13*9*('System Information'!B36/'System Information'!$B$37),\"\")","v":""},null,null,null,null,null,null,false,false,null,false,false]
[null,null,null,"Weighted Likelihood and Consequence:",null,null,{"$f":"IF(T14>0,T14,0)","v":0},{"$f":"IF(U14>0,U14,0)","v":0},null,null,null,null,null,null,null,null,null,null,null,{"$f":"IF(SUM(T5:T13)<>0,SUMSQ(T5:T13)/SUM(T5:T13),0)","v":0},{"$f":"IF(SUM(U5:U13)<>0,SUMSQ(U5:U13)/SUM(U5:U13),0)","v":0}]
[null,null,null,"(Used for Component/Supplier Risk Rating graphic)"]
[null,null,null,"Sum of Impact Scores:",null,null,null,null,{"$f":"IF(SUM(I5:I13)>0,SUM(I5:I13),0)","v":0},{"$f":"IF(SUM(J5:J13)>0,SUM(J5:J13),0)","v":0}]
[null,null,null,"(Used to rank potential resources required)  "]
[]
[null,null,null,{"$f":"'Lists and CL Guidance'!B2","v":"Category Guidance: Likelihood of Occurrence"},null,null,null,"Risk Rating"]
[null,null,null,{"$f":"'Lists and CL Guidance'!B3","v":"Level"},{"$f":"'Lists and CL Guidance'!C3","v":"Likelihood"},{"$f":"'Lists and CL Guidance'!D3","v":"Probability of Occurrence"}]
[null,null,null,{"$f":"'Lists and CL Guidance'!B4","v":1},{"$f":"'Lists and CL Guidance'!C4","v":"Not Likely"},{"$f":"'Lists and CL Guidance'!D4","v":"~10%  (>  1% to ≤ 20%)"}]
[null,null,null,{"$f":"'Lists and CL Guidance'!B5","v":2},{"$f":"'Lists and CL Guidance'!C5","v":"Low Likelihood"},{"$f":"'Lists and CL Guidance'!D5","v":"~30%  (> 20% to ≤ 40%)"},null,"Component Summary Sheet"]
[null,null,null,{"$f":"'Lists and CL Guidance'!B6","v":3},{"$f":"'Lists and CL Guidance'!C6","v":"Likely"},{"$f":"'Lists and CL Guidance'!D6","v":"~50%  (> 40% to ≤ 60%)"}]
[null,null,null,{"$f":"'Lists and CL Guidance'!B7","v":4},{"$f":"'Lists and CL Guidance'!C7","v":"Highly Likely"},{"$f":"'Lists and CL Guidance'!D7","v":"~70% (> 60% to ≤ 80%)"},null,null,null,null,null,null,null,null,0]
[null,null,null,{"$f":"'Lists and CL Guidance'!B8","v":5},{"$f":"'Lists and CL Guidance'!C8","v":"Near Certainty"},{"$f":"'Lists and CL Guidance'!D8","v":"~90%  (> 80% to ≤ 99%)"},null,"Hot Links "]
[]
[null,null,null,{"$f":"'Lists and CL Guidance'!E10","v":"Category Guidance: Consequence (System Impact)"}]
[null,null,null,{"$f":"'Lists and CL Guidance'!E11","v":"Level"},"Consequence",{"$f":"'Lists and CL Guidance'!G11","v":"System Impact"}]
[null,null,null,null,null,{"$f":"'Lists and CL Guidance'!G12","v":"Technical Performance"},{"$f":"'Lists and CL Guidance'!H12","v":"Schedule"},null,{"$f":"'Lists and CL Guidance'!I12","v":"Cost"}]
[null,null,null,{"$f":"'Lists and CL Guidance'!E13","v":1},{"$f":"'Lists and CL Guidance'!F13","v":"Minimal"},{"$f":"'Lists and CL Guidance'!G13","v":"Minimal or no consequence to technical performance"},{"$f":"'Lists and CL Guidance'!H13","v":"Minimal or no impact"},null,{"$f":"'Lists and CL Guidance'!I13","v":"Minimal or no impact"}]
[null,null,null,{"$f":"'Lists and CL Guidance'!E14","v":2},{"$f":"'Lists and CL Guidance'!F14","v":"Minor"},{"$f":"'Lists and CL Guidance'!G14","v":"Minor reduction in technical performance or supportability, can be tolerated with little or no impact on program"},{"$f":"'Lists and CL Guidance'!H14","v":"Able to meet key dates. \nSlip < 6 month(s)"},null,{"$f":"'Lists and CL Guidance'!I14","v":"Budget increase or unit production cost increases.\n(< 1% of Budget)"}]
[null,null,null,{"$f":"'Lists and CL Guidance'!E15","v":3},{"$f":"'Lists and CL Guidance'!F15","v":"Moderate"},{"$f":"'Lists and CL Guidance'!G15","v":"Moderate reduction in technical performance or supportability with limited impact on program objectives"},{"$f":"'Lists and CL Guidance'!H15","v":"Minor schedule slip. Able to meet key milestones with no schedule float.\nSlip < 6 month(s). Sub-system slip > 12 month(s) plus available float."},null,{"$f":"'Lists and CL Guidance'!I15","v":"Budget increase or unit production cost increases.\n(< 5% of Budget)"}]
[null,null,null,{"$f":"'Lists and CL Guidance'!E16","v":4},{"$f":"'Lists and CL Guidance'!F16","v":"Significant"},{"$f":"'Lists and CL Guidance'!G16","v":"Significant degradation in technical performance or major shortfall in supportability; may jeopardize program success"},{"$f":"'Lists and CL Guidance'!H16","v":"Program critical path affected.\nSlip < 12 months"},null,{"$f":"'Lists and CL Guidance'!I16","v":"Budget increase or unit production cost increases.\n(< 10% of Budget)"}]
["Action Taken with this Supplier","Date","Comments for Action Taken",{"$f":"'Lists and CL Guidance'!E17","v":5},{"$f":"'Lists and CL Guidance'!F17","v":"Severe"},{"$f":"'Lists and CL Guidance'!G17","v":"Severe degradation in technical performance; Cannot meet KPP or key technical/supportability threshold; will jeopardize program success"},{"$f":"'Lists and CL Guidance'!H17","v":"Cannot meet key program milestones. \nSlip > 12months"},null,{"$f":"'Lists and CL Guidance'!I17","v":"Exceeds APB threshold\n(> 10% of Budget)"}]
["No Action",{"$f":"rev_date","v":"2022-01-01"},"Initial Assessment",{"$f":"MRL_risk_reference","v":"1 - Reference - DOD MRL Deskbook (p36) - http://www.dodmrl.com/MRL Deskbook V2020.pdf"}]
[null,null,null,{"$f":"DOD_Risk_reference","v":"2 - Reference - Risk Management Guide for DOD Acquisition\nhttps://acqnotes.com/wp-content/uploads/2014/09/DoD-Risk-Mgt-Guide-v7-interim-Dec2014.pdf"}]
[]
[]
[]
[]
[]
[]
[{"$f":"distro_statement","v":"DISTRIBUTION STATEMENT: No Distribution Statement Determined. "}]

{"sheet":"Comp 22","index":27,"n_rows":43,"n_cols":21,"rows_kept":43,"cut":false,"hidden":false,"merged":[[0,0,0,1],[0,3,0,5],[0,6,0,9],[1,0,1,1],[1,3,1,5],[1,6,1,9],[12,3,12,5],[1,16,1,20],[2,0,2,2],[2,3,2,5],[2,8,3,8],[2,9,3,9],[2,11,9,14],[3,3,3,5],[4,3,4,5],[5,3,5,5],[6,3,6,5],[7,3,7,5],[8,3,8,5],[9,3,9,5],[10,3,10,5],[11,3,11,5],[13,0,13,1],[13,3,13,5],[13,6,14,6],[13,7,14,7],[13,8,14,9],[13,17,14,17],[13,19,14,19],[13,20,14,20],[14,3,14,5],[15,3,15,7],[15,8,16,8],[15,9,16,9],[16,3,16,7],[13,16,14,16],[18,3,18,5],[18,7,19,7],[21,7,22,7],[26,3,26,9],[27,3,28,3],[27,4,28,4],[27,5,27,9],[28,6,28,7],[28,8,28,9],[29,6,29,7],[29,8,29,9],[30,6,30,7],[30,8,30,9],[31,6,31,7],[31,8,31,9],[42,0,43,9],[32,6,32,7],[32,8,32,9],[33,6,33,7],[33,8,33,9],[34,3,34,9],[35,3,36,9]]}
["Component Name",null,"Component Supplier","OEM Point of Contact",null,null,"Component Engineer"]
["Name",null,"Supplier","POC",null,null,"Engineer",null,null,null,null,null,null,null,null,null,"This section is for charting and error checking - Do not alter"]
["Response to MRL Questions1",null,null,"Brief Statement of the Risk",null,null,"Likelihood2","Consequence2","Impact\nScore","Weighted\nImpact\nScore",null,"Correcting Chart Data Labels in Excel:  After entering your L/C scores if the data labels appear as empty they must be reset in Excel.  Follow this procedure to make your data labels appear properly.\n1. Right Click on the data label box\n2. Select \"Format Data Label\"\n3. In the right hand drop down box select the far right \"Label Options\" Category\n4. Uncheck the box \"Value From Cells\"\n5. Re-Check the box \"Value From Cells\"\n6. Confirm selection area is =$A$5:$A$13\n7. Click OK\n8. Click \"Reset Label Text\"\n9. Close the EDIT drop down box",null,null,null,null,"Likelihood2","Consequence2",null,"Likelihood2","Consequence2"]
["Category/Question","y/n","Brief Explanation for Response"," (derived from Explanation for Response)",null,null,"(of occurrence)","(to system)",null,null,null,null,null,null,null,null,"(of occurrence)","(to system)",null,"(of occurrence)","(to system)"]
["Materials","N",null,null,null,null,null,null,{"$f":"IF(AND(B5=\"y\",G5>0,G5<6,H5>0,H5<6),G5*H5,\"\")","v":""},{"$f":"IF(I5<>\"\",I5*9*('System Information'!B28/'System Information'!$B$37),\"\")","v":""},null,null,null,null,null,null,{"$f":"IF(AND(B5=\"y\",G5>0,G5<6),G5,FALSE)","v":false},{"$f":"IF(AND(B5=\"y\",H5>0,H5<6),H5,FALSE)","v":false},null,{"$f":"IF(AND(Q5<>\"\",TRUE),Q5,0)","v":false},{"$f":"IF(R5<>\"\",R5,0)","v":false}]
["Cost","N",null,null,null,null,null,null,{"$f":"IF(AND(B6=\"y\",G6>0,G6<6,H6>0,H6<6),G6*H6,\"\")","v":""},{"$f":"IF(I6<>\"\",I6*9*('System Information'!B29/'System Information'!$B$37),\"\")","v":""},null,null,null,null,null,null,{"$f":"IF(AND(B6=\"y\",G6>0,G6<6),G6,FALSE)","v":false},{"$f":"IF(AND(B6=\"y\",H6>0,H6<6),H6,FALSE)","v":false},null,{"$f":"IF(Q6<>\"\",Q6,0)","v":false},false]
["Design","N",null,null,null,null,null,null,"",{"$f":"IF(I7<>\"\",I7*9*('System Information'!B30/'System Information'!$B$37),\"\")","v":""},null,null,null,null,null,null,false,false,null,false,false]
["Manufacturing Process","N",null,null,null,null,null,null,"",{"$f":"IF(I8<>\"\",I8*9*('System Information'!B31/'System Information'!$B$37),\"\")","v":""},null,null,null,null,null,null,false,false,null,false,false]
["Quality","N",null,null,null,null,null,null,"",{"$f":"IF(I9<>\"\",I9*9*('System Information'!B32/'System Information'!$B$37),\"\")","v":""},null,null,null,null,null,null,false,false,null,false,false]
["Schedule","N",null,null,null,null,null,null,"",{"$f":"IF(I10<>\"\",I10*9*('System Information'!B33/'System Information'!$B$37),\"\")","v":""},null,null,null,null,null,null,false,false,null,false,false]
["Facilities","N",null,null,null,null,null,null,"",{"$f":"IF(I11<>\"\",I11*9*('System Information'!B34/'System Information'!$B$37),\"\")","v":""},null,null,null,null,null,null,false,false,null,false,false]
["Supply Chain Management","N",null,null,null,null,null,null,"",{"$f":"IF(I12<>\"\",I12*9*('System Information'!B35/'System Information'!$B$37),\"\")","v":""},null,null,null,null,null,null,false,false,null,false,false]
["Industrial Base","N",null,null,null,null,null,null,"",{"$f":"IF(I13<>\"\",I13*9*('System Information'!B36/'System Information'!$B$37),\"\")","v":""},null,null,null,null,null,null,false,false,null,false,false]
[null,null,null,"Weighted Likelihood and Consequence:",null,null,{"$f":"IF(T14>0,T14,0)","v":0},{"$f":"IF(U14>0,U14,0)","v":0},null,null,null,null,null,null,null,null,null,null,null,{"$f":"IF(SUM(T5:T13)<>0,SUMSQ(T5:T13)/SUM(T5:T13),0)","v":0},{"$f":"IF(SUM(U5:U13)<>0,SUMSQ(U5:U13)/SUM(U5:U13),0)","v":0}]
[null,null,null,"(Used for Component/Supplier Risk Rating graphic)"]
[null,null,null,"Sum of Impact Scores:",null,null,null,null,{"$f":"IF(SUM(I5:I13)>0,SUM(I5:I13),0)","v":0},{"$f":"IF(SUM(J5:J13)>0,SUM(J5:J13),0)","v":0}]
[null,null,null,"(Used to rank potential resources required)  "]
[]
[null,null,null,{"$f":"'Lists and CL Guidance'!B2","v":"Category Guidance: Likelihood of Occurrence"},null,null,null,"Risk Rating"]
[null,null,null,{"$f":"'Lists and CL Guidance'!B3","v":"Level"},{"$f":"'Lists and CL Guidance'!C3","v":"Likelihood"},{"$f":"'Lists and CL Guidance'!D3","v":"Probability of Occurrence"}]
[null,null,null,{"$f":"'Lists and CL Guidance'!B4","v":1},{"$f":"'Lists and CL Guidance'!C4","v":"Not Likely"},{"$f":"'Lists and CL Guidance'!D4","v":"~10%  (>  1% to ≤ 20%)"}]
[null,null,null,{"$f":"'Lists and CL Guidance'!B5","v":2},{"$f":"'Lists and CL Guidance'!C5","v":"Low Likelihood"},{"$f":"'Lists and CL Guidance'!D5","v":"~30%  (> 20% to ≤ 40%)"},null,"Component Summary Sheet"]
[null,null,null,{"$f":"'Lists and CL Guidance'!B6","v":3},{"$f":"'Lists and CL Guidance'!C6","v":"Likely"},{"$f":"'Lists and CL Guidance'!D6","v":"~50%  (> 40% to ≤ 60%)"}]
[null,null,null,{"$f":"'Lists and CL Guidance'!B7","v":4},{"$f":"'Lists and CL Guidance'!C7","v":"Highly Likely"},{"$f":"'Lists and CL Guidance'!D7","v":"~70% (> 60% to ≤ 80%)"},null,null,null,null,null,null,null,null,0]
[null,null,null,{"$f":"'Lists and CL Guidance'!B8","v":5},{"$f":"'Lists and CL Guidance'!C8","v":"Near Certainty"},{"$f":"'Lists and CL Guidance'!D8","v":"~90%  (> 80% to ≤ 99%)"},null,"Hot Links "]
[]
[null,null,null,{"$f":"'Lists and CL Guidance'!E10","v":"Category Guidance: Consequence (System Impact)"}]
[null,null,null,{"$f":"'Lists and CL Guidance'!E11","v":"Level"},"Consequence",{"$f":"'Lists and CL Guidance'!G11","v":"System Impact"}]
[null,null,null,null,null,{"$f":"'Lists and CL Guidance'!G12","v":"Technical Performance"},{"$f":"'Lists and CL Guidance'!H12","v":"Schedule"},null,{"$f":"'Lists and CL Guidance'!I12","v":"Cost"}]
[null,null,null,{"$f":"'Lists and CL Guidance'!E13","v":1},{"$f":"'Lists and CL Guidance'!F13","v":"Minimal"},{"$f":"'Lists and CL Guidance'!G13","v":"Minimal or no consequence to technical performance"},{"$f":"'Lists and CL Guidance'!H13","v":"Minimal or no impact"},null,{"$f":"'Lists and CL Guidance'!I13","v":"Minimal or no impact"}]
[null,null,null,{"$f":"'Lists and CL Guidance'!E14","v":2},{"$f":"'Lists and CL Guidance'!F14","v":"Minor"},{"$f":"'Lists and CL Guidance'!G14","v":"Minor reduction in technical performance or supportability, can be tolerated with little or no impact on program"},{"$f":"'Lists and CL Guidance'!H14","v":"Able to meet key dates. \nSlip < 6 month(s)"},null,{"$f":"'Lists and CL Guidance'!I14","v":"Budget increase or unit production cost increases.\n(< 1% of Budget)"}]
[null,null,null,{"$f":"'Lists and CL Guidance'!E15","v":3},{"$f":"'Lists and CL Guidance'!F15","v":"Moderate"},{"$f":"'Lists and CL Guidance'!G15","v":"Moderate reduction in technical performance or supportability with limited impact on program objectives"},{"$f":"'Lists and CL Guidance'!H15","v":"Minor schedule slip. Able to meet key milestones with no schedule float.\nSlip < 6 month(s). Sub-system slip > 12 month(s) plus available float."},null,{"$f":"'Lists and CL Guidance'!I15","v":"Budget increase or unit production cost increases.\n(< 5% of Budget)"}]
[null,null,null,{"$f":"'Lists and CL Guidance'!E16","v":4},{"$f":"'Lists and CL Guidance'!F16","v":"Significant"},{"$f":"'Lists and CL Guidance'!G16","v":"Significant degradation in technical performance or major shortfall in supportability; may jeopardize program success"},{"$f":"'Lists and CL Guidance'!H16","v":"Program critical path affected.\nSlip < 12 months"},null,{"$f":"'Lists and CL Guidance'!I16","v":"Budget increase or unit production cost increases.\n(< 10% of Budget)"}]
["Action Taken with this Supplier","Date","Comments for Action Taken",{"$f":"'Lists and CL Guidance'!E17","v":5},{"$f":"'Lists and CL Guidance'!F17","v":"Severe"},{"$f":"'Lists and CL Guidance'!G17","v":"Severe degradation in technical performance; Cannot meet KPP or key technical/supportability threshold; will jeopardize program success"},{"$f":"'Lists and CL Guidance'!H17","v":"Cannot meet key program milestones. \nSlip > 12months"},null,{"$f":"'Lists and CL Guidance'!I17","v":"Exceeds APB threshold\n(> 10% of Budget)"}]
["No Action",{"$f":"rev_date","v":"2022-01-01"},"Initial Assessment",{"$f":"MRL_risk_reference","v":"1 - Reference - DOD MRL Deskbook (p36) - http://www.dodmrl.com/MRL Deskbook V2020.pdf"}]
[null,null,null,{"$f":"DOD_Risk_reference","v":"2 - Reference - Risk Management Guide for DOD Acquisition\nhttps://acqnotes.com/wp-content/uploads/2014/09/DoD-Risk-Mgt-Guide-v7-interim-Dec2014.pdf"}]
[]
[]
[]
[]
[]
[]
[{"$f":"distro_statement","v":"DISTRIBUTION STATEMENT: No Distribution Statement Determined. "}]

{"sheet":"Comp 23","index":28,"n_rows":43,"n_cols":21,"rows_kept":43,"cut":false,"hidden":false,"merged":[[0,0,0,1],[0,3,0,5],[0,6,0,9],[1,0,1,1],[1,3,1,5],[1,6,1,9],[12,3,12,5],[1,16,1,20],[2,0,2,2],[2,3,2,5],[2,8,3,8],[2,9,3,9],[2,11,9,14],[3,3,3,5],[4,3,4,5],[5,3,5,5],[6,3,6,5],[7,3,7,5],[8,3,8,5],[9,3,9,5],[10,3,10,5],[11,3,11,5],[13,0,13,1],[13,3,13,5],[13,6,14,6],[13,7,14,7],[13,8,14,9],[13,17,14,17],[13,19,14,19],[13,20,14,20],[14,3,14,5],[15,3,15,7],[15,8,16,8],[15,9,16,9],[16,3,16,7],[13,16,14,16],[18,3,18,5],[18,7,19,7],[21,7,22,7],[26,3,26,9],[27,3,28,3],[27,4,28,4],[27,5,27,9],[28,6,28,7],[28,8,28,9],[29,6,29,7],[29,8,29,9],[30,6,30,7],[30,8,30,9],[31,6,31,7],[31,8,31,9],[42,0,43,9],[32,6,32,7],[32,8,32,9],[33,6,33,7],[33,8,33,9],[34,3,34,9],[35,3,36,9]]}
["Component Name",null,"Component Supplier","OEM Point of Contact",null,null,"Component Engineer"]
["Name",null,"Supplier","POC",null,null,"Engineer",null,null,null,null,null,null,null,null,null,"This section is for charting and error checking - Do not alter"]
["Response to MRL Questions1",null,null,"Brief Statement of the Risk",null,null,"Likelihood2","Consequence2","Impact\nScore","Weighted\nImpact\nScore",null,"Correcting Chart Data Labels in Excel:  After entering your L/C scores if the data labels appear as empty they must be reset in Excel.  Follow this procedure to make your data labels appear properly.\n1. Right Click on the data label box\n2. Select \"Format Data Label\"\n3. In the right hand drop down box select the far right \"Label Options\" Category\n4. Uncheck the box \"Value From Cells\"\n5. Re-Check the box \"Value From Cells\"\n6. Confirm selection area is =$A$5:$A$13\n7. Click OK\n8. Click \"Reset Label Text\"\n9. Close the EDIT drop down box",null,null,null,null,"Likelihood2","Consequence2",null,"Likelihood2","Consequence2"]
["Category/Question","y/n","Brief Explanation for Response"," (derived from Explanation for Response)",null,null,"(of occurrence)","(to system)",null,null,null,null,null,null,null,null,"(of occurrence)","(to system)",null,"(of occurrence)","(to system)"]
["Materials","N",null,null,null,null,null,null,{"$f":"IF(AND(B5=\"y\",G5>0,G5<6,H5>0,H5<6),G5*H5,\"\")","v":""},{"$f":"IF(I5<>\"\",I5*9*('System Information'!B28/'System Information'!$B$37),\"\")","v":""},null,null,null,null,null,null,{"$f":"IF(AND(B5=\"y\",G5>0,G5<6),G5,FALSE)","v":false},{"$f":"IF(AND(B5=\"y\",H5>0,H5<6),H5,FALSE)","v":false},null,{"$f":"IF(AND(Q5<>\"\",TRUE),Q5,0)","v":false},{"$f":"IF(R5<>\"\",R5,0)","v":false}]
["Cost","N",null,null,null,null,null,null,{"$f":"IF(AND(B6=\"y\",G6>0,G6<6,H6>0,H6<6),G6*H6,\"\")","v":""},{"$f":"IF(I6<>\"\",I6*9*('System Information'!B29/'System Information'!$B$37),\"\")","v":""},null,null,null,null,null,null,{"$f":"IF(AND(B6=\"y\",G6>0,G6<6),G6,FALSE)","v":false},{"$f":"IF(AND(B6=\"y\",H6>0,H6<6),H6,FALSE)","v":false},null,{"$f":"IF(Q6<>\"\",Q6,0)","v":false},false]
["Design","N",null,null,null,null,null,null,"",{"$f":"IF(I7<>\"\",I7*9*('System Information'!B30/'System Information'!$B$37),\"\")","v":""},null,null,null,null,null,null,false,false,null,false,false]
["Manufacturing Process","N",null,null,null,null,null,null,"",{"$f":"IF(I8<>\"\",I8*9*('System Information'!B31/'System Information'!$B$37),\"\")","v":""},null,null,null,null,null,null,false,false,null,false,false]
["Quality","N",null,null,null,null,null,null,"",{"$f":"IF(I9<>\"\",I9*9*('System Information'!B32/'System Information'!$B$37),\"\")","v":""},null,null,null,null,null,null,false,false,null,false,false]
["Schedule","N",null,null,null,null,null,null,"",{"$f":"IF(I10<>\"\",I10*9*('System Information'!B33/'System Information'!$B$37),\"\")","v":""},null,null,null,null,null,null,false,false,null,false,false]
["Facilities","N",null,null,null,null,null,null,"",{"$f":"IF(I11<>\"\",I11*9*('System Information'!B34/'System Information'!$B$37),\"\")","v":""},null,null,null,null,null,null,false,false,null,false,false]
["Supply Chain Management","N",null,null,null,null,null,null,"",{"$f":"IF(I12<>\"\",I12*9*('System Information'!B35/'System Information'!$B$37),\"\")","v":""},null,null,null,null,null,null,false,false,null,false,false]
["Industrial Base","N",null,null,null,null,null,null,"",{"$f":"IF(I13<>\"\",I13*9*('System Information'!B36/'System Information'!$B$37),\"\")","v":""},null,null,null,null,null,null,false,false,null,false,false]
[null,null,null,"Weighted Likelihood and Consequence:",null,null,{"$f":"IF(T14>0,T14,0)","v":0},{"$f":"IF(U14>0,U14,0)","v":0},null,null,null,null,null,null,null,null,null,null,null,{"$f":"IF(SUM(T5:T13)<>0,SUMSQ(T5:T13)/SUM(T5:T13),0)","v":0},{"$f":"IF(SUM(U5:U13)<>0,SUMSQ(U5:U13)/SUM(U5:U13),0)","v":0}]
[null,null,null,"(Used for Component/Supplier Risk Rating graphic)"]
[null,null,null,"Sum of Impact Scores:",null,null,null,null,{"$f":"IF(SUM(I5:I13)>0,SUM(I5:I13),0)","v":0},{"$f":"IF(SUM(J5:J13)>0,SUM(J5:J13),0)","v":0}]
[null,null,null,"(Used to rank potential resources required)  "]
[]
[null,null,null,{"$f":"'Lists and CL Guidance'!B2","v":"Category Guidance: Likelihood of Occurrence"},null,null,null,"Risk Rating"]
[null,null,null,{"$f":"'Lists and CL Guidance'!B3","v":"Level"},{"$f":"'Lists and CL Guidance'!C3","v":"Likelihood"},{"$f":"'Lists and CL Guidance'!D3","v":"Probability of Occurrence"}]
[null,null,null,{"$f":"'Lists and CL Guidance'!B4","v":1},{"$f":"'Lists and CL Guidance'!C4","v":"Not Likely"},{"$f":"'Lists and CL Guidance'!D4","v":"~10%  (>  1% to ≤ 20%)"}]
[null,null,null,{"$f":"'Lists and CL Guidance'!B5","v":2},{"$f":"'Lists and CL Guidance'!C5","v":"Low Likelihood"},{"$f":"'Lists and CL Guidance'!D5","v":"~30%  (> 20% to ≤ 40%)"},null,"Component Summary Sheet"]
[null,null,null,{"$f":"'Lists and CL Guidance'!B6","v":3},{"$f":"'Lists and CL Guidance'!C6","v":"Likely"},{"$f":"'Lists and CL Guidance'!D6","v":"~50%  (> 40% to ≤ 60%)"}]
[null,null,null,{"$f":"'Lists and CL Guidance'!B7","v":4},{"$f":"'Lists and CL Guidance'!C7","v":"Highly Likely"},{"$f":"'Lists and CL Guidance'!D7","v":"~70% (> 60% to ≤ 80%)"},null,null,null,null,null,null,null,null,0]
[null,null,null,{"$f":"'Lists and CL Guidance'!B8","v":5},{"$f":"'Lists and CL Guidance'!C8","v":"Near Certainty"},{"$f":"'Lists and CL Guidance'!D8","v":"~90%  (> 80% to ≤ 99%)"},null,"Hot Links "]
[]
[null,null,null,{"$f":"'Lists and CL Guidance'!E10","v":"Category Guidance: Consequence (System Impact)"}]
[null,null,null,{"$f":"'Lists and CL Guidance'!E11","v":"Level"},"Consequence",{"$f":"'Lists and CL Guidance'!G11","v":"System Impact"}]
[null,null,null,null,null,{"$f":"'Lists and CL Guidance'!G12","v":"Technical Performance"},{"$f":"'Lists and CL Guidance'!H12","v":"Schedule"},null,{"$f":"'Lists and CL Guidance'!I12","v":"Cost"}]
[null,null,null,{"$f":"'Lists and CL Guidance'!E13","v":1},{"$f":"'Lists and CL Guidance'!F13","v":"Minimal"},{"$f":"'Lists and CL Guidance'!G13","v":"Minimal or no consequence to technical performance"},{"$f":"'Lists and CL Guidance'!H13","v":"Minimal or no impact"},null,{"$f":"'Lists and CL Guidance'!I13","v":"Minimal or no impact"}]
[null,null,null,{"$f":"'Lists and CL Guidance'!E14","v":2},{"$f":"'Lists and CL Guidance'!F14","v":"Minor"},{"$f":"'Lists and CL Guidance'!G14","v":"Minor reduction in technical performance or supportability, can be tolerated with little or no impact on program"},{"$f":"'Lists and CL Guidance'!H14","v":"Able to meet key dates. \nSlip < 6 month(s)"},null,{"$f":"'Lists and CL Guidance'!I14","v":"Budget increase or unit production cost increases.\n(< 1% of Budget)"}]
[null,null,null,{"$f":"'Lists and CL Guidance'!E15","v":3},{"$f":"'Lists and CL Guidance'!F15","v":"Moderate"},{"$f":"'Lists and CL Guidance'!G15","v":"Moderate reduction in technical performance or supportability with limited impact on program objectives"},{"$f":"'Lists and CL Guidance'!H15","v":"Minor schedule slip. Able to meet key milestones with no schedule float.\nSlip < 6 month(s). Sub-system slip > 12 month(s) plus available float."},null,{"$f":"'Lists and CL Guidance'!I15","v":"Budget increase or unit production cost increases.\n(< 5% of Budget)"}]
[null,null,null,{"$f":"'Lists and CL Guidance'!E16","v":4},{"$f":"'Lists and CL Guidance'!F16","v":"Significant"},{"$f":"'Lists and CL Guidance'!G16","v":"Significant degradation in technical performance or major shortfall in supportability; may jeopardize program success"},{"$f":"'Lists and CL Guidance'!H16","v":"Program critical path affected.\nSlip < 12 months"},null,{"$f":"'Lists and CL Guidance'!I16","v":"Budget increase or unit production cost increases.\n(< 10% of Budget)"}]
["Action Taken with this Supplier","Date","Comments for Action Taken",{"$f":"'Lists and CL Guidance'!E17","v":5},{"$f":"'Lists and CL Guidance'!F17","v":"Severe"},{"$f":"'Lists and CL Guidance'!G17","v":"Severe degradation in technical performance; Cannot meet KPP or key technical/supportability threshold; will jeopardize program success"},{"$f":"'Lists and CL Guidance'!H17","v":"Cannot meet key program milestones. \nSlip > 12months"},null,{"$f":"'Lists and CL Guidance'!I17","v":"Exceeds APB threshold\n(> 10% of Budget)"}]
["No Action",{"$f":"rev_date","v":"2022-01-01"},"Initial Assessment",{"$f":"MRL_risk_reference","v":"1 - Reference - DOD MRL Deskbook (p36) - http://www.dodmrl.com/MRL Deskbook V2020.pdf"}]
[null,null,null,{"$f":"DOD_Risk_reference","v":"2 - Reference - Risk Management Guide for DOD Acquisition\nhttps://acqnotes.com/wp-content/uploads/2014/09/DoD-Risk-Mgt-Guide-v7-interim-Dec2014.pdf"}]
[]
[]
[]
[]
[]
[]
[{"$f":"distro_statement","v":"DISTRIBUTION STATEMENT: No Distribution Statement Determined. "}]

{"sheet":"Comp 24","index":29,"n_rows":43,"n_cols":21,"rows_kept":43,"cut":false,"hidden":false,"merged":[[0,0,0,1],[0,3,0,5],[0,6,0,9],[1,0,1,1],[1,3,1,5],[1,6,1,9],[12,3,12,5],[1,16,1,20],[2,0,2,2],[2,3,2,5],[2,8,3,8],[2,9,3,9],[2,11,9,14],[3,3,3,5],[4,3,4,5],[5,3,5,5],[6,3,6,5],[7,3,7,5],[8,3,8,5],[9,3,9,5],[10,3,10,5],[11,3,11,5],[13,0,13,1],[13,3,13,5],[13,6,14,6],[13,7,14,7],[13,8,14,9],[13,17,14,17],[13,19,14,19],[13,20,14,20],[14,3,14,5],[15,3,15,7],[15,8,16,8],[15,9,16,9],[16,3,16,7],[13,16,14,16],[18,3,18,5],[18,7,19,7],[21,7,22,7],[26,3,26,9],[27,3,28,3],[27,4,28,4],[27,5,27,9],[28,6,28,7],[28,8,28,9],[29,6,29,7],[29,8,29,9],[30,6,30,7],[30,8,30,9],[31,6,31,7],[31,8,31,9],[42,0,43,9],[32,6,32,7],[32,8,32,9],[33,6,33,7],[33,8,33,9],[34,3,34,9],[35,3,36,9]]}
["Component Name",null,"Component Supplier","OEM Point of Contact",null,null,"Component Engineer"]
["Name",null,"Supplier","POC",null,null,"Engineer",null,null,null,null,null,null,null,null,null,"This section is for charting and error checking - Do not alter"]
["Response to MRL Questions1",null,null,"Brief Statement of the Risk",null,null,"Likelihood2","Consequence2","Impact\nScore","Weighted\nImpact\nScore",null,"Correcting Chart Data Labels in Excel:  After entering your L/C scores if the data labels appear as empty they must be reset in Excel.  Follow this procedure to make your data labels appear properly.\n1. Right Click on the data label box\n2. Select \"Format Data Label\"\n3. In the right hand drop down box select the far right \"Label Options\" Category\n4. Uncheck the box \"Value From Cells\"\n5. Re-Check the box \"Value From Cells\"\n6. Confirm selection area is =$A$5:$A$13\n7. Click OK\n8. Click \"Reset Label Text\"\n9. Close the EDIT drop down box",null,null,null,null,"Likelihood2","Consequence2",null,"Likelihood2","Consequence2"]
["Category/Question","y/n","Brief Explanation for Response"," (derived from Explanation for Response)",null,null,"(of occurrence)","(to system)",null,null,null,null,null,null,null,null,"(of occurrence)","(to system)",null,"(of occurrence)","(to system)"]
["Materials","N",null,null,null,null,null,null,{"$f":"IF(AND(B5=\"y\",G5>0,G5<6,H5>0,H5<6),G5*H5,\"\")","v":""},{"$f":"IF(I5<>\"\",I5*9*('System Information'!B28/'System Information'!$B$37),\"\")","v":""},null,null,null,null,null,null,{"$f":"IF(AND(B5=\"y\",G5>0,G5<6),G5,FALSE)","v":false},{"$f":"IF(AND(B5=\"y\",H5>0,H5<6),H5,FALSE)","v":false},null,{"$f":"IF(AND(Q5<>\"\",TRUE),Q5,0)","v":false},{"$f":"IF(R5<>\"\",R5,0)","v":false}]
["Cost","N",null,null,null,null,null,null,{"$f":"IF(AND(B6=\"y\",G6>0,G6<6,H6>0,H6<6),G6*H6,\"\")","v":""},{"$f":"IF(I6<>\"\",I6*9*('System Information'!B29/'System Information'!$B$37),\"\")","v":""},null,null,null,null,null,null,{"$f":"IF(AND(B6=\"y\",G6>0,G6<6),G6,FALSE)","v":false},{"$f":"IF(AND(B6=\"y\",H6>0,H6<6),H6,FALSE)","v":false},null,{"$f":"IF(Q6<>\"\",Q6,0)","v":false},false]
["Design","N",null,null,null,null,null,null,"",{"$f":"IF(I7<>\"\",I7*9*('System Information'!B30/'System Information'!$B$37),\"\")","v":""},null,null,null,null,null,null,false,false,null,false,false]
["Manufacturing Process","N",null,null,null,null,null,null,"",{"$f":"IF(I8<>\"\",I8*9*('System Information'!B31/'System Information'!$B$37),\"\")","v":""},null,null,null,null,null,null,false,false,null,false,false]
["Quality","N",null,null,null,null,null,null,"",{"$f":"IF(I9<>\"\",I9*9*('System Information'!B32/'System Information'!$B$37),\"\")","v":""},null,null,null,null,null,null,false,false,null,false,false]
["Schedule","N",null,null,null,null,null,null,"",{"$f":"IF(I10<>\"\",I10*9*('System Information'!B33/'System Information'!$B$37),\"\")","v":""},null,null,null,null,null,null,false,false,null,false,false]
["Facilities","N",null,null,null,null,null,null,"",{"$f":"IF(I11<>\"\",I11*9*('System Information'!B34/'System Information'!$B$37),\"\")","v":""},null,null,null,null,null,null,false,false,null,false,false]
["Supply Chain Management","N",null,null,null,null,null,null,"",{"$f":"IF(I12<>\"\",I12*9*('System Information'!B35/'System Information'!$B$37),\"\")","v":""},null,null,null,null,null,null,false,false,null,false,false]
["Industrial Base","N",null,null,null,null,null,null,"",{"$f":"IF(I13<>\"\",I13*9*('System Information'!B36/'System Information'!$B$37),\"\")","v":""},null,null,null,null,null,null,false,false,null,false,false]
[null,null,null,"Weighted Likelihood and Consequence:",null,null,{"$f":"IF(T14>0,T14,0)","v":0},{"$f":"IF(U14>0,U14,0)","v":0},null,null,null,null,null,null,null,null,null,null,null,{"$f":"IF(SUM(T5:T13)<>0,SUMSQ(T5:T13)/SUM(T5:T13),0)","v":0},{"$f":"IF(SUM(U5:U13)<>0,SUMSQ(U5:U13)/SUM(U5:U13),0)","v":0}]
[null,null,null,"(Used for Component/Supplier Risk Rating graphic)"]
[null,null,null,"Sum of Impact Scores:",null,null,null,null,{"$f":"IF(SUM(I5:I13)>0,SUM(I5:I13),0)","v":0},{"$f":"IF(SUM(J5:J13)>0,SUM(J5:J13),0)","v":0}]
[null,null,null,"(Used to rank potential resources required)  "]
[]
[null,null,null,{"$f":"'Lists and CL Guidance'!B2","v":"Category Guidance: Likelihood of Occurrence"},null,null,null,"Risk Rating"]
[null,null,null,{"$f":"'Lists and CL Guidance'!B3","v":"Level"},{"$f":"'Lists and CL Guidance'!C3","v":"Likelihood"},{"$f":"'Lists and CL Guidance'!D3","v":"Probability of Occurrence"}]
[null,null,null,{"$f":"'Lists and CL Guidance'!B4","v":1},{"$f":"'Lists and CL Guidance'!C4","v":"Not Likely"},{"$f":"'Lists and CL Guidance'!D4","v":"~10%  (>  1% to ≤ 20%)"}]
[null,null,null,{"$f":"'Lists and CL Guidance'!B5","v":2},{"$f":"'Lists and CL Guidance'!C5","v":"Low Likelihood"},{"$f":"'Lists and CL Guidance'!D5","v":"~30%  (> 20% to ≤ 40%)"},null,"Component Summary Sheet"]
[null,null,null,{"$f":"'Lists and CL Guidance'!B6","v":3},{"$f":"'Lists and CL Guidance'!C6","v":"Likely"},{"$f":"'Lists and CL Guidance'!D6","v":"~50%  (> 40% to ≤ 60%)"}]
[null,null,null,{"$f":"'Lists and CL Guidance'!B7","v":4},{"$f":"'Lists and CL Guidance'!C7","v":"Highly Likely"},{"$f":"'Lists and CL Guidance'!D7","v":"~70% (> 60% to ≤ 80%)"},null,null,null,null,null,null,null,null,0]
[null,null,null,{"$f":"'Lists and CL Guidance'!B8","v":5},{"$f":"'Lists and CL Guidance'!C8","v":"Near Certainty"},{"$f":"'Lists and CL Guidance'!D8","v":"~90%  (> 80% to ≤ 99%)"},null,"Hot Links "]
[]
[null,null,null,{"$f":"'Lists and CL Guidance'!E10","v":"Category Guidance: Consequence (System Impact)"}]
[null,null,null,{"$f":"'Lists and CL Guidance'!E11","v":"Level"},"Consequence",{"$f":"'Lists and CL Guidance'!G11","v":"System Impact"}]
[null,null,null,null,null,{"$f":"'Lists and CL Guidance'!G12","v":"Technical Performance"},{"$f":"'Lists and CL Guidance'!H12","v":"Schedule"},null,{"$f":"'Lists and CL Guidance'!I12","v":"Cost"}]
[null,null,null,{"$f":"'Lists and CL Guidance'!E13","v":1},{"$f":"'Lists and CL Guidance'!F13","v":"Minimal"},{"$f":"'Lists and CL Guidance'!G13","v":"Minimal or no consequence to technical performance"},{"$f":"'Lists and CL Guidance'!H13","v":"Minimal or no impact"},null,{"$f":"'Lists and CL Guidance'!I13","v":"Minimal or no impact"}]
[null,null,null,{"$f":"'Lists and CL Guidance'!E14","v":2},{"$f":"'Lists and CL Guidance'!F14","v":"Minor"},{"$f":"'Lists and CL Guidance'!G14","v":"Minor reduction in technical performance or supportability, can be tolerated with little or no impact on program"},{"$f":"'Lists and CL Guidance'!H14","v":"Able to meet key dates. \nSlip < 6 month(s)"},null,{"$f":"'Lists and CL Guidance'!I14","v":"Budget increase or unit production cost increases.\n(< 1% of Budget)"}]
[null,null,null,{"$f":"'Lists and CL Guidance'!E15","v":3},{"$f":"'Lists and CL Guidance'!F15","v":"Moderate"},{"$f":"'Lists and CL Guidance'!G15","v":"Moderate reduction in technical performance or supportability with limited impact on program objectives"},{"$f":"'Lists and CL Guidance'!H15","v":"Minor schedule slip. Able to meet key milestones with no schedule float.\nSlip < 6 month(s). Sub-system slip > 12 month(s) plus available float."},null,{"$f":"'Lists and CL Guidance'!I15","v":"Budget increase or unit production cost increases.\n(< 5% of Budget)"}]
[null,null,null,{"$f":"'Lists and CL Guidance'!E16","v":4},{"$f":"'Lists and CL Guidance'!F16","v":"Significant"},{"$f":"'Lists and CL Guidance'!G16","v":"Significant degradation in technical performance or major shortfall in supportability; may jeopardize program success"},{"$f":"'Lists and CL Guidance'!H16","v":"Program critical path affected.\nSlip < 12 months"},null,{"$f":"'Lists and CL Guidance'!I16","v":"Budget increase or unit production cost increases.\n(< 10% of Budget)"}]
["Action Taken with this Supplier","Date","Comments for Action Taken",{"$f":"'Lists and CL Guidance'!E17","v":5},{"$f":"'Lists and CL Guidance'!F17","v":"Severe"},{"$f":"'Lists and CL Guidance'!G17","v":"Severe degradation in technical performance; Cannot meet KPP or key technical/supportability threshold; will jeopardize program success"},{"$f":"'Lists and CL Guidance'!H17","v":"Cannot meet key program milestones. \nSlip > 12months"},null,{"$f":"'Lists and CL Guidance'!I17","v":"Exceeds APB threshold\n(> 10% of Budget)"}]
["No Action",{"$f":"rev_date","v":"2022-01-01"},"Initial Assessment",{"$f":"MRL_risk_reference","v":"1 - Reference - DOD MRL Deskbook (p36) - http://www.dodmrl.com/MRL Deskbook V2020.pdf"}]
[null,null,null,{"$f":"DOD_Risk_reference","v":"2 - Reference - Risk Management Guide for DOD Acquisition\nhttps://acqnotes.com/wp-content/uploads/2014/09/DoD-Risk-Mgt-Guide-v7-interim-Dec2014.pdf"}]
[]
[]
[]
[]
[]
[]
[{"$f":"distro_statement","v":"DISTRIBUTION STATEMENT: No Distribution Statement Determined. "}]

{"sheet":"Comp 25","index":30,"n_rows":43,"n_cols":21,"rows_kept":43,"cut":false,"hidden":false,"merged":[[0,0,0,1],[0,3,0,5],[0,6,0,9],[1,0,1,1],[1,3,1,5],[1,6,1,9],[12,3,12,5],[1,16,1,20],[2,0,2,2],[2,3,2,5],[2,8,3,8],[2,9,3,9],[2,11,9,14],[3,3,3,5],[4,3,4,5],[5,3,5,5],[6,3,6,5],[7,3,7,5],[8,3,8,5],[9,3,9,5],[10,3,10,5],[11,3,11,5],[13,0,13,1],[13,3,13,5],[13,6,14,6],[13,7,14,7],[13,8,14,9],[13,17,14,17],[13,19,14,19],[13,20,14,20],[14,3,14,5],[15,3,15,7],[15,8,16,8],[15,9,16,9],[16,3,16,7],[13,16,14,16],[18,3,18,5],[18,7,19,7],[21,7,22,7],[26,3,26,9],[27,3,28,3],[27,4,28,4],[27,5,27,9],[28,6,28,7],[28,8,28,9],[29,6,29,7],[29,8,29,9],[30,6,30,7],[30,8,30,9],[31,6,31,7],[31,8,31,9],[42,0,43,9],[32,6,32,7],[32,8,32,9],[33,6,33,7],[33,8,33,9],[34,3,34,9],[35,3,36,9]]}
["Component Name",null,"Component Supplier","OEM Point of Contact",null,null,"Component Engineer"]
["Name",null,"Supplier","POC",null,null,"Engineer",null,null,null,null,null,null,null,null,null,"This section is for charting and error checking - Do not alter"]
["Response to MRL Questions1",null,null,"Brief Statement of the Risk",null,null,"Likelihood2","Consequence2","Impact\nScore","Weighted\nImpact\nScore",null,"Correcting Chart Data Labels in Excel:  After entering your L/C scores if the data labels appear as empty they must be reset in Excel.  Follow this procedure to make your data labels appear properly.\n1. Right Click on the data label box\n2. Select \"Format Data Label\"\n3. In the right hand drop down box select the far right \"Label Options\" Category\n4. Uncheck the box \"Value From Cells\"\n5. Re-Check the box \"Value From Cells\"\n6. Confirm selection area is =$A$5:$A$13\n7. Click OK\n8. Click \"Reset Label Text\"\n9. Close the EDIT drop down box",null,null,null,null,"Likelihood2","Consequence2",null,"Likelihood2","Consequence2"]
["Category/Question","y/n","Brief Explanation for Response"," (derived from Explanation for Response)",null,null,"(of occurrence)","(to system)",null,null,null,null,null,null,null,null,"(of occurrence)","(to system)",null,"(of occurrence)","(to system)"]
["Materials","N",null,null,null,null,null,null,{"$f":"IF(AND(B5=\"y\",G5>0,G5<6,H5>0,H5<6),G5*H5,\"\")","v":""},{"$f":"IF(I5<>\"\",I5*9*('System Information'!B28/'System Information'!$B$37),\"\")","v":""},null,null,null,null,null,null,{"$f":"IF(AND(B5=\"y\",G5>0,G5<6),G5,FALSE)","v":false},{"$f":"IF(AND(B5=\"y\",H5>0,H5<6),H5,FALSE)","v":false},null,{"$f":"IF(AND(Q5<>\"\",TRUE),Q5,0)","v":false},{"$f":"IF(R5<>\"\",R5,0)","v":false}]
["Cost","N",null,null,null,null,null,null,{"$f":"IF(AND(B6=\"y\",G6>0,G6<6,H6>0,H6<6),G6*H6,\"\")","v":""},{"$f":"IF(I6<>\"\",I6*9*('System Information'!B29/'System Information'!$B$37),\"\")","v":""},null,null,null,null,null,null,{"$f":"IF(AND(B6=\"y\",G6>0,G6<6),G6,FALSE)","v":false},{"$f":"IF(AND(B6=\"y\",H6>0,H6<6),H6,FALSE)","v":false},null,{"$f":"IF(Q6<>\"\",Q6,0)","v":false},false]
["Design","N",null,null,null,null,null,null,"",{"$f":"IF(I7<>\"\",I7*9*('System Information'!B30/'System Information'!$B$37),\"\")","v":""},null,null,null,null,null,null,false,false,null,false,false]
["Manufacturing Process","N",null,null,null,null,null,null,"",{"$f":"IF(I8<>\"\",I8*9*('System Information'!B31/'System Information'!$B$37),\"\")","v":""},null,null,null,null,null,null,false,false,null,false,false]
["Quality","N",null,null,null,null,null,null,"",{"$f":"IF(I9<>\"\",I9*9*('System Information'!B32/'System Information'!$B$37),\"\")","v":""},null,null,null,null,null,null,false,false,null,false,false]
["Schedule","N",null,null,null,null,null,null,"",{"$f":"IF(I10<>\"\",I10*9*('System Information'!B33/'System Information'!$B$37),\"\")","v":""},null,null,null,null,null,null,false,false,null,false,false]
["Facilities","N",null,null,null,null,null,null,"",{"$f":"IF(I11<>\"\",I11*9*('System Information'!B34/'System Information'!$B$37),\"\")","v":""},null,null,null,null,null,null,false,false,null,false,false]
["Supply Chain Management","N",null,null,null,null,null,null,"",{"$f":"IF(I12<>\"\",I12*9*('System Information'!B35/'System Information'!$B$37),\"\")","v":""},null,null,null,null,null,null,false,false,null,false,false]
["Industrial Base","N",null,null,null,null,null,null,"",{"$f":"IF(I13<>\"\",I13*9*('System Information'!B36/'System Information'!$B$37),\"\")","v":""},null,null,null,null,null,null,false,false,null,false,false]
[null,null,null,"Weighted Likelihood and Consequence:",null,null,{"$f":"IF(T14>0,T14,0)","v":0},{"$f":"IF(U14>0,U14,0)","v":0},null,null,null,null,null,null,null,null,null,null,null,{"$f":"IF(SUM(T5:T13)<>0,SUMSQ(T5:T13)/SUM(T5:T13),0)","v":0},{"$f":"IF(SUM(U5:U13)<>0,SUMSQ(U5:U13)/SUM(U5:U13),0)","v":0}]
[null,null,null,"(Used for Component/Supplier Risk Rating graphic)"]
[null,null,null,"Sum of Impact Scores:",null,null,null,null,{"$f":"IF(SUM(I5:I13)>0,SUM(I5:I13),0)","v":0},{"$f":"IF(SUM(J5:J13)>0,SUM(J5:J13),0)","v":0}]
[null,null,null,"(Used to rank potential resources required)  "]
[]
[null,null,null,{"$f":"'Lists and CL Guidance'!B2","v":"Category Guidance: Likelihood of Occurrence"},null,null,null,"Risk Rating"]
[null,null,null,{"$f":"'Lists and CL Guidance'!B3","v":"Level"},{"$f":"'Lists and CL Guidance'!C3","v":"Likelihood"},{"$f":"'Lists and CL Guidance'!D3","v":"Probability of Occurrence"}]
[null,null,null,{"$f":"'Lists and CL Guidance'!B4","v":1},{"$f":"'Lists and CL Guidance'!C4","v":"Not Likely"},{"$f":"'Lists and CL Guidance'!D4","v":"~10%  (>  1% to ≤ 20%)"}]
[null,null,null,{"$f":"'Lists and CL Guidance'!B5","v":2},{"$f":"'Lists and CL Guidance'!C5","v":"Low Likelihood"},{"$f":"'Lists and CL Guidance'!D5","v":"~30%  (> 20% to ≤ 40%)"},null,"Component Summary Sheet"]
[null,null,null,{"$f":"'Lists and CL Guidance'!B6","v":3},{"$f":"'Lists and CL Guidance'!C6","v":"Likely"},{"$f":"'Lists and CL Guidance'!D6","v":"~50%  (> 40% to ≤ 60%)"}]
[null,null,null,{"$f":"'Lists and CL Guidance'!B7","v":4},{"$f":"'Lists and CL Guidance'!C7","v":"Highly Likely"},{"$f":"'Lists and CL Guidance'!D7","v":"~70% (> 60% to ≤ 80%)"},null,null,null,null,null,null,null,null,0]
[null,null,null,{"$f":"'Lists and CL Guidance'!B8","v":5},{"$f":"'Lists and CL Guidance'!C8","v":"Near Certainty"},{"$f":"'Lists and CL Guidance'!D8","v":"~90%  (> 80% to ≤ 99%)"},null,"Hot Links "]
[]
[null,null,null,{"$f":"'Lists and CL Guidance'!E10","v":"Category Guidance: Consequence (System Impact)"}]
[null,null,null,{"$f":"'Lists and CL Guidance'!E11","v":"Level"},"Consequence",{"$f":"'Lists and CL Guidance'!G11","v":"System Impact"}]
[null,null,null,null,null,{"$f":"'Lists and CL Guidance'!G12","v":"Technical Performance"},{"$f":"'Lists and CL Guidance'!H12","v":"Schedule"},null,{"$f":"'Lists and CL Guidance'!I12","v":"Cost"}]
[null,null,null,{"$f":"'Lists and CL Guidance'!E13","v":1},{"$f":"'Lists and CL Guidance'!F13","v":"Minimal"},{"$f":"'Lists and CL Guidance'!G13","v":"Minimal or no consequence to technical performance"},{"$f":"'Lists and CL Guidance'!H13","v":"Minimal or no impact"},null,{"$f":"'Lists and CL Guidance'!I13","v":"Minimal or no impact"}]
[null,null,null,{"$f":"'Lists and CL Guidance'!E14","v":2},{"$f":"'Lists and CL Guidance'!F14","v":"Minor"},{"$f":"'Lists and CL Guidance'!G14","v":"Minor reduction in technical performance or supportability, can be tolerated with little or no impact on program"},{"$f":"'Lists and CL Guidance'!H14","v":"Able to meet key dates. \nSlip < 6 month(s)"},null,{"$f":"'Lists and CL Guidance'!I14","v":"Budget increase or unit production cost increases.\n(< 1% of Budget)"}]
[null,null,null,{"$f":"'Lists and CL Guidance'!E15","v":3},{"$f":"'Lists and CL Guidance'!F15","v":"Moderate"},{"$f":"'Lists and CL Guidance'!G15","v":"Moderate reduction in technical performance or supportability with limited impact on program objectives"},{"$f":"'Lists and CL Guidance'!H15","v":"Minor schedule slip. Able to meet key milestones with no schedule float.\nSlip < 6 month(s). Sub-system slip > 12 month(s) plus available float."},null,{"$f":"'Lists and CL Guidance'!I15","v":"Budget increase or unit production cost increases.\n(< 5% of Budget)"}]
[null,null,null,{"$f":"'Lists and CL Guidance'!E16","v":4},{"$f":"'Lists and CL Guidance'!F16","v":"Significant"},{"$f":"'Lists and CL Guidance'!G16","v":"Significant degradation in technical performance or major shortfall in supportability; may jeopardize program success"},{"$f":"'Lists and CL Guidance'!H16","v":"Program critical path affected.\nSlip < 12 months"},null,{"$f":"'Lists and CL Guidance'!I16","v":"Budget increase or unit production cost increases.\n(< 10% of Budget)"}]
["Action Taken with this Supplier","Date","Comments for Action Taken",{"$f":"'Lists and CL Guidance'!E17","v":5},{"$f":"'Lists and CL Guidance'!F17","v":"Severe"},{"$f":"'Lists and CL Guidance'!G17","v":"Severe degradation in technical performance; Cannot meet KPP or key technical/supportability threshold; will jeopardize program success"},{"$f":"'Lists and CL Guidance'!H17","v":"Cannot meet key program milestones. \nSlip > 12months"},null,{"$f":"'Lists and CL Guidance'!I17","v":"Exceeds APB threshold\n(> 10% of Budget)"}]
["No Action",{"$f":"rev_date","v":"2022-01-01"},"Initial Assessment",{"$f":"MRL_risk_reference","v":"1 - Reference - DOD MRL Deskbook (p36) - http://www.dodmrl.com/MRL Deskbook V2020.pdf"}]
[null,null,null,{"$f":"DOD_Risk_reference","v":"2 - Reference - Risk Management Guide for DOD Acquisition\nhttps://acqnotes.com/wp-content/uploads/2014/09/DoD-Risk-Mgt-Guide-v7-interim-Dec2014.pdf"}]
[]
[]
[]
[]
[]
[]
[{"$f":"distro_statement","v":"DISTRIBUTION STATEMENT: No Distribution Statement Determined. "}]

{"sheet":"Lists and CL Guidance","index":31,"n_rows":30,"n_cols":9,"rows_kept":30,"cut":false,"hidden":false,"merged":[[29,0,29,7],[1,1,1,3],[18,0,18,6],[19,0,20,6],[9,4,9,8],[10,4,11,4],[10,5,11,5],[10,6,10,8]]}
[]
[null,"Category Guidance: Likelihood of Occurrence"]
[null,"Level","Likelihood","Probability of Occurrence"]
[null,1,"Not Likely","~10%  (>  1% to ≤ 20%)"]
[null,2,"Low Likelihood","~30%  (> 20% to ≤ 40%)"]
[null,3,"Likely","~50%  (> 40% to ≤ 60%)"]
[null,4,"Highly Likely","~70% (> 60% to ≤ 80%)"]
[null,5,"Near Certainty","~90%  (> 80% to ≤ 99%)"]
[]
[null,null,null,null,"Category Guidance: Consequence (System Impact)"]
[null,null,null,null,"Level","Consequence","System Impact"]
[null,null,null,null,null,null,"Technical Performance","Schedule","Cost"]
[null,null,null,null,1,"Minimal","Minimal or no consequence to technical performance","Minimal or no impact","Minimal or no impact"]
[null,null,null,null,2,"Minor","Minor reduction in technical performance or supportability, can be tolerated with little or no impact on program",{"$f":"\"Able to meet key dates. \nSlip < \"&'System Information'!B40&\" month(s)\"","v":"Able to meet key dates. \nSlip < 6 month(s)"},"Budget increase or unit production cost increases.\n(< 1% of Budget)"]
[null,null,null,null,3,"Moderate","Moderate reduction in technical performance or supportability with limited impact on program objectives",{"$f":"\"Minor schedule slip. Able to meet key milestones with no schedule float.\nSlip < \"&'System Information'!B40&\" month(s). Sub-system slip > \"&'System Information'!B41&\" month(s) plus available float.\"","v":"Minor schedule slip. Able to meet key milestones with no schedule float.\nSlip < 6 month(s). Sub-system slip > 12 month(s) plus available float."},"Budget increase or unit production cost increases.\n(< 5% of Budget)"]
[null,null,null,null,4,"Significant","Significant degradation in technical performance or major shortfall in supportability; may jeopardize program success",{"$f":"\"Program critical path affected.\nSlip < \"&'System Information'!B42&\" months\"","v":"Program critical path affected.\nSlip < 12 months"},"Budget increase or unit production cost increases.\n(< 10% of Budget)"]
[null,null,null,null,5,"Severe","Severe degradation in technical performance; Cannot meet KPP or key technical/supportability threshold; will jeopardize program success",{"$f":"\"Cannot meet key program milestones. \nSlip > \"&'System Information'!B43&\"months\"","v":"Cannot meet key program milestones. \nSlip > 12months"},"Exceeds APB threshold\n(> 10% of Budget)"]
[]
["1 - Reference - DOD MRL Deskbook (p36) - http://www.dodmrl.com/MRL Deskbook V2020.pdf"]
["2 - Reference - Risk Management Guide for DOD Acquisition\nhttps://acqnotes.com/wp-content/uploads/2014/09/DoD-Risk-Mgt-Guide-v7-interim-Dec2014.pdf"]
[]
[]
["Supplier Status",null,"Question Response","Likelihood/Consequence"]
["Evaluating",null,"Y",1]
["Selected",null,"N",2]
[null,null,null,3]
[null,null,null,4]
[null,null,null,5]
[]
["Note to Users: A 2017 update to Reference 2 above contains significantly more detail related to risk/consequences from a system acquisition perspective.  This information can be found in Table 3-1 of the following reference: “Risk, Issue, and Opportunity Management Guide for Defense Acquisition Programs,” Department of Defense, Office of the Deputy Assistant Secretary of Defense for Systems Engineering, Washington, D.C., January 2017. Simpler versions of the risk-consequence descriptions were regarded more appropriate for this \"Component/Supplier Risk Assessment\" tool and are what appear in the guidance boxes for each component/supplier tab."]